{"text_format":"1","workbook":"xlsx","n_sheets":10,"sheets":["Титул","График","План","Комплесные","Компетенции","Компетенции(2)","Кабинеты","Пояснения","ЦМК","Start"],"not_rendered":{"charts":0,"images":1,"macros":1,"external_links":0,"defined_names":0,"comments":0,"pivot_tables":0},"unopened":[],"bounds":{"document_bytes":16777216,"sheet_cells":100000,"rows_first":2000,"rows_last":500,"rows_between":2000,"halvings":0,"cell_chars":16384,"cell_head_chars":4096},"cells_cut":0,"cells_raw":0,"read":"whole","date_system":"1900"}

{"sheet":"Титул","index":0,"n_rows":40,"n_cols":45,"rows_kept":40,"cut":false,"hidden":false,"merged":[[0,6,0,30],[0,31,0,47],[1,31,1,47],[3,31,3,47],[4,31,4,47],[4,0,4,14],[5,0,6,2],[5,3,6,11],[5,31,6,47],[8,0,8,47],[9,0,9,47],[10,0,10,47],[11,0,11,47],[12,0,12,47],[13,0,13,4],[13,6,13,47],[14,0,14,5],[14,6,14,46],[15,0,15,13],[15,15,15,47],[16,15,16,47],[17,0,17,8],[18,0,18,5],[18,6,18,47],[19,6,19,47],[20,6,20,47],[21,6,21,47],[22,6,22,47],[23,6,23,47],[24,6,24,47],[26,0,26,5],[26,6,26,13],[26,15,26,27],[26,28,26,32],[26,34,26,43],[26,44,26,47],[28,0,28,19],[28,20,28,47],[29,20,29,47],[31,0,31,10],[31,11,31,12],[31,13,31,17],[31,18,31,19],[31,20,31,25],[39,0,39,26],[33,0,33,26],[34,0,34,26],[35,0,35,26],[36,0,36,26],[37,0,37,26],[38,0,38,26]]}
[null,null,null,null,null,null,null,null,null,null,null,null,null,null,null,null,null,null,null,null,null,null,null,null,null,null,null,null,null,null,null,"Утверждаю"]
[null,null,null,null,null,null,null,null,null,null,null,null,null,null,null,null,null,null,null,null,null,null,null,null,null,null,null,null,null,null,null,"Директор"]
[]
[null,null,null,null,null,null,null,null,null,null,null,null,null,null,null,null,null,null,null,null,null,null,null,null,null,null,null,null,null,null,null,"Белинский Олег Алексеевич"]
["на заседании Педагогического совета ГПОУ ТАПТ"]
["Протокол №",null,null," от 28.06.2019",null,null,null,null,null,null,null,null,null,null,null,null,null,null,null,null,null,null,null,null,null,null,null,null,null,null,null,"28.06.2019"]
[]
[]
["УЧЕБНЫЙ ПЛАН"]
["программы подготовки квалифицированых рабочих, служащих"]
["Государственное профессиональное образовательное учреждение \"Тяжинский агропромышленный техникум\""]
["наименование образовательного учреждения (организации)"]
["по профессии среднего профессионального образования"]
["430109",null,null,null,null,null,"Повар, кондитер"]
["код",null,null,null,null,null,"наименование профессии"]
[null,null,null,null,null,null,null,null,null,null,null,null,null,null,null,"основное общее образование"]
[null,null,null,null,null,null,null,null,null,null,null,null,null,null,null,"Уровень образования, необходимый для приема на обучение"]
[]
["квалификация:",null,null,null,null,null,"Повар  Кондитер"]
[null,null,null,null,null,null,"20 7"]
[null,null,null,null,null,null,"21 7"]
[null,null,null,null,null,null,"22 7"]
[null,null,null,null,null,null,"23 7"]
[null,null,null,null,null,null,"24 7"]
[null,null,null,null,null,null,"25 7"]
[]
["форма обучения",null,null,null,null,null,"Очная",null,null,null,null,null,null,null,null,"Нормативный срок освоения ОПОП",null,null,null,null,null,null,null,null,null,null,null,null,"3г 10м",null,null,null,null,null,"год начала подготовки по УП",null,null,null,null,null,null,null,null,null,"2019"]
[]
["профиль получаемого профессионального образования",null,null,null,null,null,null,null,null,null,null,null,null,null,null,null,null,null,null,null,"естественнонаучный"]
[null,null,null,null,null,null,null,null,null,null,null,null,null,null,null,null,null,null,null,null,"при реализации программы среднего общего образования"]
[]
["Приказ об утверждении ФГОС",null,null,null,null,null,null,null,null,null,null,"от ",null,"09.12.2016",null,null,null,null,"     № ",null,"1569"]
[]
["Виды деятельности"]
["Приготовление и подготовка к реализации полуфабрикатов для блюд, кулинарных изделий разнообразного ассортимента"]
["Приготовление, оформление и подготовка к реализации горячих блюд, кулинарных изделий, закусок разнообразного ассортимента"]
["Приготовление, оформление и подготовка к реализации холодных блюд, кулинарных изделий, закусок разнообразного ассортимента"]
["Приготовление, оформление и подготовка к реализации холодных и горячих сладких блюд, десертов, напитков разнообразного ассортимент"]
["Приготовление, оформление и подготовка к реализации хлебобулочных, мучных кондитерских изделий разнообразного ассортимента"]
["Работа на контрольно-кассовой технике расчеты  с покупателями"]

{"sheet":"График","index":1,"n_rows":189,"n_cols":66,"rows_kept":189,"cut":false,"hidden":false,"merged":[[1,0,1,16],[2,0,4,0],[2,1,2,4],[2,5,3,5],[2,6,2,8],[2,9,3,9],[2,10,2,12],[2,14,2,17],[2,18,3,18],[2,19,2,21],[2,22,3,22],[2,23,2,25],[2,26,3,26],[2,27,2,30],[2,31,3,31],[2,32,2,34],[2,35,3,35],[2,36,2,39],[2,40,2,43],[2,44,3,44],[2,45,2,47],[2,48,3,48],[2,49,2,52],[5,1,5,52],[6,0,7,0],[6,1,7,1],[6,2,7,2],[6,3,7,3],[6,4,7,4],[6,5,7,5],[6,6,7,6],[6,7,7,7],[6,8,7,8],[6,9,7,9],[6,10,7,10],[6,11,7,11],[6,12,7,12],[6,13,7,13],[6,14,7,14],[6,15,7,15],[6,16,7,16],[6,17,7,17],[6,18,7,18],[6,19,7,19],[6,20,7,20],[6,21,7,21],[6,22,7,22],[6,23,7,23],[6,24,7,24],[6,25,7,25],[6,26,7,26],[6,27,7,27],[6,28,7,28],[6,29,7,29],[6,30,7,30],[6,31,7,31],[6,32,7,32],[6,33,7,33],[6,34,7,34],[6,35,7,35],[6,36,7,36],[6,37,7,37],[6,38,7,38],[6,39,7,39],[6,40,7,40],[6,41,7,41],[6,42,7,42],[6,43,7,43],[6,44,7,44],[6,45,7,45],[6,46,7,46],[6,47,7,47],[6,48,7,48],[6,49,7,49],[6,50,7,50],[6,51,7,51],[6,52,7,52],[9,0,10,0],[9,1,10,1],[9,2,10,2],[9,3,10,3],[9,4,10,4],[9,5,10,5],[9,6,10,6],[9,7,10,7],[9,8,10,8],[9,9,10,9],[9,10,10,10],[9,11,10,11],[9,12,10,12],[9,13,10,13],[9,14,10,14],[9,15,10,15],[9,16,10,16],[9,17,10,17],[9,18,10,18],[9,19,10,19],[9,20,10,20],[9,21,10,21],[9,22,10,22],[9,23,10,23],[9,24,10,24],[9,25,10,25],[9,26,10,26],[9,27,10,27],[9,28,10,28],[9,29,10,29],[9,30,10,30],[9,31,10,31],[9,32,10,32],[9,33,10,33],[9,34,10,34],[9,35,10,35],[9,36,10,36],[9,37,10,37],[9,38,10,38],[9,39,10,39],[9,40,10,40],[9,41,10,41],[9,42,10,42],[9,43,10,43],[9,44,10,44],[9,45,10,45],[9,46,10,46],[9,47,10,47],[9,48,10,48],[9,49,10,49],[9,50,10,50],[9,51,10,51],[9,52,10,52],[11,1,11,52],[12,0,13,0],[12,1,13,1],[12,2,13,2],[12,3,13,3],[12,4,13,4],[12,5,13,5],[12,6,13,6],[12,7,13,7],[12,8,13,8],[12,9,13,9],[12,10,13,10],[12,11,13,11],[12,12,13,12],[12,13,13,13],[12,14,13,14],[12,15,13,15],[12,16,13,16],[12,17,13,17],[12,18,13,18],[12,19,13,19],[12,20,13,20],[12,21,13,21],[12,22,13,22],[12,23,13,23],[12,24,13,24],[12,25,13,25],[12,26,13,26],[12,27,13,27],[12,28,13,28],[12,29,13,29],[12,30,13,30],[12,31,13,31],[12,32,13,32],[12,33,13,33],[12,34,13,34],[12,35,13,35],[12,36,13,36],[12,37,13,37],[12,38,13,38],[12,39,13,39],[12,40,13,40],[12,41,13,41],[12,42,13,42],[12,43,13,43],[12,44,13,44],[12,45,13,45],[12,46,13,46],[12,47,13,47],[12,48,13,48],[12,49,13,49],[12,50,13,50],[12,51,13,51],[12,52,13,52],[14,1,14,52],[15,0,16,0],[15,1,16,1],[15,2,16,2],[15,3,16,3],[15,4,16,4],[15,5,16,5],[15,6,16,6],[15,7,16,7],[15,8,16,8],[15,9,16,9],[15,10,16,10],[15,11,16,11],[15,12,16,12],[15,13,16,13],[15,14,16,14],[15,15,16,15],[15,16,16,16],[15,17,16,17],[15,18,16,18],[15,19,16,19],[15,20,16,20],[15,21,16,21],[15,22,16,22],[15,23,16,23],[15,24,16,24],[15,25,16,25],[15,26,16,26],[15,27,16,27],[15,28,16,28],[15,29,16,29],[15,30,16,30],[15,31,16,31],[15,32,16,32],[15,33,16,33],[15,34,16,34],[15,35,16,35],[15,36,16,36],[15,37,16,37],[15,38,16,38],[15,39,16,39],[15,40,16,40],[15,41,16,41],[15,42,16,42],[15,43,16,43],[15,44,16,44],[15,45,16,45],[15,46,16,46],[15,47,16,47],[15,48,16,48],[15,49,16,49],[15,50,16,50],[15,51,16,51],[15,52,16,52],[17,1,17,52],[18,0,19,0],[18,1,19,1],[18,2,19,2],[18,3,19,3],[18,4,19,4],[18,5,19,5],[18,6,19,6],[18,7,19,7],[18,8,19,8],[18,9,19,9],[18,10,19,10],[18,11,19,11],[18,12,19,12],[18,13,19,13],[18,14,19,14],[18,15,19,15],[18,16,19,16],[18,17,19,17],[18,18,19,18],[18,19,19,19],[18,20,19,20],[18,21,19,21],[18,22,19,22],[18,23,19,23],[18,24,19,24],[18,25,19,25],[18,26,19,26],[18,27,19,27],[18,28,19,28],[18,29,19,29],[18,30,19,30],[18,31,19,31],[18,32,19,32],[18,33,19,33],[18,34,19,34],[18,35,19,35],[18,36,19,36],[18,37,19,37],[18,38,19,38],[18,39,19,39],[18,40,19,40],[18,41,19,41],[18,42,19,42],[18,43,19,43],[18,44,19,44],[18,45,19,45],[18,46,19,46],[18,47,19,47],[18,48,19,48],[18,49,19,49],[18,50,19,50],[18,51,19,51],[18,52,19,52],[20,1,20,52],[21,0,22,0],[21,1,22,1],[21,2,22,2],[21,3,22,3],[21,4,22,4],[21,5,22,5],[21,6,22,6],[21,7,22,7],[21,8,22,8],[21,9,22,9],[21,10,22,10],[21,11,22,11],[21,12,22,12],[21,13,22,13],[21,14,22,14],[21,15,22,15],[21,16,22,16],[21,17,22,17],[21,18,22,18],[21,19,22,19],[21,20,22,20],[21,21,22,21],[21,22,22,22],[21,23,22,23],[21,24,22,24],[21,25,22,25],[21,26,22,26],[21,27,22,27],[21,28,22,28],[21,29,22,29],[21,30,22,30],[21,31,22,31],[21,32,22,32],[21,33,22,33],[21,34,22,34],[21,35,22,35],[21,36,22,36],[21,37,22,37],[21,38,22,38],[21,39,22,39],[21,40,22,40],[21,41,22,41],[21,42,22,42],[21,43,22,43],[21,44,22,44],[21,45,22,45],[21,46,22,46],[21,47,22,47],[21,48,22,48],[21,49,22,49],[21,50,22,50],[21,51,22,51],[21,52,22,52],[24,0,25,0],[24,1,25,1],[24,2,25,2],[24,3,25,3],[24,4,25,4],[24,5,25,5],[24,6,25,6],[24,7,25,7],[24,8,25,8],[24,9,25,9],[24,10,25,10],[24,11,25,11],[24,12,25,12],[24,13,25,13],[24,14,25,14],[24,15,25,15],[24,16,25,16],[24,17,25,17],[24,18,25,18],[24,19,25,19],[24,20,25,20],[24,21,25,21],[24,22,25,22],[24,23,25,23],[24,24,25,24],[24,25,25,25],[24,26,25,26],[24,27,25,27],[24,28,25,28],[24,29,25,29],[24,30,25,30],[24,31,25,31],[24,32,25,32],[24,33,25,33],[24,34,25,34],[24,35,25,35],[24,36,25,36],[24,37,25,37],[24,38,25,38],[24,39,25,39],[24,40,25,40],[24,41,25,41],[24,42,25,42],[24,43,25,43],[24,44,25,44],[24,45,25,45],[24,46,25,46],[24,47,25,47],[24,48,25,48],[24,49,25,49],[24,50,25,50],[24,51,25,51],[24,52,25,52],[27,0,28,0],[27,1,28,1],[27,2,28,2],[27,3,28,3],[27,4,28,4],[27,5,28,5],[27,6,28,6],[27,7,28,7],[27,8,28,8],[27,9,28,9],[27,10,28,10],[27,11,28,11],[27,12,28,12],[27,13,28,13],[27,14,28,14],[27,15,28,15],[27,16,28,16],[27,17,28,17],[27,18,28,18],[27,19,28,19],[27,20,28,20],[27,21,28,21],[27,22,28,22],[27,23,28,23],[27,24,28,24],[27,25,28,25],[27,26,28,26],[27,27,28,27],[27,28,28,28],[27,29,28,29],[27,30,28,30],[27,31,28,31],[27,32,28,32],[27,33,28,33],[27,34,28,34],[27,35,28,35],[27,36,28,36],[27,37,28,37],[27,38,28,38],[27,39,28,39],[27,40,28,40],[27,41,28,41],[27,42,28,42],[27,43,28,43],[27,44,28,44],[27,45,28,45],[27,46,28,46],[27,47,28,47],[27,48,28,48],[27,49,28,49],[27,50,28,50],[27,51,28,51],[27,52,28,52],[30,0,31,0],[30,1,31,1],[30,2,31,2],[30,3,31,3],[30,4,31,4],[30,5,31,5],[30,6,31,6],[30,7,31,7],[30,8,31,8],[30,9,31,9],[30,10,31,10],[30,11,31,11],[30,12,31,12],[30,13,31,13],[30,14,31,14],[30,15,31,15],[30,16,31,16],[30,17,31,17],[30,18,31,18],[30,19,31,19],[30,20,31,20],[30,21,31,21],[30,22,31,22],[30,23,31,23],[30,24,31,24],[30,25,31,25],[30,26,31,26],[30,27,31,27],[30,28,31,28],[30,29,31,29],[30,30,31,30],[30,31,31,31],[30,32,31,32],[30,33,31,33],[30,34,31,34],[30,35,31,35],[30,36,31,36],[30,37,31,37],[30,38,31,38],[30,39,31,39],[30,40,31,40],[30,41,31,41],[30,42,31,42],[30,43,31,43],[30,44,31,44],[30,45,31,45],[30,46,31,46],[30,47,31,47],[30,48,31,48],[30,49,31,49],[30,50,31,50],[30,51,31,51],[30,52,31,52],[33,0,34,0],[33,1,34,1],[33,2,34,2],[33,3,34,3],[33,4,34,4],[33,5,34,5],[33,6,34,6],[33,7,34,7],[33,8,34,8],[33,9,34,9],[33,10,34,10],[33,11,34,11],[33,12,34,12],[33,13,34,13],[33,14,34,14],[33,15,34,15],[33,16,34,16],[33,17,34,17],[33,18,34,18],[33,19,34,19],[33,20,34,20],[33,21,34,21],[33,22,34,22],[33,23,34,23],[33,24,34,24],[33,25,34,25],[33,26,34,26],[33,27,34,27],[33,28,34,28],[33,29,34,29],[33,30,34,30],[33,31,34,31],[33,32,34,32],[33,33,34,33],[33,34,34,34],[33,35,34,35],[33,36,34,36],[33,37,34,37],[33,38,34,38],[33,39,34,39],[33,40,34,40],[33,41,34,41],[33,42,34,42],[33,43,34,43],[33,44,34,44],[33,45,34,45],[33,46,34,46],[33,47,34,47],[33,48,34,48],[33,49,34,49],[33,50,34,50],[33,51,34,51],[33,52,34,52],[36,0,37,0],[36,1,37,1],[36,2,37,2],[36,3,37,3],[36,4,37,4],[36,5,37,5],[36,6,37,6],[36,7,37,7],[36,8,37,8],[36,9,37,9],[36,10,37,10],[36,11,37,11],[36,12,37,12],[36,13,37,13],[36,14,37,14],[36,15,37,15],[36,16,37,16],[36,17,37,17],[36,18,37,18],[36,19,37,19],[36,20,37,20],[36,21,37,21],[36,22,37,22],[36,23,37,23],[36,24,37,24],[36,25,37,25],[36,26,37,26],[36,27,37,27],[36,28,37,28],[36,29,37,29],[36,30,37,30],[36,31,37,31],[36,32,37,32],[36,33,37,33],[36,34,37,34],[36,35,37,35],[36,36,37,36],[36,37,37,37],[36,38,37,38],[36,39,37,39],[36,40,37,40],[36,41,37,41],[36,42,37,42],[36,43,37,43],[36,44,37,44],[36,45,37,45],[36,46,37,46],[36,47,37,47],[36,48,37,48],[36,49,37,49],[36,50,37,50],[36,51,37,51],[36,52,37,52],[39,0,40,0],[39,1,40,1],[39,2,40,2],[39,3,40,3],[39,4,40,4],[39,5,40,5],[39,6,40,6],[39,7,40,7],[39,8,40,8],[39,9,40,9],[39,10,40,10],[39,11,40,11],[39,12,40,12],[39,13,40,13],[39,14,40,14],[39,15,40,15],[39,16,40,16],[39,17,40,17],[39,18,40,18],[39,19,40,19],[39,20,40,20],[39,21,40,21],[39,22,40,22],[39,23,40,23],[39,24,40,24],[39,25,40,25],[39,26,40,26],[39,27,40,27],[39,28,40,28],[39,29,40,29],[39,30,40,30],[39,31,40,31],[39,32,40,32],[39,33,40,33],[39,34,40,34],[39,35,40,35],[39,36,40,36],[39,37,40,37],[39,38,40,38],[39,39,40,39],[39,40,40,40],[39,41,40,41],[39,42,40,42],[39,43,40,43],[39,44,40,44],[39,45,40,45],[39,46,40,46],[39,47,40,47],[39,48,40,48],[39,49,40,49],[39,50,40,50],[39,51,40,51],[39,52,40,52],[42,0,47,0],[42,1,47,1],[42,2,47,2],[42,3,47,3],[42,4,47,4],[42,5,47,5],[42,6,47,6],[42,7,47,7],[42,8,47,8],[42,9,47,9],[42,10,47,10],[42,11,47,11],[42,12,47,12],[42,13,47,13],[42,14,47,14],[42,15,47,15],[42,16,47,16],[42,17,47,17],[42,18,47,18],[42,19,47,19],[42,20,47,20],[42,21,47,21],[42,22,47,22],[42,23,47,23],[42,24,47,24],[42,25,47,25],[42,26,47,26],[42,27,47,27],[42,28,47,28],[42,29,47,29],[42,30,47,30],[42,31,47,31],[42,32,47,32],[42,33,47,33],[42,34,47,34],[42,35,47,35],[42,46,47,46],[42,47,47,47],[42,36,47,36],[42,37,47,37],[42,38,47,38],[42,39,47,39],[42,40,47,40],[42,41,47,41],[49,37,54,37],[49,38,54,38],[49,39,54,39],[42,48,47,48],[42,49,47,49],[42,50,47,50],[42,51,47,51],[42,52,47,52],[48,1,48,52],[42,42,47,42],[42,43,47,43],[42,44,47,44],[42,45,47,45],[49,0,54,0],[49,1,54,1],[49,2,54,2],[49,3,54,3],[49,4,54,4],[49,5,54,5],[49,6,54,6],[49,7,54,7],[49,8,54,8],[49,9,54,9],[49,10,54,10],[49,11,54,11],[49,12,54,12],[49,13,54,13],[49,14,54,14],[49,15,54,15],[49,16,54,16],[49,18,54,18],[49,19,54,19],[49,23,54,23],[49,24,54,24],[49,25,54,25],[49,26,54,26],[49,27,54,27],[49,28,54,28],[49,29,54,29],[49,30,54,30],[49,31,54,31],[49,32,54,32],[49,33,54,33],[49,34,54,34],[49,35,54,35],[49,36,54,36],[49,20,54,20],[49,21,54,21],[49,22,54,22],[49,41,54,41],[49,42,54,42],[49,44,54,44],[49,45,54,45],[49,46,54,46],[49,47,54,47],[49,48,54,48],[49,49,54,49],[49,50,54,50],[49,51,54,51],[49,52,54,52],[55,1,55,52],[56,0,61,0],[56,1,61,1],[56,2,61,2],[56,3,61,3],[56,4,61,4],[56,5,61,5],[56,6,61,6],[56,7,61,7],[56,8,61,8],[56,9,61,9],[56,10,61,10],[56,11,61,11],[56,12,61,12],[56,13,61,13],[56,14,61,14],[56,15,61,15],[56,16,61,16],[56,41,61,41],[56,17,61,17],[56,18,61,18],[63,1,68,1],[63,2,68,2],[63,3,68,3],[63,4,68,4],[63,5,68,5],[63,6,68,6],[63,7,68,7],[63,8,68,8],[63,9,68,9],[63,10,68,10],[63,11,68,11],[63,12,68,12],[63,14,68,14],[63,15,68,15],[63,16,68,16],[63,18,68,18],[63,13,68,13],[56,38,61,38],[56,39,61,39],[56,42,61,42],[56,43,61,43],[56,44,61,44],[56,45,61,45],[56,46,61,46],[56,47,61,47],[56,48,61,48],[56,49,61,49],[56,50,61,50],[56,51,61,51],[56,52,61,52],[62,1,62,52],[56,20,61,20],[56,21,61,21],[56,22,61,22],[56,23,61,23],[56,24,61,24],[56,25,61,25],[56,26,61,26],[56,27,61,27],[56,28,61,28],[56,29,61,29],[56,30,61,30],[56,31,61,31],[56,32,61,32],[56,33,61,33],[56,37,61,37],[56,19,61,19],[56,34,61,34],[56,35,61,35],[63,52,68,52],[69,1,69,52],[70,0,75,0],[70,1,75,1],[70,2,75,2],[70,3,75,3],[70,4,75,4],[70,5,75,5],[70,6,75,6],[70,7,75,7],[70,8,75,8],[70,9,75,9],[70,10,75,10],[70,11,75,11],[70,12,75,12],[70,13,75,13],[70,14,75,14],[70,15,75,15],[63,19,68,19],[63,20,68,20],[63,21,68,21],[63,22,68,22],[63,23,68,23],[63,24,68,24],[63,25,68,25],[63,26,68,26],[63,28,68,28],[63,29,68,29],[63,30,68,30],[63,32,68,32],[63,33,68,33],[63,0,68,0],[63,38,68,38],[63,39,68,39],[63,40,68,40],[63,41,68,41],[63,42,68,42],[63,43,68,43],[63,44,68,44],[63,45,68,45],[63,46,68,46],[63,47,68,47],[63,48,68,48],[63,49,68,49],[63,50,68,50],[63,51,68,51],[63,34,68,34],[63,35,68,35],[63,37,68,37],[70,52,75,52],[76,1,76,52],[70,42,75,42],[70,43,75,43],[70,44,75,44],[70,45,75,45],[70,16,75,16],[70,17,75,17],[70,18,75,18],[70,19,75,19],[70,20,75,20],[70,21,75,21],[70,22,75,22],[70,23,75,23],[70,24,75,24],[70,25,75,25],[70,26,75,26],[70,29,75,29],[70,30,75,30],[70,33,75,33],[70,34,75,34],[70,46,75,46],[70,47,75,47],[70,35,75,35],[70,36,75,36],[70,37,75,37],[70,38,75,38],[70,40,75,40],[70,48,75,48],[70,49,75,49],[70,50,75,50],[70,51,75,51],[77,29,82,29],[77,30,82,30],[77,31,82,31],[77,32,82,32],[77,33,82,33],[77,0,82,0],[77,1,82,1],[77,2,82,2],[77,3,82,3],[77,4,82,4],[77,5,82,5],[77,6,82,6],[77,7,82,7],[77,8,82,8],[77,9,82,9],[77,10,82,10],[77,11,82,11],[77,12,82,12],[77,13,82,13],[77,14,82,14],[77,15,82,15],[77,16,82,16],[77,34,82,34],[77,35,82,35],[77,46,82,46],[77,47,82,47],[77,36,82,36],[77,37,82,37],[77,38,82,38],[77,39,82,39],[77,40,82,40],[77,41,82,41],[77,48,82,48],[77,49,82,49],[77,50,82,50],[77,51,82,51],[77,52,82,52],[83,1,83,52],[77,42,82,42],[77,43,82,43],[77,44,82,44],[77,45,82,45],[77,17,82,17],[77,18,82,18],[77,19,82,19],[77,20,82,20],[77,21,82,21],[77,22,82,22],[77,23,82,23],[77,24,82,24],[77,25,82,25],[77,26,82,26],[77,27,82,27],[77,28,82,28],[84,29,89,29],[84,30,89,30],[84,31,89,31],[84,32,89,32],[84,33,89,33],[84,0,89,0],[84,1,89,1],[84,2,89,2],[84,3,89,3],[84,4,89,4],[84,5,89,5],[84,6,89,6],[84,7,89,7],[84,8,89,8],[84,9,89,9],[84,10,89,10],[84,11,89,11],[84,12,89,12],[84,13,89,13],[84,14,89,14],[84,15,89,15],[84,16,89,16],[84,34,89,34],[84,35,89,35],[84,46,89,46],[84,47,89,47],[84,36,89,36]],"merged_total":2229,"flags":["merged_cut"]}
[]
["1 Календарный учебный график"]
["Курс","Сентябрь",null,null,null,"29 сен - 5 окт","Октябрь",null,null,"27 окт - 2 ноя","Ноябрь",null,null,null,"Декабрь",null,null,null,"29 дек - 4 янв","Январь",null,null,"26 янв - 1 фев","Февраль",null,null,"23 фев - 1 мар","Март",null,null,null,"30 мар - 5 апр","Апрель",null,null,"27 апр - 3 май","Май",null,null,null,"Июнь",null,null,null,"29 июн - 5 июл","Июль",null,null,"27 июл -2 авг","Август"]
[null,"1 - 7","8 - 14","15 - 21","22 - 28",null,"6 - 12","13 - 19","20 - 26",null,"3 - 9","10 - 16","17 - 23","24 - 30","1 - 7","8 - 14","15 - 21","22 - 28",null,"5 - 11","12 - 18","19 - 25",null,"2 - 8","9 - 15","16 - 22",null,"2 - 8","9 - 15","16 - 22","23 - 29",null,"6 - 12","13 - 19","20 - 26",null,"4 - 10","11 - 17","18 - 24","25 - 31","1 - 7","8 - 14","15 - 21","22 - 28",null,"6 - 12","13 - 19","20 - 26",null,"3 - 9","10 - 16","17 - 23","24 - 31"]
[null,"1","2","3","4","5","6","7","8","9","10","11","12","13","14","15","16","17","18","19","20","21","22","23","24","25","26","27","28","29","30","31","32","33","34","35","36","37","38","39","40","41","42","43","44","45","46","47","48","49","50","51","52"]
[]
["0"]
[]
[]
["I"]
[]
[]
["II"]
[]
[]
["III"]
[]
[]
["IV"]
[]
[]
["V"]
[]
[]
["VI"]
[]
[]
["VII"]
[]
[]
["VIII"]
[]
[]
["IX"]
[]
[]
["X"]
[]
[]
["XI"]
[]
[]
["0","*","*","*","*","*","*","*","*","*","*","*","*","*","*","*","*","*","*","*","*","*","*","*","*","*","*","*","*","*","*","*","*","*","*","*","*","*","*","*","*","*","*","*","*","*","*","*","*","*","*","*","*"]
[]
[]
[]
[]
[]
[]
["I",null,null,null,null,null,null,null,null,null,null,null,null,null,null,null,null,null,"К","К",null,null,null,null,null,null,null,null,null,null,null,null,null,null,null,null,null,null,null,null,null,"У","У","У","К","К","К","К","К","К","К","К","К"]
[null,null,null,null,null,null,null,null,null,null,null,null,null,null,null,null,null,null,null,null,null,null,null,null,null,null,null,null,null,null,null,null,null,null,null,null,null,null,null,null,null,null,null,"У"]
[null,null,null,null,null,null,null,null,null,null,null,null,null,null,null,null,null,null,null,null,null,null,null,null,null,null,null,null,null,null,null,null,null,null,null,null,null,null,null,null,null,null,null,"У"]
[null,null,null,null,null,null,null,null,null,null,null,null,null,null,null,null,null,null,null,null,null,null,null,null,null,null,null,null,null,null,null,null,null,null,null,null,null,null,null,null,null,null,null,"У"]
[null,null,null,null,null,null,null,null,null,null,null,null,null,null,null,null,null,"А",null,null,null,null,null,null,null,null,null,null,null,null,null,null,null,null,null,null,null,null,null,null,"У",null,null,"А"]
[null,null,null,null,null,null,null,null,null,null,null,null,null,null,null,null,null,"А",null,null,null,null,null,null,null,null,null,null,null,null,null,null,null,null,null,null,null,null,null,null,"У",null,null,"А"]
[]
["II",null,null,null,null,null,null,null,null,null,null,null,null,null,null,"У","У","У","К","К",null,null,null,null,null,null,null,null,null,null,null,null,null,null,null,null,null,"У","У","У","У","А","А","К","К","К","К","К","К","К","К","К","К"]
[null,null,null,null,null,null,null,null,null,null,null,null,null,null,null,null,null,null,null,null,null,null,null,null,null,null,null,null,null,null,null,null,null,null,null,null,null,null,null,null,"У"]
[null,null,null,null,null,null,null,null,null,null,null,null,null,null,null,null,null,null,null,null,null,null,null,null,null,null,null,null,null,null,null,null,null,null,null,null,null,null,null,null,"У"]
[null,null,null,null,null,null,null,null,null,null,null,null,null,null,null,null,null,null,null,null,null,null,null,null,null,null,null,null,null,null,null,null,null,null,null,null,null,null,null,null,"У"]
[null,null,null,null,null,null,null,null,null,null,null,null,null,null,null,null,null,null,null,null,null,null,null,null,null,null,null,null,null,null,null,null,null,null,null,null,"У",null,null,null,"А"]
[null,null,null,null,null,null,null,null,null,null,null,null,null,null,null,null,null,null,null,null,null,null,null,null,null,null,null,null,null,null,null,null,null,null,null,null,"У",null,null,null,"А"]
[]
["III",null,null,null,null,null,null,null,null,null,null,"У","У","У","У",null,null,null,"К","К",null,null,null,"У","У","У","У",null,null,null,null,null,"У","У","У","У","У","П","П","П","П","П","П","К","К","К","К","К","К","К","К","К","К"]
[null,null,null,null,null,null,null,null,null,null,null,null,null,null,null,null,null,null,null,null,null,null,null,null,null,null,null,null,null,null,null,null,null,null,null,null,"У"]
[null,null,null,null,null,null,null,null,null,null,null,null,null,null,null,null,null,null,null,null,null,null,null,null,null,null,null,null,null,null,null,"А",null,null,null,null,"У"]
[null,null,null,null,null,null,null,null,null,null,null,null,null,null,null,null,null,null,null,null,null,null,null,null,null,null,null,null,null,null,null,"А",null,null,null,null,"У"]
[null,null,null,null,null,null,null,null,null,null,null,null,null,null,null,null,null,"А",null,null,null,null,null,null,null,null,null,null,null,null,null,"У",null,null,null,null,"А"]
[null,null,null,null,null,null,null,null,null,null,null,null,null,null,null,null,null,"А",null,null,null,null,null,null,null,null,null,null,null,null,null,"У",null,null,null,null,"А"]
[]
["IV","П","П","П","П","П","П","П","П","П","П","П","П","П","П","П","А","А","К","К",null,null,null,null,null,null,null,null,"У","У","У","У","А","П","П","П","П","П","П","П","Г","Г","К","К","*","*","*","*","*","*","*","*","*"]
[null,null,null,null,null,null,null,null,null,null,null,null,null,null,null,null,null,null,null,null,null,null,null,null,null,null,null,null,null,null,null,"У","А",null,null,null,null,null,null,"П"]
[null,null,null,null,null,null,null,null,null,null,null,null,null,null,null,null,null,null,null,null,null,null,null,null,null,null,null,null,null,null,null,"У","А",null,null,null,null,null,null,"П"]
[null,null,null,null,null,null,null,null,null,null,null,null,null,null,null,null,null,null,null,null,null,null,null,null,null,null,null,null,null,null,null,"У","П",null,null,null,null,null,null,"А"]
[null,null,null,null,null,null,null,null,null,null,null,null,null,null,null,null,null,null,null,null,null,null,null,null,null,null,null,"У",null,null,null,"А","П",null,null,null,null,null,null,"А"]
[null,null,null,null,null,null,null,null,null,null,null,null,null,null,null,null,null,null,null,null,null,null,null,null,null,null,null,"У",null,null,null,"А","П",null,null,null,null,null,null,"А"]
[]
["V","*","*","*","*","*","*","*","*","*","*","*","*","*","*","*","*","*","*","*","*","*","*","*","*","*","*","*","*","*","*","*","*","*","*","*","*","*","*","*","*","*","*","*","*","*","*","*","*","*","*","*","*"]
[]
[]
[]
[]
[]
[]
["VI"]
[]
[]
[]
[]
[]
[]
["VII"]
[]
[]
[]
[]
[]
[]
["VIII"]
[]
[]
[]
[]
[]
[]
["IX"]
[]
[]
[]
[]
[]
[]
["X"]
[]
[]
[]
[]
[]
[]
["XI"]
[]
[]
[]
[]
[]
[]
["Обозначения:",null,null,null,null,null,null,"  Обучение по циклам",null,null,null,null,null,null,null,null,null,null,null,null,null,null,null,null,"У","   Учебная практика"]
[]
[null,null,null,null,null,null,"А","   Промежуточная аттестация",null,null,null,null,null,null,null,null,null,null,null,null,null,null,null,null,"П","   Производственная практика",null,null,null,null,null,null,null,null,null,null,null,null,null,null,null,null,null,"Г","   Государственная итоговая аттестация"]
[]
[null,null,null,null,null,null,"К","   Каникулы",null,null,null,null,null,null,null,null,null,null,null,null,null,null,null,null,null,null,null,null,null,null,null,null,null,null,null,null,null,null,null,null,null,null,null,"*","   Неделя отсутствует"]
[]
["2 Сводные данные по бюджету времени"]
[]
["Курс","Обучение по дисциплинам и междисциплинарным курсам",null,null,null,null,null,null,null,null,null,null,null,null,null,null,null,null,null,"Промежуточная аттестация",null,null,null,null,null,null,null,null,"Практики",null,null,null,null,null,null,null,null,null,null,null,null,null,null,null,null,null,null,null,null,"ГИА",null,null,null,null,null,"Каникулы",null,null,"Всего",null,null,"Студентов",null,null,null,"Групп"]
[null,null,null,null,null,null,null,null,null,null,null,null,null,null,null,null,null,null,null,null,null,null,null,null,null,null,null,null,"Учебная практика",null,null,null,null,null,null,"Производственная практика (по профилю специальности)",null,null,null,null,null,null,"Производственная практика (преддипломная)",null,null,null,null,null,null,"Подго-\r\nтовка",null,null,"Прове-\r\nдение"]
[null,"Всего",null,null,null,null,null,"1 сем",null,null,null,null,null,"2 сем",null,null,null,null,null,"Всего",null,null,"1 сем",null,null,"2 сем",null,null,"Всего",null,null,"1 сем",null,"2 сем",null,"Всего",null,null,"1 сем",null,"2 сем",null,"Всего",null,null,"1 сем",null,"2 сем"]
[null,"нед.",null,null,"час. обяз. уч. занятий",null,null,"нед.",null,null,"час. обяз. уч. занятий",null,null,"нед.",null,null,"час. обяз. уч. занятий",null,null,"нед.",null,null,"нед.",null,null,"нед.",null,null,"нед.",null,null,"нед.",null,"нед.",null,"нед.",null,null,"нед.",null,"нед.",null,"нед.",null,null,"нед.",null,"нед.",null,"нед.",null,null,"нед.",null,null,"нед.",null,null,"нед."]
["I"]
["II"]
["III"]
["IV"]
["V"]
["VI"]
["VII"]
["VIII"]
["IX"]
["X"]
["XI"]
["Всего"]
[]
["Курс","Обучение по дисциплинам и междисциплинарным курсам, в том числе учебная практика",null,null,null,null,null,null,null,null,null,null,null,null,null,null,null,null,null,"Промежуточная аттестация",null,null,null,null,null,null,null,null,"Практики",null,null,null,null,null,null,null,null,null,null,null,null,null,"ГИА",null,null,null,null,null,"Каникулы",null,null,"Всего",null,null,"Студентов",null,null,null,"Групп"]
[null,null,null,null,null,null,null,null,null,null,null,null,null,null,null,null,null,null,null,null,null,null,null,null,null,null,null,null,"Производственная практика (по профилю специальности)",null,null,null,null,null,null,"Производственная практика (преддипломная)",null,null,null,null,null,null,"Подго-\r\nтовка",null,null,"Прове-\r\nдение"]
[null,"Всего",null,null,null,null,null,"1 сем",null,null,null,null,null,"2 сем",null,null,null,null,null,"Всего",null,null,"1 сем",null,null,"2 сем",null,null,"Всего",null,null,"1 сем",null,"2 сем",null,"Всего",null,null,"1 сем",null,"2 сем"]
[null,"нед.",null,null,"час. обяз. уч. занятий",null,null,"нед.",null,null,"час. обяз. уч. занятий",null,null,"нед.",null,null,"час. обяз. уч. занятий",null,null,"нед.",null,null,"нед.",null,null,"нед.",null,null,"нед.",null,null,"нед.",null,"нед.",null,"нед.",null,null,"нед.",null,"нед.",null,"нед.",null,null,"нед.",null,null,"нед.",null,null,"нед."]
["I"]
["II"]
["III"]
["IV"]
["V"]
["VI"]
["VII"]
["VIII"]
["IX"]
["X"]
["XI"]
["Всего"]
[]
["Курс","  Обучение по циклам",null,null,null,null,null,null,null,null,null,null,null,null,null,null,null,null,null,"Промежуточная аттестация",null,null,null,null,null,null,null,null,"Практики",null,null,null,null,null,null,null,null,null,null,null,null,null,"ГИА",null,null,"Каникулы",null,null,"Всего",null,null,"Студентов",null,null,null,"Групп"]
[null,null,null,null,null,null,null,null,null,null,null,null,null,null,null,null,null,null,null,null,null,null,null,null,null,null,null,null,"Учебная практика (Производственное обучение)",null,null,null,null,null,null,"Производственная практика",null,null,null,null,null,null,"Прове-\r\nдение"]
[null,"Всего",null,null,null,null,null,"1 сем",null,null,null,null,null,"2 сем",null,null,null,null,null,"Всего",null,null,"1 сем",null,null,"2 сем",null,null,"Всего",null,null,"1 сем",null,"2 сем",null,"Всего",null,null,"1 сем",null,"2 сем"]
[null,"нед.",null,null,null,null,null,"нед.",null,null,null,null,null,"нед.",null,null,null,null,null,"нед.",null,null,"нед.",null,null,"нед.",null,null,"нед.",null,null,"нед.",null,"нед.",null,"нед.",null,null,"нед.",null,"нед.",null,"нед.",null,null,"нед.",null,null,"нед."]
["I","37 1/3",null,null,null,null,null,"16 2/3",null,null,null,null,null,"20 2/3",null,null,null,null,null,"2/3",null,null,"1/3",null,null,"1/3",null,null,"3 ",null,null,null,null,"3 ",null,null,null,null,null,null,null,null,null,null,null,"11 ",null,null,"52 "]
["II","30 2/3",null,null,null,null,null,"14 ",null,null,null,null,null,"16 2/3",null,null,null,null,null,"2 1/3",null,null,null,null,null,"2 1/3",null,null,7,null,null,"3 ",null,4,null,null,null,null,null,null,null,null,null,null,null,12,null,null,"52 "]
["III","20 ",null,null,null,null,null,"12 2/3",null,null,null,null,null,"7 1/3",null,null,null,null,null,"1 ",null,null,"1/3",null,null,"2/3",null,null,"13 ",null,null,"4 ",null,"9 ",null,6,null,null,null,null,6,null,null,null,null,12,null,null,"52 "]
["IV","8 ",null,null,null,null,null,"576",null,null,null,null,null,"8 ",null,null,null,null,null,"2 ",null,null,"1 ",null,null,"1 ",null,null,"4 ",null,null,null,null,"4 ",null,22,null,null,15,null,7,null,"2 ",null,null,"2 ",null,null,"43 "]
["V"]
["Всего","96 ",null,null,null,null,null,"43 1/3",null,null,null,null,null,"52 2/3",null,null,null,null,null,"6 ",null,null,"1 2/3",null,null,"4 1/3",null,null,27,null,null,"7 ",null,20,null,28,null,null,15,null,13,null,"2 ",null,null,"35 ",null,null,"199 "]
[]
["Курс","Обучение по циклам и разделу \"Физическая культура\", в том числе учебная практика ",null,null,null,null,null,null,null,null,null,null,null,null,null,null,null,null,null,"Промежуточная аттестация",null,null,null,null,null,null,null,null,"Практики",null,null,null,null,null,null,"ГИА",null,null,"Каникулы",null,null,"Всего",null,null,"Студентов",null,null,null,"Групп"]
[null,null,null,null,null,null,null,null,null,null,null,null,null,null,null,null,null,null,null,null,null,null,null,null,null,null,null,null,"Производственная практика",null,null,null,null,null,null,"Прове-\r\nдение"]
[null,"Всего",null,null,null,null,null,"1 сем",null,null,null,null,null,"2 сем",null,null,null,null,null,"Всего",null,null,"1 сем",null,null,"2 сем",null,null,"Всего",null,null,"1 сем",null,"2 сем"]
[null,"нед.",null,null,"час. обяз. уч. зан.",null,null,"нед.",null,null,"час. обяз. уч. зан.",null,null,"нед.",null,null,"час. обяз. уч. зан.",null,null,"нед.",null,null,"нед.",null,null,"нед.",null,null,"нед.",null,null,"нед.",null,"нед.",null,"нед.",null,null,"нед.",null,null,"нед."]
["I"]
["II"]
["III"]
["IV"]
["V"]
["Всего"]

{"sheet":"План","index":2,"n_rows":149,"n_cols":101,"rows_kept":149,"cut":false,"hidden":false,"merged":[[0,0,5,0],[0,1,5,1],[0,2,1,7],[0,8,1,17],[0,18,0,97],[2,2,5,2],[2,3,5,3],[2,4,5,4],[2,5,5,5],[2,6,5,6],[2,7,5,7],[2,8,5,8],[2,9,5,9],[2,10,5,10],[2,11,2,15],[3,11,5,11],[3,12,3,15],[2,16,5,16],[2,17,5,17],[4,12,5,12],[4,13,5,13],[4,14,5,14],[4,15,5,15],[4,20,5,20],[0,98,5,98],[0,99,3,100],[1,38,1,57],[1,58,1,77],[1,78,1,97],[2,58,2,67],[2,68,2,77],[2,78,2,87],[2,88,2,97],[2,38,2,47],[2,48,2,57],[3,38,3,47],[3,48,3,57],[3,58,3,67],[3,68,3,77],[3,78,3,87],[3,88,3,97],[4,47,5,47],[4,48,5,48],[4,49,5,49],[4,50,5,50],[4,51,5,51],[4,52,4,55],[4,56,5,56],[4,21,5,21],[4,22,4,25],[4,26,5,26],[4,27,5,27],[4,28,5,28],[4,29,5,29],[4,30,5,30],[4,31,5,31],[4,32,4,35],[4,36,5,36],[4,37,5,37],[4,38,5,38],[4,39,5,39],[4,40,5,40],[4,41,5,41],[4,42,4,45],[4,46,5,46],[4,57,5,57],[4,58,5,58],[4,72,4,75],[4,76,5,76],[4,77,5,77],[4,78,5,78],[4,79,5,79],[4,80,5,80],[4,81,5,81],[4,82,4,85],[4,59,5,59],[4,60,5,60],[4,61,5,61],[4,62,4,65],[4,66,5,66],[4,67,5,67],[4,68,5,68],[4,69,5,69],[4,70,5,70],[4,99,5,99],[4,100,5,100],[8,1,8,17],[55,13,55,17],[55,24,55,27],[55,34,55,37],[55,44,55,47],[55,54,55,57],[55,64,55,67],[55,74,55,77],[55,84,55,87],[55,94,55,97],[4,19,5,19],[4,18,5,18],[4,86,5,86],[4,87,5,87],[4,88,5,88],[4,89,5,89],[4,90,5,90],[4,91,5,91],[4,92,4,95],[4,96,5,96],[4,97,5,97],[4,71,5,71],[57,13,57,17],[57,24,57,27],[57,34,57,37],[57,44,57,47],[57,54,57,57],[57,64,57,67],[57,74,57,77],[57,84,57,87],[57,94,57,97],[67,13,67,17],[67,24,67,27],[67,34,67,37],[67,44,67,47],[67,54,67,57],[67,64,67,67],[67,74,67,77],[67,84,67,87],[67,94,67,97],[69,13,69,17],[69,24,69,27],[69,34,69,37],[69,44,69,47],[69,54,69,57],[69,64,69,67],[69,74,69,77],[69,84,69,87],[69,94,69,97],[79,13,79,17],[79,24,79,27],[79,34,79,37],[79,44,79,47],[79,54,79,57],[79,64,79,67],[79,74,79,77],[79,84,79,87],[79,94,79,97],[81,13,81,17],[81,24,81,27],[81,34,81,37],[81,44,81,47],[81,54,81,57],[81,64,81,67],[81,74,81,77],[81,84,81,87],[81,94,81,97],[91,13,91,17],[91,24,91,27],[91,34,91,37],[91,44,91,47],[91,54,91,57],[91,64,91,67],[91,74,91,77],[91,84,91,87],[91,94,91,97],[93,13,93,17],[93,24,93,27],[93,34,93,37],[93,44,93,47],[93,54,93,57],[93,64,93,67],[93,74,93,77],[93,84,93,87],[93,94,93,97],[103,13,103,17],[103,24,103,27],[103,34,103,37],[103,44,103,47],[103,54,103,57],[103,64,103,67],[103,74,103,77],[103,84,103,87],[103,94,103,97],[105,13,105,17],[105,24,105,27],[105,34,105,37],[105,44,105,47],[105,54,105,57],[105,64,105,67],[105,74,105,77],[105,84,105,87],[105,94,105,97],[114,13,114,17],[114,24,114,27],[114,34,114,37],[114,44,114,47],[114,54,114,57],[114,64,114,67],[114,74,114,77],[114,84,114,87],[114,94,114,97],[116,13,116,17],[116,24,116,27],[116,34,116,37],[116,44,116,47],[116,54,116,57],[116,64,116,67],[116,74,116,77],[116,84,116,87],[116,94,116,97],[122,93,122,97],[124,2,124,6],[124,13,124,17],[124,23,124,27],[124,33,124,37],[124,43,124,47],[124,53,124,57],[124,63,124,67],[124,73,124,77],[124,83,124,87],[124,93,124,97],[122,2,122,6],[122,13,122,17],[122,23,122,27],[122,33,122,37],[122,43,122,47],[122,53,122,57],[122,63,122,67],[122,73,122,77],[122,83,122,87],[125,93,125,97],[126,2,126,6],[126,13,126,17],[126,23,126,27],[126,33,126,37],[126,43,126,47],[126,53,126,57],[126,63,126,67],[126,73,126,77],[126,83,126,87],[126,93,126,97],[125,2,125,6],[125,13,125,17],[125,23,125,27],[125,33,125,37],[125,43,125,47],[125,53,125,57],[125,63,125,67],[125,73,125,77],[125,83,125,87],[128,93,128,97],[129,2,129,6],[129,13,129,17],[129,23,129,27],[129,33,129,37],[129,43,129,47],[129,53,129,57],[129,63,129,67],[129,73,129,77],[129,83,129,87],[129,93,129,97],[128,2,128,6],[128,13,128,17],[128,23,128,27],[128,33,128,37],[128,43,128,47],[128,53,128,57],[128,63,128,67],[128,73,128,77],[128,83,128,87],[130,93,130,97],[132,2,132,6],[132,13,132,17],[132,24,132,27],[132,34,132,37],[132,44,132,47],[132,54,132,57],[132,64,132,67],[132,74,132,77],[132,84,132,87],[132,94,132,97],[130,2,130,6],[130,13,130,17],[130,23,130,27],[130,33,130,37],[130,43,130,47],[130,53,130,57],[130,63,130,67],[130,73,130,77],[130,83,130,87],[133,94,133,97],[134,2,134,6],[134,13,134,17],[134,24,134,27],[134,34,134,37],[134,44,134,47],[134,54,134,57],[134,64,134,67],[134,74,134,77],[134,84,134,87],[134,94,134,97],[133,2,133,6],[133,13,133,17],[133,24,133,27],[133,34,133,37],[133,44,133,47],[133,54,133,57],[133,64,133,67],[133,74,133,77],[133,84,133,87],[136,88,136,97],[137,1,137,7],[137,8,137,17],[137,18,137,27],[137,28,137,37],[137,38,137,47],[137,48,137,57],[137,58,137,67],[137,68,137,77],[137,78,137,87],[137,88,137,97],[136,1,136,7],[136,8,136,17],[136,18,136,27],[136,28,136,37],[136,38,136,47],[136,48,136,57],[136,58,136,67],[136,68,136,77],[136,78,136,87],[140,68,140,77],[140,78,140,87],[140,88,140,97],[139,1,139,7],[139,8,139,17],[139,18,139,27],[139,28,139,37],[139,38,139,47],[139,48,139,57],[139,58,139,67],[139,68,139,77],[139,78,139,87],[144,0,148,0],[144,1,144,17],[144,18,144,27],[144,28,144,37],[144,38,144,47],[144,48,144,57],[144,58,144,67],[144,68,144,77],[144,78,144,87],[147,48,147,57],[147,58,147,67],[147,68,147,77],[147,78,147,87],[144,98,148,100],[145,1,145,17],[145,18,145,27],[145,28,145,37],[145,38,145,47],[145,48,145,57],[145,58,145,67],[145,68,145,77],[145,78,145,87],[145,88,145,97],[146,1,146,17],[146,18,146,27],[146,28,146,37],[146,38,146,47],[146,48,146,57],[146,58,146,67],[146,68,146,77],[146,78,146,87],[146,88,146,97],[147,1,147,17],[147,18,147,27],[147,28,147,37],[147,38,147,47],[3,28,3,37],[3,18,3,27],[2,28,2,37],[2,18,2,27],[1,18,1,37],[147,88,147,97],[148,1,148,17],[148,18,148,27],[148,28,148,37],[148,38,148,47],[148,48,148,57],[148,58,148,67],[148,68,148,77],[148,78,148,87],[148,88,148,97],[144,88,144,97],[139,88,139,97],[140,1,140,7],[140,8,140,17],[140,18,140,27],[140,28,140,37],[140,38,140,47],[140,48,140,57],[140,58,140,67]]}
["Индекс","Наименование циклов, разделов,\r\nдисциплин, профессиональных модулей, МДК, практик","Формы промежуточной аттестации",null,null,null,null,null,"Учебная нагрузка обучающихся, ч.",null,null,null,null,null,null,null,null,null,"Распределение по курсам и семестрам",null,null,null,null,null,null,null,null,null,null,null,null,null,null,null,null,null,null,null,null,null,null,null,null,null,null,null,null,null,null,null,null,null,null,null,null,null,null,null,null,null,null,null,null,null,null,null,null,null,null,null,null,null,null,null,null,null,null,null,null,null,null,null,null,null,null,null,null,null,null,null,null,null,null,null,null,null,null,null,"ЦК","Максимальная учебная нагрузка"]
[null,null,null,null,null,null,null,null,null,null,null,null,null,null,null,null,null,null,"Курс 1",null,null,null,null,null,null,null,null,null,null,null,null,null,null,null,null,null,null,null,"Курс 2",null,null,null,null,null,null,null,null,null,null,null,null,null,null,null,null,null,null,null,"Курс 3",null,null,null,null,null,null,null,null,null,null,null,null,null,null,null,null,null,null,null,"Курс 4"]
[null,null,"Экзамены","Зачеты","Диффер. зачеты","Курсовые проекты","Курсовые работы","Другие","Максимальная","Самост.(с.р.+и.п.)","Консультации","Обязательная",null,null,null,null,"Промежут. аттестация","Индивид. проект (входит в с.р.)","Семестр 1",null,null,null,null,null,null,null,null,null,"Семестр 2",null,null,null,null,null,null,null,null,null,"Семестр 3",null,null,null,null,null,null,null,null,null,"Семестр 4",null,null,null,null,null,null,null,null,null,"Семестр 5",null,null,null,null,null,null,null,null,null,"Семестр 6",null,null,null,null,null,null,null,null,null,"Семестр 7",null,null,null,null,null,null,null,null,null,"Семестр 8"]
[null,null,null,null,null,null,null,null,null,null,null,"Всего","в том числе",null,null,null,null,null,"16 2/3 нед",null,null,null,null,null,null,null,null,null,"20 2/3 (3 ) нед",null,null,null,null,null,null,null,null,null,"14  (3 ) нед",null,null,null,null,null,null,null,null,null,"16 2/3 (5 ) нед",null,null,null,null,null,null,null,null,null,"12 2/3 (4 ) нед",null,null,null,null,null,null,null,null,null,"7 1/3 (16 ) нед",null,null,null,null,null,null,null,null,null," (16 ) нед",null,null,null,null,null,null,null,null,null,"8  (13 ) нед"]
[null,null,null,null,null,null,null,null,null,null,null,null,"Лекции, уроки","Пр. занятия","Лаб. занятия","Cеминар. занятия",null,null,"Максим.","Самост.","Консульт.","Обязательная","в том числе",null,null,null,"Промежут. аттестация","Индивид. проект","Максим.","Самост.","Консульт.","Обязательная","в том числе",null,null,null,"Промежут. аттестация","Индивид. проект","Максим.","Самост.","Консульт.","Обязательная","в том числе",null,null,null,"Промежут. аттестация","Индивид. проект","Максим.","Самост.","Консульт.","Обязательная","в том числе",null,null,null,"Промежут. аттестация","Индивид. проект","Максим.","Самост.","Консульт.","Обязательная","в том числе",null,null,null,"Промежут. аттестация","Индивид. проект","Максим.","Самост.","Консульт.","Обязательная","в том числе",null,null,null,"Промежут. аттестация","Индивид. проект","Максим.","Самост.","Консульт.","Обязательная","в том числе",null,null,null,"Промежут. аттестация","Индивид. проект","Максим.","Самост.","Консульт.","Обязательная","в том числе",null,null,null,"Промежут. аттестация","Индивид. проект",null,"Обяз. часть","Вар. часть"]
[null,null,null,null,null,null,null,null,null,null,null,null,null,null,null,null,null,null,null,null,null,null,"Лекции, уроки","Пр.занятия","Лаб. занятия","Семинар. занятия",null,null,null,null,null,null,"Лекции, уроки","Пр.занятия","Лаб. занятия","Семинар. занятия",null,null,null,null,null,null,"Лекции, уроки","Пр.занятия","Лаб. занятия","Семинар. занятия",null,null,null,null,null,null,"Лекции, уроки","Пр.занятия","Лаб. занятия","Семинар. занятия",null,null,null,null,null,null,"Лекции, уроки","Пр.занятия","Лаб. занятия","Семинар. занятия",null,null,null,null,null,null,"Лекции, уроки","Пр.занятия","Лаб. занятия","Семинар. занятия",null,null,null,null,null,null,"Лекции, уроки","Пр.занятия","Лаб. занятия","Семинар. занятия",null,null,null,null,null,null,"Лекции, уроки","Пр.занятия","Лаб. занятия","Семинар. занятия"]
["1","2","3","4","5","6","7","8","9","11","13","14","16","17","18","19","23","24","25","26","27","28","29","30","31","32","36","37","38","39","40","41","42","43","44","45","49","50","51","52","53","54","55","56","57","58","62","63","64","65","66","67","68","69","70","71","75","76","77","78","79","80","81","82","83","84","88","89","90","91","92","93","94","95","96","97","101","102","103","104","105","106","107","108","109","110","114","115","116","117","118","119","120","121","122","123","127","128",155,"156","157"]
[]
[null,"Итого час/нед (с учетом консультаций в период обучения по циклам)",null,null,null,null,null,null,null,null,null,null,null,null,null,null,null,null,"36",null,null,"34.92",null,null,null,null,null,null,"36",null,null,"35.49",null,null,null,null,null,null,"36",null,null,"35.29",null,null,null,null,null,null,"36",null,null,"35.82",null,null,null,null,null,null,"36",null,null,"33.48",null,null,null,null,null,null,"36",null,null,"34.89",null,null,null,null,null,null,"36",null,null,"36",null,null,null,null,null,null,"36",null,null,"34.52"]
["ОД","ОБЩЕОБРАЗОВАТЕЛЬНЫЙ ЦИКЛ","4",3,12,null,null,null,{"$f":"I12+I23+I28","v":2134},{"$f":"J12+J23+J28","v":30},28,2052,1369,658,25,0,24,30,440,0,2,436,261,172,3,0,0,2,632,0,2,628,379,244,5,0,0,2,392,0,0,392,271,116,5,0,0,0,502,0,20,440,334,94,12,0,24,18,168,0,4,156,124,32,0,0,0,8,0,0,0,0,0,{"$f":"BV12+BV23+BV28","v":0},0,0,0,0,0,0,0,0,0,0,0,0,0,0,0,0,0,0,0,0,0,0,0,0]
[]
["ОДБ","Базовые дисциплины","2","3",7,null,null,null,{"$f":"I13+I14+I15+I16+I17+I18+I19+I20+I21","v":1330},{"$f":"J13+J14+J15+J16+J17+J18+J19+J20+J21","v":0},8,1310,775,524,11,0,12,0,313,0,0,313,172,138,3,0,0,0,432,0,0,432,243,184,5,0,0,0,264,0,0,264,151,112,1,0,0,0,321,0,8,301,209,90,2,0,12,0,0,0,0,0,0,0,0,0,0,0,0,0,0,0,0,{"$f":"BV13+BV14+BV15+BV16+BV17+BV18+BV19+BV20+BV21","v":0},0,0,0,0,0,0,0,0,0,0,0,0,0,0,0,0,0,0,0,0,0,0,0,0]
["ОДБ.01","Русский язык","4",null,null,null,null,null,{"$f":"J13+K13+Q13+L13","v":88},null,"4","78","78",null,null,null,"6",null,"17",null,null,"17",17,null,null,null,null,null,"22",null,null,"22",22,null,null,null,null,null,"18",null,null,"18",18,null,null,null,null,null,"31",null,"4","21",21,null,null,null,6]
["ОДБ.02","Литература",null,null,"4",null,null,null,{"$f":"J14+K14+Q14+L14","v":236},null,null,"236","236",null,null,null,null,null,"50",null,null,"50",50,null,null,null,null,null,"79",null,null,"79",79,null,null,null,null,null,"56",null,null,"56",56,null,null,null,null,null,"51",null,null,"51",51]
["ОДБ.03","Иностранный язык",null,null,"4",null,null,null,156,null,null,"156","16","140",null,null,null,null,"34",null,null,"34",4,30,null,null,null,null,"46",null,null,"46",4,42,null,null,null,null,"42",null,null,"42",4,38,null,null,null,null,"34",null,null,"34",4,30]
["ОДБ.04","Математика","4",null,null,null,null,null,260,null,"4","250","76","174",null,null,"6",null,"62",null,null,"62",18,44,null,null,null,null,"80",null,null,"80",24,56,null,null,null,null,"50",null,null,"50",16,34,null,null,null,null,"68",null,"4","58",18,40,null,null,6]
["ОДБ.05","История",null,null,"4",null,null,null,156,null,null,"156","156",null,null,null,null,null,"34",null,null,"34",34,null,null,null,null,null,"46",null,null,"46",46,null,null,null,null,null,"28",null,null,"28",28,null,null,null,null,null,"48",null,null,"48",48]
["ОДБ.06","Основы безопасности жизнедеятельности",null,null,"2",null,null,null,72,null,null,"72","40","32",null,null,null,null,"32",null,null,"32",20,12,null,null,null,null,"40",null,null,"40",20,20]
["ОДБ.07","Физика",null,null,"4",null,null,null,156,null,null,"156","132","13","11",null,null,null,"34",null,null,"34",27,4,3,null,null,null,"58",null,null,"58",46,7,5,null,null,null,"28",null,null,"28",27,null,1,null,null,null,"36",null,null,"36",32,2,2]
["ОДБ.08","Астрономия",null,null,4,null,null,null,35,null,null,"35","35",null,null,null,null,null,null,null,null,null,null,null,null,null,null,null,null,null,null,null,null,null,null,null,null,null,null,null,null,null,null,null,null,null,null,null,"35",null,null,"35",35]
["ОДБ.09","Физическая культура",null,"1-3","4",null,null,null,171,null,null,"171","6","165",null,null,null,null,"50",null,null,"50",2,48,null,null,null,null,"61",null,null,"61",2,59,null,null,null,null,"42",null,null,"42",2,40,null,null,null,null,"18",null,null,"18",null,18]
[]
["ОДП","Профильные дисциплины","2",null,"1",null,null,null,{"$f":"I24+I25+I26","v":496},{"$f":"J24+J25+J26","v":0},6,478,362,102,14,0,12,0,89,0,0,89,55,34,0,0,0,0,152,0,0,152,92,60,0,0,0,0,98,0,0,98,90,4,4,0,0,0,157,0,6,139,125,4,10,0,12,0,0,0,0,0,0,0,0,0,0,0,0,0,0,0,0,{"$f":"BV24+BV25+BV26","v":0},0,0,0,0,0,0,0,0,0,0,0,0,0,0,0,0,0,0,0,0,0,0,0,0]
["ОДП.01","Информатика",null,null,"2",null,null,null,{"$f":"J24+K24+L24+Q24","v":100},null,null,"100","34","66",null,null,null,null,"52",null,null,"52",22,30,null,null,null,null,"48",null,null,"48",12,36]
["ОДП.02","Химия","4",null,null,null,null,null,{"$f":"J25+K25+L25+Q25","v":232},null,"4","222","182","26","14",null,"6",null,"37",null,null,"37",33,4,null,null,null,null,"63",null,null,"63",43,20,null,null,null,null,"56",null,null,"56",50,2,4,null,null,null,"76",null,"4","66",56,null,10,null,6]
["ОДП.03","Биология","4",null,null,null,null,null,164,null,"2","156","146","10",null,null,"6",null,null,null,null,null,null,null,null,null,null,null,"41",null,null,"41",37,4,null,null,null,null,"42",null,null,"42",40,2,null,null,null,null,"81",null,"2","73",69,4,null,null,6]
[]
["ПОО","Предлагаемые ОО",null,null,4,null,null,null,{"$f":"I29+I30+I31+I32","v":308},{"$f":"J29+J30+J31+J32","v":30},14,264,232,32,0,0,0,30,38,0,2,34,34,0,0,0,0,2,48,0,2,44,44,0,0,0,0,2,30,0,0,30,30,0,0,0,0,0,24,0,6,0,0,0,0,0,0,18,168,0,4,156,124,32,0,0,0,8,0,0,0,0,0,{"$f":"BV29+BV30+BV31+BV32","v":0},0,0,0,0,0,0,0,0,0,0,0,0,0,0,0,0,0,0,0,0,0,0,0,0,null,"308"]
["ПОО.01","География / Природа родного края",null,null,"5",null,null,null,{"$f":"J29+K29+L29+Q29","v":78},null,null,"78","56","22",null,null,null,null,null,null,null,null,null,null,null,null,null,null,null,null,null,null,null,null,null,null,null,null,null,null,null,null,null,null,null,null,null,null,null,null,null,null,null,null,null,null,null,null,"78",null,null,"78",56,22,null,null,null,null,null,null,null,null,null,null,null,null,null,null,null,null,null,null,null,null,null,null,null,null,null,null,null,null,null,null,null,null,null,null,null,"78"]
["ПОО.02","Экология / Экологические основы природопользования",null,null,"5",null,null,null,{"$f":"J30+K30+L30+Q30","v":78},null,null,"78","68","10",null,null,null,null,null,null,null,null,null,null,null,null,null,null,null,null,null,null,null,null,null,null,null,null,null,null,null,null,null,null,null,null,null,null,null,null,null,null,null,null,null,null,null,null,"78",null,null,"78",68,10,null,null,null,null,null,null,null,null,null,null,null,null,null,null,null,null,null,null,null,null,null,null,null,null,null,null,null,null,null,null,null,null,null,null,null,"78"]
["ПОО.03","Обществознание / История родного края",null,null,"3",null,null,null,108,null,null,"108","108",null,null,null,null,null,"34",null,null,"34",34,null,null,null,null,null,"44",null,null,"44",44,null,null,null,null,null,"30",null,null,"30",30,null,null,null,null,null,null,null,null,null,null,null,null,null,null,null,null,null,null,null,null,null,null,null,null,null,null,null,null,null,null,null,null,null,null,null,null,null,null,null,null,null,null,null,null,null,null,null,null,null,null,null,null,null,null,null,null,"108"]
["ПОО.04","Индивидуальный проект / Основы проектной деятельности",null,null,5,null,null,null,44,"30","14",null,null,null,null,null,null,"30","4",null,"2",null,null,null,null,null,null,2,"4",null,"2",null,null,null,null,null,null,2,null,null,null,null,null,null,null,null,null,null,"24",null,"6",null,null,null,null,null,null,18,"12",null,"4",null,null,null,null,null,null,8,null,null,null,null,null,null,null,null,null,null,null,null,null,null,null,null,null,null,null,null,null,null,null,null,null,null,null,null,null,null,null,"44"]
["ПП","ПРОФЕССИОНАЛЬНАЯ ПОДГОТОВКА","18",12,"13",null,null,null,{"$f":"I35+I49","v":3518},{"$f":"J35+J49","v":70},92,3236,600,656,0,0,120,0,172,8,12,146,80,66,0,0,6,0,232,6,8,212,44,60,0,0,6,0,220,6,6,208,48,52,0,0,0,0,326,8,12,300,74,82,0,0,6,0,444,13,23,402,112,146,0,0,6,0,828,15,11,778,102,{"$f":"BV35+BV49","v":136},0,0,24,0,576,0,0,{"$f":"CD35+CD49","v":540},0,0,0,0,36,0,720,14,20,650,140,114,0,0,36,0,null,2620,"898"]
[]
["ОПЦ","Общепрофессиональный цикл","1",4,"7",null,null,null,{"$f":"I36+I37+I38+I39+I40+I41+I42+I43+I44+I45+I46+I47","v":534},{"$f":"J36+J37+J38+J39+J40+J41+J42+J43+J44+J45+J46+J47","v":32},30,466,232,234,0,0,6,0,172,8,12,146,80,66,0,0,6,0,0,0,0,0,0,0,0,0,0,0,0,0,0,0,0,0,0,0,0,0,52,4,2,46,22,24,0,0,0,0,128,7,7,114,48,66,0,0,0,0,98,7,5,86,34,{"$f":"BV36+BV37+BV38+BV39+BV40+BV41+BV42+BV43+BV44+BV45+BV46+BV47","v":52},0,0,0,0,0,0,0,0,0,0,0,0,0,0,84,6,4,74,48,26,0,0,0,0,null,"368","166"]
["ОП.01","Основы микробиологии, физиологии питания, санитарии и гигиены",null,null,"1",null,null,null,{"$f":"J36+K36+L36+Q36","v":46},"2","4","40","22","18",null,null,null,null,"46","2","4","40",22,18,null,null,null,null,null,null,null,null,null,null,null,null,null,null,null,null,null,null,null,null,null,null,null,null,null,null,null,null,null,null,null,null,null,null,null,null,null,null,null,null,null,null,null,null,null,null,null,null,null,null,null,null,null,null,null,null,null,null,null,null,null,null,null,null,null,null,null,null,null,null,null,null,null,null,3,"36","10"]
["ОП.02","Основы товароведения продовольственных товаров",null,null,"1",null,null,null,{"$f":"J37+K37+L37+Q37","v":46},"2","4","40","22","18",null,null,null,null,"46","2","4","40",22,18,null,null,null,null,null,null,null,null,null,null,null,null,null,null,null,null,null,null,null,null,null,null,null,null,null,null,null,null,null,null,null,null,null,null,null,null,null,null,null,null,null,null,null,null,null,null,null,null,null,null,null,null,null,null,null,null,null,null,null,null,null,null,null,null,null,null,null,null,null,null,null,null,null,null,3,"36","10"]
["ОП.03","Техническое оснащение и организация рабочего места","1",null,null,null,null,null,80,"4","4","66","36","30",null,null,"6",null,"80","4","4","66",36,30,null,null,6,null,null,null,null,null,null,null,null,null,null,null,null,null,null,null,null,null,null,null,null,null,null,null,null,null,null,null,null,null,null,null,null,null,null,null,null,null,null,null,null,null,null,null,null,null,null,null,null,null,null,null,null,null,null,null,null,null,null,null,null,null,null,null,null,null,null,null,null,null,null,null,3,"44","36"]
["ОП.04","Экономические и правовые основы профессиональной деятельности",null,null,"5",null,null,null,36,2,2,"32","24","8",null,null,null,null,null,null,null,null,null,null,null,null,null,null,null,null,null,null,null,null,null,null,null,null,null,null,null,null,null,null,null,null,null,null,null,null,null,null,null,null,null,null,null,null,"36","2","2","32",24,8,null,null,null,null,null,null,null,null,null,null,null,null,null,null,null,null,null,null,null,null,null,null,null,null,null,null,null,null,null,null,null,null,null,null,3,"36"]
["ОП.05","Основы калькуляции и учета",null,null,"5",null,null,null,46,"2","4","40","24","16",null,null,null,null,null,null,null,null,null,null,null,null,null,null,null,null,null,null,null,null,null,null,null,null,null,null,null,null,null,null,null,null,null,null,null,null,null,null,null,null,null,null,null,null,"46","2","4","40",24,16,null,null,null,null,null,null,null,null,null,null,null,null,null,null,null,null,null,null,null,null,null,null,null,null,null,null,null,null,null,null,null,null,null,null,3,"32","14"]
["ОП.06","Охрана труда",null,null,"4",null,null,null,36,"2","2","32","22","10",null,null,null,null,null,null,null,null,null,null,null,null,null,null,null,null,null,null,null,null,null,null,null,null,null,null,null,null,null,null,null,null,null,null,"36","2","2","32",22,10,null,null,null,null,null,null,null,null,null,null,null,null,null,null,null,null,null,null,null,null,null,null,null,null,null,null,null,null,null,null,null,null,null,null,null,null,null,null,null,null,null,null,null,null,3,"36"]
["ОП.07","Иностранный язык в профессиональной деятельности",null,null,"6",null,null,null,36,"2","2","32",null,"32",null,null,null,null,null,null,null,null,null,null,null,null,null,null,null,null,null,null,null,null,null,null,null,null,null,null,null,null,null,null,null,null,null,null,null,null,null,null,null,null,null,null,null,null,"20","1","1","18",null,18,null,null,null,null,"16","1","1","14",null,14,null,null,null,null,null,null,null,null,null,null,null,null,null,null,null,null,null,null,null,null,null,null,null,null,1,"36"]
["ОП.08","Безопасность жизнедеятельности",null,null,"8",null,null,null,36,"2","2","32","26","6",null,null,null,null,null,null,null,null,null,null,null,null,null,null,null,null,null,null,null,null,null,null,null,null,null,null,null,null,null,null,null,null,null,null,null,null,null,null,null,null,null,null,null,null,null,null,null,null,null,null,null,null,null,null,null,null,null,null,null,null,null,null,null,null,null,null,null,null,null,null,null,null,null,null,"36","2","2","32",26,6,null,null,null,null,1,"36"]
["ОП.09","Физическая культура",null,8,null,null,null,null,76,"8",null,"68",null,"68",null,null,null,null,null,null,null,null,null,null,null,null,null,null,null,null,null,null,null,null,null,null,null,null,null,null,null,null,null,null,null,null,null,null,"16","2",null,"14",null,14,null,null,null,null,"26","2",null,"24",null,24,null,null,null,null,"18","2",null,"16",null,16,null,null,null,null,null,null,null,null,null,null,null,null,null,null,"16","2",null,"14",null,14,null,null,null,null,null,"76"]
["ОП.10","Русский язык и культура речи",null,"6",null,null,null,null,32,"2","2","28","22","6",null,null,null,null,null,null,null,null,null,null,null,null,null,null,null,null,null,null,null,null,null,null,null,null,null,null,null,null,null,null,null,null,null,null,null,null,null,null,null,null,null,null,null,null,null,null,null,null,null,null,null,null,null,null,"32","2","2","28",22,6,null,null,null,null,null,null,null,null,null,null,null,null,null,null,null,null,null,null,null,null,null,null,null,null,1,null,"32"]
["ОП.11","Основы эффективного поведения на рынке труда",null,"8",null,null,null,null,32,"2","2","28","22","6",null,null,null,null,null,null,null,null,null,null,null,null,null,null,null,null,null,null,null,null,null,null,null,null,null,null,null,null,null,null,null,null,null,null,null,null,null,null,null,null,null,null,null,null,null,null,null,null,null,null,null,null,null,null,null,null,null,null,null,null,null,null,null,null,null,null,null,null,null,null,null,null,null,null,"32","2","2","28",22,6,null,null,null,null,1,null,"32"]
["ОП.12","Основы предпринимательской деятельности",null,"6",null,null,null,null,32,"2","2","28","12","16",null,null,null,null,null,null,null,null,null,null,null,null,null,null,null,null,null,null,null,null,null,null,null,null,null,null,null,null,null,null,null,null,null,null,null,null,null,null,null,null,null,null,null,null,null,null,null,null,null,null,null,null,null,null,"32","2","2","28",12,16,null,null,null,null,null,null,null,null,null,null,null,null,null,null,null,null,null,null,null,null,null,null,null,null,3,null,"32"]
[]
["ПЦ","Профессиональный цикл","17","8","6",null,null,null,{"$f":"I51+I63+I75+I87+I99+I111","v":2984},{"$f":"J51+J63+J75+J87+J99+J111","v":38},{"$f":"K51+K63+K75+K87+K99+K111","v":62},2770,{"$f":"M51+M63+M75+M87+M99+M111","v":368},422,0,0,114,0,0,0,0,0,0,0,0,0,0,0,232,6,8,212,44,60,0,0,6,0,220,6,6,208,48,52,0,0,0,0,274,4,10,254,52,58,0,0,6,0,316,6,16,288,64,80,0,0,6,0,730,8,6,692,68,{"$f":"BV51+BV63+BV75+BV87+BV99+BV111","v":84},0,0,24,0,576,0,0,540,0,0,0,0,36,0,636,8,16,576,92,88,0,0,36,0,null,{"$f":"CV51+CV63+CV75+CV87+CV99","v":2252},"732"]
[]
["ПМ.01","Приготовление и подготовка к реализации полуфабрикатов для блюд, кулинарных изделий разнообразного ассортимента","3","1","1",null,null,null,{"$f":"J51+K51+L51+Q51","v":376},{"$f":"T51+AD51+BR51+CB51","v":6},{"$f":"U51+AE51+AO51+AY51+BS51+CC51","v":8},{"$f":"V51+AF51+AP51+AZ51+BJ51+BT51+CD51","v":356},{"$f":"W51+AG51+AQ51+BA51+BK51+BU51+CE51","v":44},{"$f":"X51+AH51+AR51+BB51+BL51+BV51+CF51","v":60},{"$f":"Y51+AI51+AS51+BC51+BM51+BW51+CG51","v":0},0,6,0,{"$f":"S53+S54","v":0},0,0,0,0,0,0,0,0,0,{"$f":"AD51+AE51+AF51+AK51","v":232},6,8,{"$f":"AF53+AF54+AF56+AF58","v":212},44,60,0,0,{"$f":"AK53+AK54","v":6},0,0,0,0,0,0,0,0,0,0,0,0,0,0,0,0,0,0,0,0,0,0,0,0,0,0,0,0,0,0,0,{"$f":"BQ53+BQ54+BT51","v":108},0,0,{"$f":"BT53+BT54+BT56+BT58","v":108},0,{"$f":"BV53+BV54","v":0},0,0,0,0,{"$f":"CA53+54:54+CD51","v":36},0,0,{"$f":"CD53+CD54+CD56+CD58","v":36},0,0,0,0,0,0,0,0,0,0,0,0,0,0,0,0,null,291,"85"]
[]
["МДК.01.01","Организация приготовления, подготовки к реализации и хранения кулинарных полуфабрикатов","2",null,null,null,null,null,"36","2","3","28","10","18",null,null,"3",null,null,null,null,null,null,null,null,null,null,null,"36","2","3","28",10,18,null,null,3,null,null,null,null,null,null,null,null,null,null,null,null,null,null,null,null,null,null,null,null,null,null,null,null,null,null,null,null,null,null,null,null,null,null,null,null,null,null,null,null,null,null,null,null,null,null,null,null,null,null,null,null,null,null,null,null,null,null,null,null,null,3,"36"]
["МДК.01.02","Процессы приготовления, подготовки к реализации кулинарных полуфабрикатов","2",null,null,null,null,null,"88","4","5","76","34","42",null,null,"3",null,null,null,null,null,null,null,null,null,null,null,"88","4","5","76",34,42,null,null,3,null,null,null,null,null,null,null,null,null,null,null,null,null,null,null,null,null,null,null,null,null,null,null,null,null,null,null,null,null,null,null,null,null,null,null,null,null,null,null,null,null,null,null,null,null,null,null,null,null,null,null,null,null,null,null,null,null,null,null,null,null,3,"75","13"]
[]
["УП.01.01","Учебная практика по приготовлению и подготовке к реализации полуфабрикатов для блюд, кулинарных изделий разнообразного ассортимента",null,6,null,"РП",null,"час","144",null,null,"144","нед","4 ",null,null,null,null,"час",null,null,null,"нед",null,null,null,null,null,"час",null,null,"108","нед","3",null,null,null,null,"час",null,null,null,"нед",null,null,null,null,null,"час",null,null,null,"нед",null,null,null,null,null,"час",null,null,null,"нед",null,null,null,null,null,"час",null,null,"36","нед","1",null,null,null,null,"час",null,null,null,"нед",null,null,null,null,null,"час",null,null,null,"нед",null,null,null,null,null,3,"108","36"]
[]
["ПП.01.01","Производственная практика по приготовлению и подготовке к реализации полуфабрикатов для блюд, кулинарных изделий разнообразного ассортимента",null,null,"7","РП",null,"час",108,null,null,108,"нед",3,null,null,null,null,"час",null,null,null,"нед",null,null,null,null,null,"час",null,null,null,"нед",null,null,null,null,null,"час",null,null,null,"нед",null,null,null,null,null,"час",null,null,null,"нед",null,null,null,null,null,"час",null,null,null,"нед",null,null,null,null,null,"час",null,null,72,"нед",2,null,null,null,null,"час",null,null,"36","нед","1",null,null,null,null,"час",null,null,null,"нед",null,null,null,null,null,3,72,"36"]
[]
["ПM.01.ЭК","Квалификационный экзамен","7"]
[null,"Всего часов по МДК",null,null,null,null,null,null,{"$f":"I53+I54","v":124},null,null,{"$f":"L53+L54","v":104}]
[]
["ПМ.02","Приготовление, оформление и подготовка к реализации горячих блюд, кулинарных изделий, закусок разнообразного ассортимента","3","3","1",null,null,null,{"$f":"J63+K63+L63+Q63","v":902},{"$f":"T63+AD63+AN63+AX63+BH63+BR63+CB63","v":10},{"$f":"U63+AE63+AO63+AY63+BI63+BS63+CC63","v":16},{"$f":"V63+AF63+AP63+AZ63+BJ63+BT63+CD63","v":858},{"$f":"W63+AG63+AQ63+BA63+BK63+BU63+CE63","v":100},110,0,0,{"$f":"AA63+AK63+AU63+BE63+BO63+BY63+CI63","v":18},0,{"$f":"S65+S66","v":0},0,0,0,0,0,0,0,0,0,0,0,0,0,0,0,0,0,0,0,{"$f":"AM65+AM66+AP68+AP70","v":220},6,6,{"$f":"AP65+AP66+AP68+AP70","v":208},48,52,0,0,0,0,{"$f":"AW65+AW66+AZ68+AZ70","v":274},4,10,{"$f":"AZ65+AZ66+AZ68+AZ70","v":254},52,58,0,0,6,0,0,0,0,0,0,0,0,0,0,0,{"$f":"BQ65+BQ66+BT68+BT70","v":144},0,0,{"$f":"BT65+BT66+BT68+BT70","v":144},0,{"$f":"BV65+BV66","v":0},0,0,0,0,{"$f":"CA65+CA66+CD68+CD70+CI63","v":264},0,0,{"$f":"CD65+CD66+CD68+CD70","v":252},0,0,0,0,{"$f":"CI65+CI66+CI72","v":12},0,0,0,0,0,0,0,0,0,0,0,null,718,"184"]
[]
["МДК.02.01","Организация приготовления, подготовки к реализации и хранения горячих блюд, кулинарных изделий и закусок разнообразного ассортимента","4","3",null,null,null,null,"36","2","3",28,"12","16",null,null,"3",null,null,null,null,null,null,null,null,null,null,null,null,null,null,null,null,null,null,null,null,null,"32","2","2","28",12,16,null,null,null,null,"4",null,"1",null,null,null,null,null,3,null,null,null,null,null,null,null,null,null,null,null,null,null,null,null,null,null,null,null,null,null,null,null,null,null,null,null,null,null,null,null,null,null,null,null,null,null,null,null,null,null,3,"36"]
["МДК.02.02","Процессы приготовления, подготовки к реализации горячих блюд, кулинарных изделий и закусок разнообразного ассортимента","4","3",null,null,null,null,"206","8","13","182","88","94",null,null,"3",null,null,null,null,null,null,null,null,null,null,null,null,null,null,null,null,null,null,null,null,null,"80","4","4","72",36,36,null,null,null,null,126,"4","9","110",52,58,null,null,3,null,null,null,null,null,null,null,null,null,null,null,null,null,null,null,null,null,null,null,null,null,null,null,null,null,null,null,null,null,null,null,null,null,null,null,null,null,null,null,null,null,3,"130","76"]
[]
["УП.02.01","Учебная практика по приготовлению, оформлению и подготовке к реализации горячих блюд, кулинарных изделий, закусок разнообразного ассортимента",null,6,null,"РП",null,"час",288,null,null,288,"нед",8,null,null,null,null,"час",null,null,null,"нед",null,null,null,null,null,"час",null,null,null,"нед",null,null,null,null,null,"час",null,null,"108","нед","3",null,null,null,null,"час",null,null,144,"нед",4,null,null,null,null,"час",null,null,null,"нед",null,null,null,null,null,"час",null,null,"36","нед","1",null,null,null,null,"час",null,null,null,"нед",null,null,null,null,null,"час",null,null,null,"нед",null,null,null,null,null,3,252,"36"]
[]
["ПП.02.01","Производственная практика по приготовлению, оформлению и подготовке к реализации горячих блюд, кулинарных изделий, закусок разнообразного ассортимента",null,null,"7","РП",null,"час",360,null,null,360,"нед",10,null,null,null,null,"час",null,null,null,"нед",null,null,null,null,null,"час",null,null,null,"нед",null,null,null,null,null,"час",null,null,null,"нед",null,null,null,null,null,"час",null,null,null,"нед",null,null,null,null,null,"час",null,null,null,"нед",null,null,null,null,null,"час",null,null,"108","нед","3",null,null,null,null,"час",null,null,252,"нед",7,null,null,null,null,"час",null,null,null,"нед",null,null,null,null,null,3,288,"72"]
[]
["ПM.02.ЭК","Квалификационный экзамен","7",null,null,null,null,null,"12",null,null,null,null,null,null,null,"12",null,null,null,null,null,null,null,null,null,null,null,null,null,null,null,null,null,null,null,null,null,null,null,null,null,null,null,null,null,null,null,null,null,null,null,null,null,null,null,null,null,null,null,null,null,null,null,null,null,null,null,null,null,null,null,null,null,null,null,null,null,"12",null,null,null,null,null,null,null,"12",null,null,null,null,null,null,null,null,null,null,null,null,"12"]
[null,"Всего часов по МДК",null,null,null,null,null,null,{"$f":"I65+I66","v":242},null,null,{"$f":"L65+L66","v":210}]
[]
["ПМ.03","Приготовление, оформление и подготовка к реализации холодных блюд, кулинарных изделий, закусок разнообразного ассортимента","3","1","1",null,null,null,{"$f":"J75+K75+L75+Q75","v":508},{"$f":"T75+AD75+AN75+AX75+BH75+BR75+CB75+CL75","v":6},{"$f":"U75+AE75+AO75+AY75+BI75+BS75+CC75+CM75","v":16},468,64,80,0,0,18,0,{"$f":"S77+S78","v":0},0,0,0,0,0,0,0,0,0,0,0,0,0,0,0,0,0,0,0,0,0,0,0,0,0,0,0,0,0,0,0,0,0,0,0,0,0,0,0,{"$f":"BG77+BG78+BJ80+BJ82","v":316},6,16,{"$f":"BJ77+BJ78+BJ80+BJ82","v":288},64,80,0,0,6,0,{"$f":"BQ77+BQ78+BT80+BT82+BZ75","v":36},0,0,{"$f":"BT77+BT78+BT80+BT82","v":36},0,{"$f":"BV77+BV78","v":0},0,0,0,0,{"$f":"CA77+CA78+CI75+CD80+CD82","v":156},0,0,{"$f":"CD77+CD78+CD80+CD82","v":144},0,0,0,0,{"$f":"CI77+CI78+CI84","v":12},0,0,0,0,0,0,0,0,0,0,0,null,"401","107"]
[]
["МДК.03.01","Организация приготовления, подготовки к реализации и хранения холодных блюд, кулинарных изделий и закусок разнообразного ассортимента","5",null,null,null,null,null,"36","2","4","28","12","16",null,null,"2",null,null,null,null,null,null,null,null,null,null,null,null,null,null,null,null,null,null,null,null,null,null,null,null,null,null,null,null,null,null,null,null,null,null,null,null,null,null,null,null,null,"36","2","4","28",12,16,null,null,2,null,null,null,null,null,null,null,null,null,null,null,null,null,null,null,null,null,null,null,null,null,null,null,null,null,null,null,null,null,null,null,3,"36"]
["МДК.03.02","Процессы приготовления, подготовки к реализации холодных блюд, кулинарных изделий и закусок разнообразного ассортимента","5",null,null,null,null,null,"136","4","12","116","52","64",null,null,"4",null,null,null,null,null,null,null,null,null,null,null,null,null,null,null,null,null,null,null,null,null,null,null,null,null,null,null,null,null,null,null,null,null,null,null,null,null,null,null,null,null,"136","4","12","116",52,64,null,null,4,null,null,null,null,null,null,null,null,null,null,null,null,null,null,null,null,null,null,null,null,null,null,null,null,null,null,null,null,null,null,null,3,"101","35"]
[]
["УП.03.01","Учебная практика по приготовлению, оформлению и подготовке к реализации холодных блюд, кулинарных изделий, закусок разнообразного ассортимента",null,6,null,"РП",null,"час","180",null,null,"180","нед","5 ",null,null,null,null,"час",null,null,null,"нед",null,null,null,null,null,"час",null,null,null,"нед",null,null,null,null,null,"час",null,null,null,"нед",null,null,null,null,null,"час",null,null,null,"нед",null,null,null,null,null,"час",null,null,"144","нед","4",null,null,null,null,"час",null,null,"36","нед","1",null,null,null,null,"час",null,null,null,"нед",null,null,null,null,null,"час",null,null,null,"нед",null,null,null,null,null,3,"144","36"]
[]
["ПП.03.01","Производственная практика по приготовлению, оформлению и подготовке к реализации холодных блюд, кулинарных изделий, закусок разнообразного ассортимента",null,null,"7","РП",null,"час",144,null,null,"144","нед","4 ",null,null,null,null,"час",null,null,null,"нед",null,null,null,null,null,"час",null,null,null,"нед",null,null,null,null,null,"час",null,null,null,"нед",null,null,null,null,null,"час",null,null,null,"нед",null,null,null,null,null,"час",null,null,null,"нед",null,null,null,null,null,"час",null,null,null,"нед",null,null,null,null,null,"час",null,null,"144","нед","4",null,null,null,null,"час",null,null,null,"нед",null,null,null,null,null,3,"108","36"]
[]
["ПM.03.ЭК","Квалификационный экзамен","7",null,null,null,null,null,"12",null,null,null,null,null,null,null,"12",null,null,null,null,null,null,null,null,null,null,null,null,null,null,null,null,null,null,null,null,null,null,null,null,null,null,null,null,null,null,null,null,null,null,null,null,null,null,null,null,null,null,null,null,null,null,null,null,null,null,null,null,null,null,null,null,null,null,null,null,null,"12",null,null,null,null,null,null,null,"12",null,null,null,null,null,null,null,null,null,null,null,null,"12"]
[null,"Всего часов по МДК",null,null,null,null,null,null,{"$f":"I77+I78","v":172},null,null,{"$f":"L77+L78","v":144}]
[]
["ПМ.04","Приготовление, оформление и подготовка к реализации холодных и горячих сладких блюд, десертов, напитков разнообразного ассортимента","3","1","1",null,null,null,{"$f":"J87+K87+L87+Q87","v":428},{"$f":"T87+AD87+AN87+AX87+BH87+BR87+CB87+CL87","v":4},{"$f":"U87+AE87+AO87+AY87+BI87+BS87+CC87+CM87","v":2},404,52,64,0,0,18,0,{"$f":"S89+S90","v":0},0,0,0,0,0,0,0,0,0,0,0,0,0,0,0,0,0,0,0,0,0,0,0,0,0,0,0,0,0,0,0,0,0,0,0,0,0,0,0,0,0,0,0,0,0,0,0,0,0,{"$f":"BR87+BS87+BT87+BY87","v":308},4,2,{"$f":"BT89+BT90+BT92+BT94","v":296},52,{"$f":"BV89+BV90","v":64},0,0,6,0,{"$f":"CB87+CC87+CD87+CI87","v":120},0,0,{"$f":"CD89+CD90+CD92+CD94","v":108},0,0,0,0,{"$f":"CI89+CI90+CI96","v":12},0,0,0,0,0,0,0,0,0,0,0,null,"324","104"]
[]
["МДК.04.01","Организация процессов приготовления, подготовки к реализации и хранения холодных и горячих десертов, напитков сложного ассортимента","6",null,null,null,null,null,"32","2",null,"28","12","16",null,null,"2",null,null,null,null,null,null,null,null,null,null,null,null,null,null,null,null,null,null,null,null,null,null,null,null,null,null,null,null,null,null,null,null,null,null,null,null,null,null,null,null,null,null,null,null,null,null,null,null,null,null,null,"32","2",null,"28",12,16,null,null,2,null,null,null,null,null,null,null,null,null,null,null,null,null,null,null,null,null,null,null,null,null,3,"32"]
["МДК.04.02","Процессы приготовления и подготовки к реализации холодных и горячих сладких блюд, десертов разнообразного ассортимента",6,null,null,null,null,null,"96","2","2","88","40","48",null,null,"4",null,null,null,null,null,null,null,null,null,null,null,null,null,null,null,null,null,null,null,null,null,null,null,null,null,null,null,null,null,null,null,null,null,null,null,null,null,null,null,null,null,null,null,null,null,null,null,null,null,null,null,"96","2","2","88",40,48,null,null,4,null,null,null,null,null,null,null,null,null,null,null,null,null,null,null,null,null,null,null,null,null,3,"64","32"]
[]
["УП.04.01","Учебная практика по приготовлению, оформлению и подготовке к реализации холодных и горячих сладких блюд, десертов, напитков разнообразного ассортимента",null,"6",null,"РП",null,"час","180",null,null,"180","нед","5 ",null,null,null,null,"час",null,null,null,"нед",null,null,null,null,null,"час",null,null,null,"нед",null,null,null,null,null,"час",null,null,null,"нед",null,null,null,null,null,"час",null,null,null,"нед",null,null,null,null,null,"час",null,null,null,"нед",null,null,null,null,null,"час",null,null,180,"нед","5",null,null,null,null,"час",null,null,null,"нед",null,null,null,null,null,"час",null,null,null,"нед",null,null,null,null,null,3,"144","36"]
[]
["ПП.04.01","Производственная практика по приготовлению, оформлению и подготовке к реализации холодных и горячих сладких блюд, десертов, напитков разнообразного ассортимента",null,null,"7","РП",null,"час","108",null,null,"108","нед","3 ",null,null,null,null,"час",null,null,null,"нед",null,null,null,null,null,"час",null,null,null,"нед",null,null,null,null,null,"час",null,null,null,"нед",null,null,null,null,null,"час",null,null,null,"нед",null,null,null,null,null,"час",null,null,null,"нед",null,null,null,null,null,"час",null,null,null,"нед",null,null,null,null,null,"час",null,null,108,"нед","3",null,null,null,null,"час",null,null,null,"нед",null,null,null,null,null,3,"72","36"]
[]
["ПM.04.ЭК","Квалификационный экзамен","7",null,null,null,null,null,"12",null,null,null,null,null,null,null,"12",null,null,null,null,null,null,null,null,null,null,null,null,null,null,null,null,null,null,null,null,null,null,null,null,null,null,null,null,null,null,null,null,null,null,null,null,null,null,null,null,null,null,null,null,null,null,null,null,null,null,null,null,null,null,null,null,null,null,null,null,null,"12",null,null,null,null,null,null,null,"12",null,null,null,null,null,null,null,null,null,null,null,null,"12"]
[null,"Всего часов по МДК",null,null,null,null,null,null,"128",null,null,"116"]
[]
["ПМ.05","Приготовление, оформление и подготовка к реализации хлебобулочных, мучных кондитерских изделий разнообразного ассортимента","3","1","1",null,null,null,{"$f":"J99+K99+L99+Q99","v":636},{"$f":"T99+AD99+AN99+AX99+BH99+BR99+CB99+CL99","v":8},{"$f":"U99+AE99+AO99+AY99+BI99+BS99+CC99+CM99","v":16},576,92,88,0,0,36,0,null,null,null,null,null,null,null,null,null,null,null,null,null,null,null,null,null,null,null,null,null,null,null,null,null,null,null,null,null,null,null,null,null,null,null,null,null,null,null,null,null,null,null,null,null,null,null,null,null,null,null,null,null,null,null,null,null,null,null,null,null,null,null,null,null,null,null,null,null,null,{"$f":"CL99+CM99+CN99+CS99","v":636},{"$f":"CL101+CL102","v":8},{"$f":"CM101+CM102","v":16},{"$f":"CN101+CN102+CN104+CN106","v":576},92,88,0,0,{"$f":"CS101+CS102+CS108","v":36},null,null,518,"118"]
[]
["МДК.05.01","Организация приготовления, оформления и подготовки к реализации хлебобулочных, мучных кондитерских изделий","8",null,null,null,null,null,"40","2","4","28","10","18",null,null,"6",null,null,null,null,null,null,null,null,null,null,null,null,null,null,null,null,null,null,null,null,null,null,null,null,null,null,null,null,null,null,null,null,null,null,null,null,null,null,null,null,null,null,null,null,null,null,null,null,null,null,null,null,null,null,null,null,null,null,null,null,null,null,null,null,null,null,null,null,null,null,null,"40","2","4","28",10,18,null,null,6,null,3,"40"]
["МДК.05.02","Процессы приготовления, оформления и подготовки к реализации хлебобулочных, мучных кондитерских изделий","8",null,null,null,null,null,"176","6","12","152","82","70",null,null,"6",null,null,null,null,null,null,null,null,null,null,null,null,null,null,null,null,null,null,null,null,null,null,null,null,null,null,null,null,null,null,null,null,null,null,null,null,null,null,null,null,null,null,null,null,null,null,null,null,null,null,null,null,null,null,null,null,null,null,null,null,null,null,null,null,null,null,null,null,null,null,null,"176","6","12","152",82,70,null,null,6,null,3,"130","46"]
[]
["УП.05.01","Учебная практика по приготовлению, оформлению и подготовке к реализации хлебобулочных, мучных кондитерских изделий разнообразного ассортимента",null,"8",null,"РП",null,"час","144",null,null,"144","нед","4 ",null,null,null,null,"час",null,null,null,"нед",null,null,null,null,null,"час",null,null,null,"нед",null,null,null,null,null,"час",null,null,null,"нед",null,null,null,null,null,"час",null,null,null,"нед",null,null,null,null,null,"час",null,null,null,"нед",null,null,null,null,null,"час",null,null,null,"нед",null,null,null,null,null,"час",null,null,null,"нед",null,null,null,null,null,"час",null,null,"144","нед","4",null,null,null,null,3,"108","36"]
[]
["ПП.05.01","Производственная практика по приготовлению, оформлению и подготовке к реализации хлебобулочных, мучных кондитерских изделий разнообразного ассортимента",null,null,"8","РП",null,"час",252,null,null,252,"нед",7,null,null,null,null,"час",null,null,null,"нед",null,null,null,null,null,"час",null,null,null,"нед",null,null,null,null,null,"час",null,null,null,"нед",null,null,null,null,null,"час",null,null,null,"нед",null,null,null,null,null,"час",null,null,null,"нед",null,null,null,null,null,"час",null,null,null,"нед",null,null,null,null,null,"час",null,null,null,"нед",null,null,null,null,null,"час",null,null,252,"нед",7,null,null,null,null,3,216,"36"]
[]
["ПM.05.ЭК","Квалификационный экзамен","8",null,null,null,null,null,"24",null,null,null,null,null,null,null,"24",null,null,null,null,null,null,null,null,null,null,null,null,null,null,null,null,null,null,null,null,null,null,null,null,null,null,null,null,null,null,null,null,null,null,null,null,null,null,null,null,null,null,null,null,null,null,null,null,null,null,null,null,null,null,null,null,null,null,null,null,null,null,null,null,null,null,null,null,null,null,null,"24",null,null,null,null,null,null,null,"24",null,null,"24"]
[null,"Всего часов по МДК",null,null,null,null,null,null,"216",null,null,"180"]
[]
["ПМ.06","Работа на контрольно-кассовой технике расчеты  с покупателями","2","1","1",null,null,null,{"$f":"J111+K111+L111+Q111","v":134},{"$f":"T111+AD111+AN111+AX111+BH111+BR111+CB111+CL111","v":4},{"$f":"U111+AE111+AO111+AY111+BI111+BS111+CC111+CM111","v":4},108,16,20,0,0,18,0,null,null,null,null,null,null,null,null,null,null,null,null,null,null,null,null,null,null,null,null,null,null,null,null,null,null,null,null,null,null,null,null,null,null,null,null,null,null,null,null,null,null,null,null,null,null,null,null,null,null,{"$f":"BR111+BS111+BT111+BY111","v":134},{"$f":"BR113","v":"4"},{"$f":"BS113","v":"4"},{"$f":"BT113+BT115+BT117","v":108},16,20,0,0,{"$f":"BY113+BY119","v":18},null,null,null,null,null,null,null,null,null,null,null,null,null,null,null,null,null,null,null,null,null,null,null,"134"]
[]
["МДК.06.01","Эксплуатация контрольно-кассовой техники","6",null,null,null,null,null,"50","4","4","36","16","20",null,null,"6",null,null,null,null,null,null,null,null,null,null,null,null,null,null,null,null,null,null,null,null,null,null,null,null,null,null,null,null,null,null,null,null,null,null,null,null,null,null,null,null,null,null,null,null,null,null,null,null,null,null,null,"50","4","4","36",16,20,null,null,6,null,null,null,null,null,null,null,null,null,null,null,null,null,null,null,null,null,null,null,null,null,3,null,"50"]
[]
["УП.06.01","Учебная практика по эксплуатации контрольно-кассовой техники",null,"6",null,"РП",null,"час","36",null,null,"36","нед","1 ",null,null,null,null,"час",null,null,null,"нед",null,null,null,null,null,"час",null,null,null,"нед",null,null,null,null,null,"час",null,null,null,"нед",null,null,null,null,null,"час",null,null,null,"нед",null,null,null,null,null,"час",null,null,null,"нед",null,null,null,null,null,"час",null,null,"36","нед","1",null,null,null,null,"час",null,null,null,"нед",null,null,null,null,null,"час",null,null,null,"нед",null,null,null,null,null,3,null,"36"]
[]
["ПП.06.01","Производственная практика по работе на контрольно-кассовой технике, расчетам с покупателями",null,null,"6","РП",null,"час","36",null,null,"36","нед","1 ",null,null,null,null,"час",null,null,null,"нед",null,null,null,null,null,"час",null,null,null,"нед",null,null,null,null,null,"час",null,null,null,"нед",null,null,null,null,null,"час",null,null,null,"нед",null,null,null,null,null,"час",null,null,null,"нед",null,null,null,null,null,"час",null,null,"36","нед","1",null,null,null,null,"час",null,null,null,"нед",null,null,null,null,null,"час",null,null,null,"нед",null,null,null,null,null,3,null,"36"]
[]
["ПM.06.ЭК","Квалификационный экзамен","6",null,null,null,null,null,"12",null,null,null,null,null,null,null,"12",null,null,null,null,null,null,null,null,null,null,null,null,null,null,null,null,null,null,null,null,null,null,null,null,null,null,null,null,null,null,null,null,null,null,null,null,null,null,null,null,null,null,null,null,null,null,null,null,null,null,null,"12",null,null,null,null,null,null,null,"12",null,null,null,null,null,null,null,null,null,null,null,null,null,null,null,null,null,null,null,null,null,null,null,"12"]
[null,"Всего часов по МДК",null,null,null,null,null,null,"50",null,null,"36"]
[]
[]
[null,"Учебная и производственная практики ",null,null,null,null,null,"час",1980,null,null,1980,"нед","60 ",null,null,null,null,"час",null,null,null,"нед",null,null,null,null,null,"час",null,null,"108","нед","3 ",null,null,null,null,"час",null,null,"108","нед","3 ",null,null,null,null,"час",null,null,144,"нед",4,null,null,null,null,"час",null,null,"144","нед","4 ",null,null,null,null,"час",null,null,540,"нед",15,null,null,null,null,"час",null,null,540,"нед",15,null,null,null,null,"час",null,null,396,"нед",11]
[]
[null,"Учебная практика",null,null,null,null,null,"час",864,null,null,864,"нед","28 ",null,null,null,null,"час",null,null,null,"нед",null,null,null,null,null,"час",null,null,"108","нед","3 ",null,null,null,null,"час",null,null,"108","нед","3 ",null,null,null,null,"час",null,null,144,"нед",4,null,null,null,null,"час",null,null,"144","нед","4 ",null,null,null,null,"час",null,null,324,"нед",9,null,null,null,null,"час",null,null,null,"нед",null,null,null,null,null,"час",null,null,"144","нед","4 "]
[null,"    Концентрированная",null,null,null,null,null,"час",864,null,null,864,"нед","28 ",null,null,null,null,"час",null,null,null,"нед",null,null,null,null,null,"час",null,null,"108","нед","3 ",null,null,null,null,"час",null,null,"108","нед","3 ",null,null,null,null,"час",null,null,144,"нед",4,null,null,null,null,"час",null,null,"144","нед","4 ",null,null,null,null,"час",null,null,324,"нед",9,null,null,null,null,"час",null,null,null,"нед",null,null,null,null,null,"час",null,null,"144","нед","4 "]
[null,"    Рассредоточенная",null,null,null,null,null,"час",null,null,null,null,"нед",null,null,null,null,null,"час",null,null,null,"нед",null,null,null,null,null,"час",null,null,null,"нед",null,null,null,null,null,"час",null,null,null,"нед",null,null,null,null,null,"час",null,null,null,"нед",null,null,null,null,null,"час",null,null,null,"нед",null,null,null,null,null,"час",null,null,null,"нед",null,null,null,null,null,"час",null,null,null,"нед",null,null,null,null,null,"час",null,null,null,"нед"]
[]
[null,"Производственная практика",null,null,null,null,null,"час",1116,null,null,1116,"нед","32 ",null,null,null,null,"час",null,null,null,"нед",null,null,null,null,null,"час",null,null,null,"нед",null,null,null,null,null,"час",null,null,null,"нед",null,null,null,null,null,"час",null,null,null,"нед",null,null,null,null,null,"час",null,null,null,"нед",null,null,null,null,null,"час",null,null,216,"нед",6,null,null,null,null,"час",null,null,540,"нед",15,null,null,null,null,"час",null,null,252,"нед",7]
[null,"    Концентрированная",null,null,null,null,null,"час",1116,null,null,1116,"нед","32 ",null,null,null,null,"час",null,null,null,"нед",null,null,null,null,null,"час",null,null,null,"нед",null,null,null,null,null,"час",null,null,null,"нед",null,null,null,null,null,"час",null,null,null,"нед",null,null,null,null,null,"час",null,null,null,"нед",null,null,null,null,null,"час",null,null,216,"нед",6,null,null,null,null,"час",null,null,540,"нед",15,null,null,null,null,"час",null,null,252,"нед",7]
[null,"    Рассредоточенная",null,null,null,null,null,"час",null,null,null,null,"нед",null,null,null,null,null,"час",null,null,null,"нед",null,null,null,null,null,"час",null,null,null,"нед",null,null,null,null,null,"час",null,null,null,"нед",null,null,null,null,null,"час",null,null,null,"нед",null,null,null,null,null,"час",null,null,null,"нед",null,null,null,null,null,"час",null,null,null,"нед",null,null,null,null,null,"час",null,null,null,"нед",null,null,null,null,null,"час",null,null,null,"нед"]
[]
[null,"Государственная итоговая аттестация",null,null,null,null,null,"час","72",null,null,"72","нед","2 ",null,null,null,null,"час",null,null,null,"нед",null,null,null,null,null,"час",null,null,null,"нед",null,null,null,null,null,"час",null,null,null,"нед",null,null,null,null,null,"час",null,null,null,"нед",null,null,null,null,null,"час",null,null,null,"нед",null,null,null,null,null,"час",null,null,null,"нед",null,null,null,null,null,"час",null,null,null,"нед",null,null,null,null,null,"час",null,null,"72","нед","2"]
[null,"Защита выпускной квалификационной работы",null,null,null,null,null,"час","72",null,null,"72","нед","2 ",null,null,null,null,"час",null,null,null,"нед",null,null,null,null,null,"час",null,null,null,"нед",null,null,null,null,null,"час",null,null,null,"нед",null,null,null,null,null,"час",null,null,null,"нед",null,null,null,null,null,"час",null,null,null,"нед",null,null,null,null,null,"час",null,null,null,"нед",null,null,null,null,null,"час",null,null,null,"нед",null,null,null,null,null,"час",null,null,"72","нед","2",null,null,null,null,null,"72"]
[null,"Проведение государственных экзаменов",null,null,null,null,null,"час",null,null,null,null,"нед",null,null,null,null,null,"час",null,null,null,"нед",null,null,null,null,null,"час",null,null,null,"нед",null,null,null,null,null,"час",null,null,null,"нед",null,null,null,null,null,"час",null,null,null,"нед",null,null,null,null,null,"час",null,null,null,"нед",null,null,null,null,null,"час",null,null,null,"нед",null,null,null,null,null,"час",null,null,null,"нед",null,null,null,null,null,"час",null,null,null,"нед"]
[]
[null,"КОНСУЛЬТАЦИИ по О",null,null,null,null,null,null,"28",null,null,null,null,null,null,null,null,null,"2",null,null,null,null,null,null,null,null,null,"2",null,null,null,null,null,null,null,null,null,null,null,null,null,null,null,null,null,null,null,"20",null,null,null,null,null,null,null,null,null,"4"]
[null,"          в т.ч. в период обучения по циклам",null,null,null,null,null,null,"28",null,null,null,null,null,null,null,null,null,"2",null,null,null,null,null,null,null,null,null,"2",null,null,null,null,null,null,null,null,null,null,null,null,null,null,null,null,null,null,null,"20",null,null,null,null,null,null,null,null,null,"4"]
[]
[null,"КОНСУЛЬТАЦИИ по ПП",null,null,null,null,null,null,"92",null,null,null,null,null,null,null,null,null,"12",null,null,null,null,null,null,null,null,null,"8",null,null,null,null,null,null,null,null,null,"6",null,null,null,null,null,null,null,null,null,"12",null,null,null,null,null,null,null,null,null,"23",null,null,null,null,null,null,null,null,null,"11",null,null,null,null,null,null,null,null,null,null,null,null,null,null,null,null,null,null,null,"20"]
[null,"          в т.ч. в период обучения по циклам",null,null,null,null,null,null,"92",null,null,null,null,null,null,null,null,null,"12",null,null,null,null,null,null,null,null,null,"8",null,null,null,null,null,null,null,null,null,"6",null,null,null,null,null,null,null,null,null,"12",null,null,null,null,null,null,null,null,null,"23",null,null,null,null,null,null,null,null,null,"11",null,null,null,null,null,null,null,null,null,null,null,null,null,null,null,null,null,null,null,"20"]
[]
[null,"ОБЪЕМ ОБРАЗОВАТЕЛЬНОЙ ПРОГРАММЫ В АКАДЕМИЧЕСКИХ ЧАСАХ","22","15",25,null,null,null,{"$f":"I10+I33+I133","v":5724},{"$f":"J10+J33","v":100},120,{"$f":"L10+L33+L133","v":5360},1969,1314,25,0,144,30,612,8,14,582,341,238,3,0,6,2,864,6,10,840,423,304,5,0,6,2,612,6,6,600,319,168,5,0,0,0,828,8,32,740,408,176,12,0,30,18,612,13,27,558,236,178,0,0,6,8,828,15,11,778,102,{"$f":"BV10+BV33","v":136},0,0,24,0,576,0,0,540,0,0,0,0,36,0,{"$f":"CL143+CM143+CS143+CN143","v":792},{"$f":"CL10+CL33","v":14},20,{"$f":"CN10+CN33+CN133","v":722},140,114,0,0,36,0,null,4826,"898"]
[]
[null,"Экзамены (без учета физ. культуры)",null,null,null,null,null,null,null,null,null,null,null,null,null,null,null,null,"1",null,null,null,null,null,null,null,null,null,2,null,null,null,null,null,null,null,null,null,null,null,null,null,null,null,null,null,null,null,6,null,null,null,null,null,null,null,null,null,2,null,null,null,null,null,null,null,null,null,4,null,null,null,null,null,null,null,null,null,4,null,null,null,null,null,null,null,null,null,3]
[null,"Зачеты (без учета физ. культуры)",null,null,null,null,null,null,null,null,null,null,null,null,null,null,null,null,null,null,null,null,null,null,null,null,null,null,null,null,null,null,null,null,null,null,null,null,"2",null,null,null,null,null,null,null,null,null,null,null,null,null,null,null,null,null,null,null,null,null,null,null,null,null,null,null,null,null,7,null,null,null,null,null,null,null,null,null,null,null,null,null,null,null,null,null,null,null,3]
[null,"Диффер. зачеты (без учета физ. культуры)",null,null,null,null,null,null,null,null,null,null,null,null,null,null,null,null,"2",null,null,null,null,null,null,null,null,null,"2",null,null,null,null,null,null,null,null,null,"1",null,null,null,null,null,null,null,null,null,6,null,null,null,null,null,null,null,null,null,5,null,null,null,null,null,null,null,null,null,"2",null,null,null,null,null,null,null,null,null,4,null,null,null,null,null,null,null,null,null,"2"]
[null,"Курсовые проекты (без учета физ. культуры)"]
[null,"Курсовые работы (без учета физ. культуры)"]

{"sheet":"Комплесные","index":3,"n_rows":19,"n_cols":8,"rows_kept":19,"cut":false,"hidden":false,"merged":[[0,6,0,7]]}
[null,"№","Вид контроля","Наименование комплексного вида контроля","Семестр",null,"[Семестр проведения комплексного вида контроля] Наименование дисциплины/МДК"]
[null,"1","Экз","Комплексный экзамен","2","2","[2]","МДК.01.01 Организация приготовления, подготовки к реализации и хранения кулинарных полуфабрикатов"]
[null,null,null,null,null,"2","[2]","МДК.01.02 Процессы приготовления, подготовки к реализации кулинарных полуфабрикатов"]
[null,"2","Экз","Комплексный экзамен","4","4","[4]","МДК.02.01 Организация приготовления, подготовки к реализации и хранения горячих блюд, кулинарных изделий и закусок разнообразного ассортимента"]
[null,null,null,null,null,"4","[4]","МДК.02.02 Процессы приготовления, подготовки к реализации горячих блюд, кулинарных изделий и закусок разнообразного ассортимента"]
[null,"3","Экз","Комплексный экзамен","5","5","[5]","МДК.03.01 Организация приготовления, подготовки к реализации и хранения холодных блюд, кулинарных изделий и закусок разнообразного ассортимента"]
[null,null,null,null,null,"5","[5]","МДК.03.02 Процессы приготовления, подготовки к реализации холодных блюд, кулинарных изделий и закусок разнообразного ассортимента"]
[null,"4","Экз","Комплексный экзамен","6","6","[6]","МДК.04.01 Организация процессов приготовления, подготовки к реализации и хранения холодных и горячих десертов, напитков сложного ассортимента"]
[null,null,null,null,null,"6","[6]","МДК.04.02 Процессы приготовления и подготовки к реализации холодных и горячих сладких блюд, десертов разнообразного ассортимента"]
[null,"5","Экз","Комплексный экзамен","8","8","[8]","МДК.05.01 Организация приготовления, оформления и подготовки к реализации хлебобулочных, мучных кондитерских изделий"]
[null,null,null,null,null,"8","[8]","МДК.05.02 Процессы приготовления, оформления и подготовки к реализации хлебобулочных, мучных кондитерских изделий"]
[null,"6","ЭкзМод","Комплексный квалификационный экзамен","7","7","[7]","ПМ.01 Приготовление и подготовка к реализации полуфабрикатов для блюд, кулинарных изделий разнообразного ассортимента"]
[null,null,null,null,null,"7","[7]","ПМ.02 Приготовление, оформление и подготовка к реализации горячих блюд, кулинарных изделий, закусок разнообразного ассортимента"]
[null,null,null,null,null,"7","[7]","ПМ.03 Приготовление, оформление и подготовка к реализации холодных блюд, кулинарных изделий, закусок разнообразного ассортимента"]
[null,null,null,null,null,"7","[7]","ПМ.04 Приготовление, оформление и подготовка к реализации холодных и горячих сладких блюд, десертов, напитков разнообразного ассортимента"]
[null,"7","Диф. зач","Комплексный диф. зачет","7","7","[7]","ПП.01.01 Производственная практика по приготовлению и подготовке к реализации полуфабрикатов для блюд, кулинарных изделий разнообразного ассортимента"]
[null,null,null,null,null,"7","[7]","ПП.02.01 Производственная практика по приготовлению, оформлению и подготовке к реализации горячих блюд, кулинарных изделий, закусок разнообразного ассортимента"]
[null,null,null,null,null,"7","[7]","ПП.03.01 Производственная практика по приготовлению, оформлению и подготовке к реализации холодных блюд, кулинарных изделий, закусок разнообразного ассортимента"]
[null,null,null,null,null,"7","[7]","ПП.04.01 Производственная практика по приготовлению, оформлению и подготовке к реализации холодных и горячих сладких блюд, десертов, напитков разнообразного ассортимента"]

{"sheet":"Компетенции","index":4,"n_rows":2498,"n_cols":5,"rows_kept":2498,"cut":false,"hidden":false,"merged":[[0,0,0,1],[1,0,1,1],[81,0,81,1],[162,0,162,1],[242,0,242,1],[323,0,323,1],[403,0,403,1],[483,0,483,1],[563,0,563,1],[645,0,645,1],[726,0,726,1],[807,0,807,1],[888,0,888,1],[968,0,968,1],[1048,0,1048,1],[1128,0,1128,1],[1208,0,1208,1],[1288,0,1288,1],[1368,0,1368,1],[1448,0,1448,1],[1528,0,1528,1],[1608,0,1608,1],[1619,0,1619,1],[1699,0,1699,1],[1779,0,1779,1],[1859,0,1859,1],[1939,0,1939,1],[2019,0,2019,1],[2099,0,2099,1],[2179,0,2179,1],[2190,0,2190,1],[2201,0,2201,1],[2212,0,2212,1],[2223,0,2223,1],[2234,0,2234,1],[2245,0,2245,1],[2256,0,2256,1],[2267,0,2267,1],[2278,0,2278,1],[2289,0,2289,1],[2300,0,2300,1],[2307,0,2307,1],[2314,0,2314,1],[2323,0,2323,1],[2330,0,2330,1],[2388,0,2388,1],[2398,0,2398,1],[2408,0,2408,1],[2418,0,2418,1],[2339,0,2339,1],[2348,0,2348,1],[2358,0,2358,1],[2368,0,2368,1],[2378,0,2378,1]]}
["Индекс",null,null,null,"Содержание"]
["ОК 01.",null,null,1,"Выбирать способы решения задач профессиональной деятельности применительно к различным контекстам"]
[null,"  ОП.01",null,2,"Основы микробиологии, физиологии питания, санитарии и гигиены"]
[null,"  ОП.02",null,3,"Основы товароведения продовольственных товаров"]
[null,"  ОП.03",null,4,"Техническое оснащение и организация рабочего места"]
[null,"  ОП.05",null,6,"Основы калькуляции и учета"]
[null,"  ОП.06",null,7,"Охрана труда"]
[null,"  ОП.07",null,8,"Иностранный язык в профессиональной деятельности"]
[null,"  ОП.08",null,9,"Безопасность жизнедеятельности"]
[null,"  ОП.12",null,10,"Основы предпринимательской деятельности"]
[null,"  МДК.01.01",null,11,"Организация приготовления, подготовки к реализации и хранения кулинарных полуфабрикатов"]
[null,"  МДК.01.02",null,12,"Процессы приготовления, подготовки к реализации кулинарных полуфабрикатов"]
[null,"  УП.01.01",null,13,"Учебная практика по приготовлению и подготовке к реализации полуфабрикатов для блюд, кулинарных изделий разнообразного ассортимента"]
[null,"  ПП.01.01",null,14,"Производственная практика по приготовлению и подготовке к реализации полуфабрикатов для блюд, кулинарных изделий разнообразного ассортимента"]
[null,"  МДК.02.01",null,15,"Организация приготовления, подготовки к реализации и хранения горячих блюд, кулинарных изделий и закусок разнообразного ассортимента"]
[null,"  МДК.02.02",null,16,"Процессы приготовления, подготовки к реализации горячих блюд, кулинарных изделий и закусок разнообразного ассортимента"]
[null,"  УП.02.01",null,17,"Учебная практика по приготовлению, оформлению и подготовке к реализации горячих блюд, кулинарных изделий, закусок разнообразного ассортимента"]
[null,"  ПП.02.01",null,18,"Производственная практика по приготовлению, оформлению и подготовке к реализации горячих блюд, кулинарных изделий, закусок разнообразного ассортимента"]
[null,"  МДК.03.01",null,19,"Организация приготовления, подготовки к реализации и хранения холодных блюд, кулинарных изделий и закусок разнообразного ассортимента"]
[null,"  МДК.03.02",null,20,"Процессы приготовления, подготовки к реализации холодных блюд, кулинарных изделий и закусок разнообразного ассортимента"]
[null,"  УП.03.01",null,21,"Учебная практика по приготовлению, оформлению и подготовке к реализации холодных блюд, кулинарных изделий, закусок разнообразного ассортимента"]
[null,"  ПП.03.01",null,22,"Производственная практика по приготовлению, оформлению и подготовке к реализации холодных блюд, кулинарных изделий, закусок разнообразного ассортимента"]
[null,"  МДК.04.01",null,23,"Организация процессов приготовления, подготовки к реализации и хранения холодных и горячих десертов, напитков сложного ассортимента"]
[null,"  МДК.04.02",null,24,"Процессы приготовления и подготовки к реализации холодных и горячих сладких блюд, десертов разнообразного ассортимента"]
[null,"  УП.04.01",null,25,"Учебная практика по приготовлению, оформлению и подготовке к реализации холодных и горячих сладких блюд, десертов, напитков разнообразного ассортимента"]
[null,"  ПП.04.01",null,26,"Производственная практика по приготовлению, оформлению и подготовке к реализации холодных и горячих сладких блюд, десертов, напитков разнообразного ассортимента"]
[null,"  МДК.05.01",null,27,"Организация приготовления, оформления и подготовки к реализации хлебобулочных, мучных кондитерских изделий"]
[null,"  МДК.05.02",null,28,"Процессы приготовления, оформления и подготовки к реализации хлебобулочных, мучных кондитерских изделий"]
[null,"  УП.05.01",null,29,"Учебная практика по приготовлению, оформлению и подготовке к реализации хлебобулочных, мучных кондитерских изделий разнообразного ассортимента"]
[null,"  ПП.05.01",null,30,"Производственная практика по приготовлению, оформлению и подготовке к реализации хлебобулочных, мучных кондитерских изделий разнообразного ассортимента"]
[null,"  МДК.06.01",null,31,"Эксплуатация контрольно-кассовой техники"]
[null,"  УП.06.01",null,32,"Учебная практика по эксплуатации контрольно-кассовой техники"]
[null,"  ПП.06.01",null,33,"Производственная практика по работе на контрольно-кассовой технике, расчетам с покупателями"]
[null,null,null,34]
[null,null,null,35]
[null,null,null,36]
[null,null,null,37]
[null,null,null,38]
[null,null,null,39]
[null,null,null,40]
[null,null,null,41]
[null,null,null,42]
[null,null,null,43]
[null,null,null,44]
[null,null,null,45]
[null,null,null,46]
[null,null,null,47]
[null,null,null,48]
[null,null,null,49]
[null,null,null,50]
[null,null,null,51]
[null,null,null,52]
[null,null,null,53]
[null,null,null,54]
[null,null,null,55]
[null,null,null,56]
[null,null,null,57]
[null,null,null,58]
[null,null,null,59]
[null,null,null,60]
[null,null,null,61]
[null,null,null,62]
[null,null,null,63]
[null,null,null,64]
[null,null,null,65]
[null,null,null,66]
[null,null,null,67]
[null,null,null,68]
[null,null,null,69]
[null,null,null,70]
[null,null,null,71]
[null,null,null,72]
[null,null,null,73]
[null,null,null,74]
[null,null,null,75]
[null,null,null,76]
[null,null,null,77]
[null,null,null,78]
[null,null,null,79]
[null,null,null,80]
[null,null,null,81]
["ОК 02.",null,null,1,"Осуществлять поиск, анализ и интерпретацию информации, необходимой для выполнения задач профессиональной деятельности"]
[null,"  ОП.01",null,2,"Основы микробиологии, физиологии питания, санитарии и гигиены"]
[null,"  ОП.02",null,3,"Основы товароведения продовольственных товаров"]
[null,"  ОП.03",null,4,"Техническое оснащение и организация рабочего места"]
[null,"  ОП.04",null,5,"Экономические и правовые основы профессиональной деятельности"]
[null,"  ОП.05",null,6,"Основы калькуляции и учета"]
[null,"  ОП.06",null,7,"Охрана труда"]
[null,"  ОП.07",null,8,"Иностранный язык в профессиональной деятельности"]
[null,"  ОП.08",null,9,"Безопасность жизнедеятельности"]
[null,"  ОП.12",null,10,"Основы предпринимательской деятельности"]
[null,null,null,11]
[null,null,null,12]
[null,null,null,13]
[null,null,null,14]
[null,null,null,15]
[null,null,null,16]
[null,null,null,17]
[null,null,null,18]
[null,null,null,19]
[null,null,null,20]
[null,null,null,21]
[null,null,null,22]
[null,null,null,23]
[null,null,null,24]
[null,null,null,25]
[null,null,null,26]
[null,null,null,27]
[null,null,null,28]
[null,null,null,29]
[null,null,null,30]
[null,null,null,31]
[null,null,null,32]
[null,null,null,33]
[null,null,null,34]
[null,null,null,35]
[null,null,null,36]
[null,null,null,37]
[null,null,null,38]
[null,null,null,39]
[null,null,null,40]
[null,null,null,41]
[null,null,null,42]
[null,null,null,43]
[null,null,null,44]
[null,null,null,45]
[null,null,null,46]
[null,null,null,47]
[null,null,null,48]
[null,null,null,49]
[null,null,null,50]
[null,null,null,51]
[null,null,null,52]
[null,null,null,53]
[null,null,null,54]
[null,null,null,55]
[null,null,null,56]
[null,null,null,57]
[null,null,null,58]
[null,null,null,59]
[null,null,null,60]
[null,null,null,61]
[null,null,null,62]
[null,null,null,63]
[null,null,null,64]
[null,null,null,65]
[null,null,null,66]
[null,null,null,67]
[null,null,null,68]
[null,null,null,69]
[null,null,null,70]
[null,null,null,71]
[null,null,null,72]
[null,null,null,73]
[null,null,null,74]
[null,null,null,75]
[null,null,null,76]
[null,null,null,77]
[null,null,null,78]
[null,null,null,79]
[null,null,null,80]
[null,null,null,81]
["ОК 03.",null,null,1,"Планировать и реализовывать собственное профессиональное и личностное развитие"]
[null,"  ОП.01",null,2,"Основы микробиологии, физиологии питания, санитарии и гигиены"]
[null,"  ОП.02",null,3,"Основы товароведения продовольственных товаров"]
[null,"  ОП.03",null,4,"Техническое оснащение и организация рабочего места"]
[null,"  ОП.05",null,6,"Основы калькуляции и учета"]
[null,"  ОП.06",null,7,"Охрана труда"]
[null,"  ОП.07",null,8,"Иностранный язык в профессиональной деятельности"]
[null,"  ОП.08",null,9,"Безопасность жизнедеятельности"]
[null,"  ОП.11",null,10,"Основы эффективного поведения на рынке труда"]
[null,null,null,11]
[null,null,null,12]
[null,null,null,13]
[null,null,null,14]
[null,null,null,15]
[null,null,null,16]
[null,null,null,17]
[null,null,null,18]
[null,null,null,19]
[null,null,null,20]
[null,null,null,21]
[null,null,null,22]
[null,null,null,23]
[null,null,null,24]
[null,null,null,25]
[null,null,null,26]
[null,null,null,27]
[null,null,null,28]
[null,null,null,29]
[null,null,null,30]
[null,null,null,31]
[null,null,null,32]
[null,null,null,33]
[null,null,null,34]
[null,null,null,35]
[null,null,null,36]
[null,null,null,37]
[null,null,null,38]
[null,null,null,39]
[null,null,null,40]
[null,null,null,41]
[null,null,null,42]
[null,null,null,43]
[null,null,null,44]
[null,null,null,45]
[null,null,null,46]
[null,null,null,47]
[null,null,null,48]
[null,null,null,49]
[null,null,null,50]
[null,null,null,51]
[null,null,null,52]
[null,null,null,53]
[null,null,null,54]
[null,null,null,55]
[null,null,null,56]
[null,null,null,57]
[null,null,null,58]
[null,null,null,59]
[null,null,null,60]
[null,null,null,61]
[null,null,null,62]
[null,null,null,63]
[null,null,null,64]
[null,null,null,65]
[null,null,null,66]
[null,null,null,67]
[null,null,null,68]
[null,null,null,69]
[null,null,null,70]
[null,null,null,71]
[null,null,null,72]
[null,null,null,73]
[null,null,null,74]
[null,null,null,75]
[null,null,null,76]
[null,null,null,77]
[null,null,null,78]
[null,null,null,79]
[null,null,null,80]
[null,null,null,81]
["ОК 04.",null,null,1,"Работать в коллективе и команде, эффективно взаимодействовать с коллегами, руководством, клиентами"]
[null,"  ОП.01",null,2,"Основы микробиологии, физиологии питания, санитарии и гигиены"]
[null,"  ОП.02",null,3,"Основы товароведения продовольственных товаров"]
[null,"  ОП.03",null,4,"Техническое оснащение и организация рабочего места"]
[null,"  ОП.04",null,5,"Экономические и правовые основы профессиональной деятельности"]
[null,"  ОП.05",null,6,"Основы калькуляции и учета"]
[null,"  ОП.06",null,7,"Охрана труда"]
[null,"  ОП.07",null,8,"Иностранный язык в профессиональной деятельности"]
[null,"  ОП.08",null,9,"Безопасность жизнедеятельности"]
[null,"  ОП.12",null,10,"Основы предпринимательской деятельности"]
[null,"  МДК.01.01",null,11,"Организация приготовления, подготовки к реализации и хранения кулинарных полуфабрикатов"]
[null,"  МДК.01.02",null,12,"Процессы приготовления, подготовки к реализации кулинарных полуфабрикатов"]
[null,"  УП.01.01",null,13,"Учебная практика по приготовлению и подготовке к реализации полуфабрикатов для блюд, кулинарных изделий разнообразного ассортимента"]
[null,"  ПП.01.01",null,14,"Производственная практика по приготовлению и подготовке к реализации полуфабрикатов для блюд, кулинарных изделий разнообразного ассортимента"]
[null,"  МДК.02.01",null,15,"Организация приготовления, подготовки к реализации и хранения горячих блюд, кулинарных изделий и закусок разнообразного ассортимента"]
[null,"  МДК.02.02",null,16,"Процессы приготовления, подготовки к реализации горячих блюд, кулинарных изделий и закусок разнообразного ассортимента"]
[null,"  УП.02.01",null,17,"Учебная практика по приготовлению, оформлению и подготовке к реализации горячих блюд, кулинарных изделий, закусок разнообразного ассортимента"]
[null,"  ПП.02.01",null,18,"Производственная практика по приготовлению, оформлению и подготовке к реализации горячих блюд, кулинарных изделий, закусок разнообразного ассортимента"]
[null,"  МДК.03.01",null,19,"Организация приготовления, подготовки к реализации и хранения холодных блюд, кулинарных изделий и закусок разнообразного ассортимента"]
[null,"  МДК.03.02",null,20,"Процессы приготовления, подготовки к реализации холодных блюд, кулинарных изделий и закусок разнообразного ассортимента"]
[null,"  УП.03.01",null,21,"Учебная практика по приготовлению, оформлению и подготовке к реализации холодных блюд, кулинарных изделий, закусок разнообразного ассортимента"]
[null,"  ПП.03.01",null,22,"Производственная практика по приготовлению, оформлению и подготовке к реализации холодных блюд, кулинарных изделий, закусок разнообразного ассортимента"]
[null,"  МДК.04.01",null,23,"Организация процессов приготовления, подготовки к реализации и хранения холодных и горячих десертов, напитков сложного ассортимента"]
[null,"  МДК.04.02",null,24,"Процессы приготовления и подготовки к реализации холодных и горячих сладких блюд, десертов разнообразного ассортимента"]
[null,"  УП.04.01",null,25,"Учебная практика по приготовлению, оформлению и подготовке к реализации холодных и горячих сладких блюд, десертов, напитков разнообразного ассортимента"]
[null,"  ПП.04.01",null,26,"Производственная практика по приготовлению, оформлению и подготовке к реализации холодных и горячих сладких блюд, десертов, напитков разнообразного ассортимента"]
[null,"  МДК.05.01",null,27,"Организация приготовления, оформления и подготовки к реализации хлебобулочных, мучных кондитерских изделий"]
[null,"  МДК.05.02",null,28,"Процессы приготовления, оформления и подготовки к реализации хлебобулочных, мучных кондитерских изделий"]
[null,"  УП.05.01",null,29,"Учебная практика по приготовлению, оформлению и подготовке к реализации хлебобулочных, мучных кондитерских изделий разнообразного ассортимента"]
[null,"  ПП.05.01",null,30,"Производственная практика по приготовлению, оформлению и подготовке к реализации хлебобулочных, мучных кондитерских изделий разнообразного ассортимента"]
[null,"  МДК.06.01",null,31,"Эксплуатация контрольно-кассовой техники"]
[null,"  УП.06.01",null,32,"Учебная практика по эксплуатации контрольно-кассовой техники"]
[null,"  ПП.06.01",null,33,"Производственная практика по работе на контрольно-кассовой технике, расчетам с покупателями"]
[null,null,null,34]
[null,null,null,35]
[null,null,null,36]
[null,null,null,37]
[null,null,null,38]
[null,null,null,39]
[null,null,null,40]
[null,null,null,41]
[null,null,null,42]
[null,null,null,43]
[null,null,null,44]
[null,null,null,45]
[null,null,null,46]
[null,null,null,47]
[null,null,null,48]
[null,null,null,49]
[null,null,null,50]
[null,null,null,51]
[null,null,null,52]
[null,null,null,53]
[null,null,null,54]
[null,null,null,55]
[null,null,null,56]
[null,null,null,57]
[null,null,null,58]
[null,null,null,59]
[null,null,null,60]
[null,null,null,61]
[null,null,null,62]
[null,null,null,63]
[null,null,null,64]
[null,null,null,65]
[null,null,null,66]
[null,null,null,67]
[null,null,null,68]
[null,null,null,69]
[null,null,null,70]
[null,null,null,71]
[null,null,null,72]
[null,null,null,73]
[null,null,null,74]
[null,null,null,75]
[null,null,null,76]
[null,null,null,77]
[null,null,null,78]
[null,null,null,79]
[null,null,null,80]
[null,null,null,81]
["ОК 05.",null,null,1,"Осуществлять устную и письменную коммуникацию на государственном языке с учетом особенностей социального и культурного контекста"]
[null,"  ОП.01",null,2,"Основы микробиологии, физиологии питания, санитарии и гигиены"]
[null,"  ОП.02",null,3,"Основы товароведения продовольственных товаров"]
[null,"  ОП.03",null,4,"Техническое оснащение и организация рабочего места"]
[null,"  ОП.05",null,6,"Основы калькуляции и учета"]
[null,"  ОП.06",null,7,"Охрана труда"]
[null,"  ОП.07",null,8,"Иностранный язык в профессиональной деятельности"]
[null,"  ОП.08",null,9,"Безопасность жизнедеятельности"]
[null,"  ОП.10",null,10,"Русский язык и культура речи"]
[null,"  ОП.11",null,11,"Основы эффективного поведения на рынке труда"]
[null,null,null,12]
[null,null,null,13]
[null,null,null,14]
[null,null,null,15]
[null,null,null,16]
[null,null,null,17]
[null,null,null,18]
[null,null,null,19]
[null,null,null,20]
[null,null,null,21]
[null,null,null,22]
[null,null,null,23]
[null,null,null,24]
[null,null,null,25]
[null,null,null,26]
[null,null,null,27]
[null,null,null,28]
[null,null,null,29]
[null,null,null,30]
[null,null,null,31]
[null,null,null,32]
[null,null,null,33]
[null,null,null,34]
[null,null,null,35]
[null,null,null,36]
[null,null,null,37]
[null,null,null,38]
[null,null,null,39]
[null,null,null,40]
[null,null,null,41]
[null,null,null,42]
[null,null,null,43]
[null,null,null,44]
[null,null,null,45]
[null,null,null,46]
[null,null,null,47]
[null,null,null,48]
[null,null,null,49]
[null,null,null,50]
[null,null,null,51]
[null,null,null,52]
[null,null,null,53]
[null,null,null,54]
[null,null,null,55]
[null,null,null,56]
[null,null,null,57]
[null,null,null,58]
[null,null,null,59]
[null,null,null,60]
[null,null,null,61]
[null,null,null,62]
[null,null,null,63]
[null,null,null,64]
[null,null,null,65]
[null,null,null,66]
[null,null,null,67]
[null,null,null,68]
[null,null,null,69]
[null,null,null,70]
[null,null,null,71]
[null,null,null,72]
[null,null,null,73]
[null,null,null,74]
[null,null,null,75]
[null,null,null,76]
[null,null,null,77]
[null,null,null,78]
[null,null,null,79]
[null,null,null,80]
[null,null,null,81]
["ОК 06.",null,null,1,"Проявлять гражданско-патриотическую позицию, демонстрировать осознанное поведение на основе традиционных общечеловеческих ценностей"]
[null,"  ОП.01",null,2,"Основы микробиологии, физиологии питания, санитарии и гигиены"]
[null,"  ОП.02",null,3,"Основы товароведения продовольственных товаров"]
[null,"  ОП.03",null,4,"Техническое оснащение и организация рабочего места"]
[null,"  ОП.06",null,6,"Охрана труда"]
[null,"  ОП.08",null,7,"Безопасность жизнедеятельности"]
[null,null,null,8]
[null,null,null,9]
[null,null,null,10]
[null,null,null,11]
[null,null,null,12]
[null,null,null,13]
[null,null,null,14]
[null,null,null,15]
[null,null,null,16]
[null,null,null,17]
[null,null,null,18]
[null,null,null,19]
[null,null,null,20]
[null,null,null,21]
[null,null,null,22]
[null,null,null,23]
[null,null,null,24]
[null,null,null,25]
[null,null,null,26]
[null,null,null,27]
[null,null,null,28]
[null,null,null,29]
[null,null,null,30]
[null,null,null,31]
[null,null,null,32]
[null,null,null,33]
[null,null,null,34]
[null,null,null,35]
[null,null,null,36]
[null,null,null,37]
[null,null,null,38]
[null,null,null,39]
[null,null,null,40]
[null,null,null,41]
[null,null,null,42]
[null,null,null,43]
[null,null,null,44]
[null,null,null,45]
[null,null,null,46]
[null,null,null,47]
[null,null,null,48]
[null,null,null,49]
[null,null,null,50]
[null,null,null,51]
[null,null,null,52]
[null,null,null,53]
[null,null,null,54]
[null,null,null,55]
[null,null,null,56]
[null,null,null,57]
[null,null,null,58]
[null,null,null,59]
[null,null,null,60]
[null,null,null,61]
[null,null,null,62]
[null,null,null,63]
[null,null,null,64]
[null,null,null,65]
[null,null,null,66]
[null,null,null,67]
[null,null,null,68]
[null,null,null,69]
[null,null,null,70]
[null,null,null,71]
[null,null,null,72]
[null,null,null,73]
[null,null,null,74]
[null,null,null,75]
[null,null,null,76]
[null,null,null,77]
[null,null,null,78]
[null,null,null,79]
[null,null,null,80]
[null,null,null,81]
["ОК 07.",null,null,1,"Содействовать сохранению окружающей среды, ресурсосбережению, эффективно действовать в чрезвычайных ситуациях"]
[null,"  ОП.01",null,2,"Основы микробиологии, физиологии питания, санитарии и гигиены"]
[null,"  ОП.02",null,3,"Основы товароведения продовольственных товаров"]
[null,"  ОП.03",null,4,"Техническое оснащение и организация рабочего места"]
[null,"  ОП.06",null,6,"Охрана труда"]
[null,"  ОП.08",null,7,"Безопасность жизнедеятельности"]
[null,"  МДК.01.01",null,8,"Организация приготовления, подготовки к реализации и хранения кулинарных полуфабрикатов"]
[null,"  МДК.01.02",null,9,"Процессы приготовления, подготовки к реализации кулинарных полуфабрикатов"]
[null,"  УП.01.01",null,10,"Учебная практика по приготовлению и подготовке к реализации полуфабрикатов для блюд, кулинарных изделий разнообразного ассортимента"]
[null,"  ПП.01.01",null,11,"Производственная практика по приготовлению и подготовке к реализации полуфабрикатов для блюд, кулинарных изделий разнообразного ассортимента"]
[null,"  МДК.02.01",null,12,"Организация приготовления, подготовки к реализации и хранения горячих блюд, кулинарных изделий и закусок разнообразного ассортимента"]
[null,"  МДК.02.02",null,13,"Процессы приготовления, подготовки к реализации горячих блюд, кулинарных изделий и закусок разнообразного ассортимента"]
[null,"  УП.02.01",null,14,"Учебная практика по приготовлению, оформлению и подготовке к реализации горячих блюд, кулинарных изделий, закусок разнообразного ассортимента"]
[null,"  ПП.02.01",null,15,"Производственная практика по приготовлению, оформлению и подготовке к реализации горячих блюд, кулинарных изделий, закусок разнообразного ассортимента"]
[null,"  МДК.03.01",null,16,"Организация приготовления, подготовки к реализации и хранения холодных блюд, кулинарных изделий и закусок разнообразного ассортимента"]
[null,"  МДК.03.02",null,17,"Процессы приготовления, подготовки к реализации холодных блюд, кулинарных изделий и закусок разнообразного ассортимента"]
[null,"  УП.03.01",null,18,"Учебная практика по приготовлению, оформлению и подготовке к реализации холодных блюд, кулинарных изделий, закусок разнообразного ассортимента"]
[null,"  ПП.03.01",null,19,"Производственная практика по приготовлению, оформлению и подготовке к реализации холодных блюд, кулинарных изделий, закусок разнообразного ассортимента"]
[null,"  МДК.04.01",null,20,"Организация процессов приготовления, подготовки к реализации и хранения холодных и горячих десертов, напитков сложного ассортимента"]
[null,"  МДК.04.02",null,21,"Процессы приготовления и подготовки к реализации холодных и горячих сладких блюд, десертов разнообразного ассортимента"]
[null,"  УП.04.01",null,22,"Учебная практика по приготовлению, оформлению и подготовке к реализации холодных и горячих сладких блюд, десертов, напитков разнообразного ассортимента"]
[null,"  ПП.04.01",null,23,"Производственная практика по приготовлению, оформлению и подготовке к реализации холодных и горячих сладких блюд, десертов, напитков разнообразного ассортимента"]
[null,"  МДК.05.01",null,24,"Организация приготовления, оформления и подготовки к реализации хлебобулочных, мучных кондитерских изделий"]
[null,"  МДК.05.02",null,25,"Процессы приготовления, оформления и подготовки к реализации хлебобулочных, мучных кондитерских изделий"]
[null,"  УП.05.01",null,26,"Учебная практика по приготовлению, оформлению и подготовке к реализации хлебобулочных, мучных кондитерских изделий разнообразного ассортимента"]
[null,"  ПП.05.01",null,27,"Производственная практика по приготовлению, оформлению и подготовке к реализации хлебобулочных, мучных кондитерских изделий разнообразного ассортимента"]
[null,null,null,28]
[null,null,null,29]
[null,null,null,30]
[null,null,null,31]
[null,null,null,32]
[null,null,null,33]
[null,null,null,34]
[null,null,null,35]
[null,null,null,36]
[null,null,null,37]
[null,null,null,38]
[null,null,null,39]
[null,null,null,40]
[null,null,null,41]
[null,null,null,42]
[null,null,null,43]
[null,null,null,44]
[null,null,null,45]
[null,null,null,46]
[null,null,null,47]
[null,null,null,48]
[null,null,null,49]
[null,null,null,50]
[null,null,null,51]
[null,null,null,52]
[null,null,null,53]
[null,null,null,54]
[null,null,null,55]
[null,null,null,56]
[null,null,null,57]
[null,null,null,58]
[null,null,null,59]
[null,null,null,60]
[null,null,null,61]
[null,null,null,62]
[null,null,null,63]
[null,null,null,64]
[null,null,null,65]
[null,null,null,66]
[null,null,null,67]
[null,null,null,68]
[null,null,null,69]
[null,null,null,70]
[null,null,null,71]
[null,null,null,72]
[null,null,null,73]
[null,null,null,74]
[null,null,null,75]
[null,null,null,76]
[null,null,null,77]
[null,null,null,78]
[null,null,null,79]
[null,null,null,80]
[null,null,null,81]
["ОК 08.",null,null,1,"Использовать средства физической культуры для сохранения и укрепления здоровья в процессе профессиональной деятельности и поддержания необходимого уровня физической подготовленности"]
[null,"  ОП.08",null,2,"Безопасность жизнедеятельности"]
[null,"  ОП.09",null,3]
[null,"  ОП.10",null,4]
[null,"  ОП.11",null,5]
[null,"  ОП.12",null,6]
[null,"  ОП.13",null,7]
[null,"  ОП.14",null,8]
[null,"  ОП.15",null,9]
[null,"  ОП.16",null,10]
[null,"  ОП.17",null,11]
[null,"  ОП.18",null,12]
[null,"  ОП.19",null,13]
[null,"  ОП.20",null,14]
[null,"  ОП.21",null,15]
[null,"  ОП.22",null,16]
[null,"  ОП.23",null,17]
[null,"  ОП.24",null,18]
[null,"  ОП.25",null,19]
[null,"  ОП.26",null,20]
[null,"  ОП.27",null,21]
[null,"  ОП.28",null,22]
[null,"  ОП.29",null,23]
[null,"  ОП.30",null,24]
[null,"  ОП.31",null,25]
[null,"  ОП.32",null,26]
[null,"  ОП.33",null,27]
[null,"  ОП.34",null,28]
[null,"  ОП.35",null,29]
[null,"  ОП.36",null,30]
[null,"  ОП.37",null,31]
[null,"  ОП.38",null,32]
[null,"  ОП.39",null,33]
[null,"  ОП.40",null,34]
[null,"  ОП.41",null,35]
[null,"  ОП.42",null,36]
[null,"  ОП.43",null,37]
[null,"  ОП.44",null,38]
[null,"  ОП.45",null,39]
[null,"  ОП.46",null,40]
[null,"  ОП.47",null,41]
[null,"  ОП.48",null,42]
[null,"  ОП.49",null,43]
[null,"  ОП.50",null,44]
[null,"  ОП.51",null,45]
[null,"  ОП.52",null,46]
[null,"  ОП.53",null,47]
[null,"  ОП.54",null,48]
[null,"  ОП.55",null,49]
[null,"  ОП.56",null,50]
[null,"  ОП.57",null,51]
[null,"  ОП.58",null,52]
[null,"  ОП.59",null,53]
[null,"  ОП.60",null,54]
[null,"  ОП.61",null,55]
[null,"  ОП.62",null,56]
[null,"  ОП.63",null,57]
[null,"  ОП.64",null,58]
[null,"  ОП.65",null,59]
[null,"  ОП.66",null,60]
[null,"  ОП.67",null,61]
[null,"  ОП.68",null,62]
[null,"  ОП.69",null,63]
[null,"  ОП.70",null,64]
[null,"  ОП.71",null,65]
[null,"  ОП.72",null,66]
[null,"  ОП.73",null,67]
[null,"  ОП.74",null,68]
[null,"  ОП.75",null,69]
[null,"  ОП.76",null,70]
[null,"  ОП.77",null,71]
[null,"  ОП.78",null,72]
[null,"  ОП.79",null,73]
[null,"  ОП.80",null,74]
[null,"  ОП.81",null,75]
[null,"  ОП.82",null,76]
[null,"  ОП.83",null,77]
[null,"  ОП.84",null,78]
[null,"  ОП.85",null,79]
[null,"  ОП.86",null,80]
[null,"  ОП.87",null,81]
[null,"  ОП.09",null,null,"Физическая культура"]
["ОК 09.",null,null,1,"Использовать информационные технологии в профессиональной деятельности"]
[null,"  ОП.01",null,2,"Основы микробиологии, физиологии питания, санитарии и гигиены"]
[null,"  ОП.02",null,3,"Основы товароведения продовольственных товаров"]
[null,"  ОП.03",null,4,"Техническое оснащение и организация рабочего места"]
[null,"  ОП.04",null,5,"Экономические и правовые основы профессиональной деятельности"]
[null,"  ОП.05",null,6,"Основы калькуляции и учета"]
[null,"  ОП.06",null,7,"Охрана труда"]
[null,"  ОП.07",null,8,"Иностранный язык в профессиональной деятельности"]
[null,"  ОП.08",null,9,"Безопасность жизнедеятельности"]
[null,"  ОП.12",null,10,"Основы предпринимательской деятельности"]
[null,null,null,11]
[null,null,null,12]
[null,null,null,13]
[null,null,null,14]
[null,null,null,15]
[null,null,null,16]
[null,null,null,17]
[null,null,null,18]
[null,null,null,19]
[null,null,null,20]
[null,null,null,21]
[null,null,null,22]
[null,null,null,23]
[null,null,null,24]
[null,null,null,25]
[null,null,null,26]
[null,null,null,27]
[null,null,null,28]
[null,null,null,29]
[null,null,null,30]
[null,null,null,31]
[null,null,null,32]
[null,null,null,33]
[null,null,null,34]
[null,null,null,35]
[null,null,null,36]
[null,null,null,37]
[null,null,null,38]
[null,null,null,39]
[null,null,null,40]
[null,null,null,41]
[null,null,null,42]
[null,null,null,43]
[null,null,null,44]
[null,null,null,45]
[null,null,null,46]
[null,null,null,47]
[null,null,null,48]
[null,null,null,49]
[null,null,null,50]
[null,null,null,51]
[null,null,null,52]
[null,null,null,53]
[null,null,null,54]
[null,null,null,55]
[null,null,null,56]
[null,null,null,57]
[null,null,null,58]
[null,null,null,59]
[null,null,null,60]
[null,null,null,61]
[null,null,null,62]
[null,null,null,63]
[null,null,null,64]
[null,null,null,65]
[null,null,null,66]
[null,null,null,67]
[null,null,null,68]
[null,null,null,69]
[null,null,null,70]
[null,null,null,71]
[null,null,null,72]
[null,null,null,73]
[null,null,null,74]
[null,null,null,75]
[null,null,null,76]
[null,null,null,77]
[null,null,null,78]
[null,null,null,79]
[null,null,null,80]
[null,null,null,81]
["ОК 10.",null,null,1,"Пользоваться профессиональной документацией на государственном и иностранном языке"]
[null,"  ОП.01",null,2,"Основы микробиологии, физиологии питания, санитарии и гигиены"]
[null,"  ОП.02",null,3,"Основы товароведения продовольственных товаров"]
[null,"  ОП.03",null,4,"Техническое оснащение и организация рабочего места"]
[null,"  ОП.04",null,5,"Экономические и правовые основы профессиональной деятельности"]
[null,"  ОП.05",null,6,"Основы калькуляции и учета"]
[null,"  ОП.06",null,7,"Охрана труда"]
[null,"  ОП.07",null,8,"Иностранный язык в профессиональной деятельности"]
[null,"  ОП.08",null,9,"Безопасность жизнедеятельности"]
[null,"  ОП.10",null,10,"Русский язык и культура речи"]
[null,null,null,11]
[null,null,null,12]
[null,null,null,13]
[null,null,null,14]
[null,null,null,15]
[null,null,null,16]
[null,null,null,17]
[null,null,null,18]
[null,null,null,19]
[null,null,null,20]
[null,null,null,21]
[null,null,null,22]
[null,null,null,23]
[null,null,null,24]
[null,null,null,25]
[null,null,null,26]
[null,null,null,27]
[null,null,null,28]
[null,null,null,29]
[null,null,null,30]
[null,null,null,31]
[null,null,null,32]
[null,null,null,33]
[null,null,null,34]
[null,null,null,35]
[null,null,null,36]
[null,null,null,37]
[null,null,null,38]
[null,null,null,39]
[null,null,null,40]
[null,null,null,41]
[null,null,null,42]
[null,null,null,43]
[null,null,null,44]
[null,null,null,45]
[null,null,null,46]
[null,null,null,47]
[null,null,null,48]
[null,null,null,49]
[null,null,null,50]
[null,null,null,51]
[null,null,null,52]
[null,null,null,53]
[null,null,null,54]
[null,null,null,55]
[null,null,null,56]
[null,null,null,57]
[null,null,null,58]
[null,null,null,59]
[null,null,null,60]
[null,null,null,61]
[null,null,null,62]
[null,null,null,63]
[null,null,null,64]
[null,null,null,65]
[null,null,null,66]
[null,null,null,67]
[null,null,null,68]
[null,null,null,69]
[null,null,null,70]
[null,null,null,71]
[null,null,null,72]
[null,null,null,73]
[null,null,null,74]
[null,null,null,75]
[null,null,null,76]
[null,null,null,77]
[null,null,null,78]
[null,null,null,79]
[null,null,null,80]
[null,null,null,81]
["ОК 11.",null,null,1,"Планировать предпринимательскую деятельность в профессиональной сфере"]
[null,"  ОП.04",null,2,"Экономические и правовые основы профессиональной деятельности"]
[null,"  ОП.06",null,3,"Охрана труда"]
[null,"  ОП.08",null,4,"Безопасность жизнедеятельности"]
[null,"  ОП.12",null,5,"Основы предпринимательской деятельности"]
[null,null,null,6]
[null,null,null,7]
[null,null,null,8]
[null,null,null,9]
[null,null,null,10]
[null,null,null,11]
[null,null,null,12]
[null,null,null,13]
[null,null,null,14]
[null,null,null,15]
[null,null,null,16]
[null,null,null,17]
[null,null,null,18]
[null,null,null,19]
[null,null,null,20]
[null,null,null,21]
[null,null,null,22]
[null,null,null,23]
[null,null,null,24]
[null,null,null,25]
[null,null,null,26]
[null,null,null,27]
[null,null,null,28]
[null,null,null,29]
[null,null,null,30]
[null,null,null,31]
[null,null,null,32]
[null,null,null,33]
[null,null,null,34]
[null,null,null,35]
[null,null,null,36]
[null,null,null,37]
[null,null,null,38]
[null,null,null,39]
[null,null,null,40]
[null,null,null,41]
[null,null,null,42]
[null,null,null,43]
[null,null,null,44]
[null,null,null,45]
[null,null,null,46]
[null,null,null,47]
[null,null,null,48]
[null,null,null,49]
[null,null,null,50]
[null,null,null,51]
[null,null,null,52]
[null,null,null,53]
[null,null,null,54]
[null,null,null,55]
[null,null,null,56]
[null,null,null,57]
[null,null,null,58]
[null,null,null,59]
[null,null,null,60]
[null,null,null,61]
[null,null,null,62]
[null,null,null,63]
[null,null,null,64]
[null,null,null,65]
[null,null,null,66]
[null,null,null,67]
[null,null,null,68]
[null,null,null,69]
[null,null,null,70]
[null,null,null,71]
[null,null,null,72]
[null,null,null,73]
[null,null,null,74]
[null,null,null,75]
[null,null,null,76]
[null,null,null,77]
[null,null,null,78]
[null,null,null,79]
[null,null,null,80]
[null,null,null,81]
["ПК 1.1.",null,null,1,"Подготавливать рабочее место, оборудование, сырье, исходные материалы для обработки сырья, приготовления полуфабрикатов в соответствии с инструкциями и регламентами."]
[null,"  ОП.01",null,2,"Основы микробиологии, физиологии питания, санитарии и гигиены"]
[null,"  ОП.02",null,3,"Основы товароведения продовольственных товаров"]
[null,"  ОП.03",null,4,"Техническое оснащение и организация рабочего места"]
[null,"  ОП.05",null,6,"Основы калькуляции и учета"]
[null,"  ОП.06",null,7,"Охрана труда"]
[null,"  ОП.08",null,8,"Безопасность жизнедеятельности"]
[null,"  МДК.01.01",null,9,"Организация приготовления, подготовки к реализации и хранения кулинарных полуфабрикатов"]
[null,"  МДК.01.02",null,10,"Процессы приготовления, подготовки к реализации кулинарных полуфабрикатов"]
[null,"  УП.01.01",null,11,"Учебная практика по приготовлению и подготовке к реализации полуфабрикатов для блюд, кулинарных изделий разнообразного ассортимента"]
[null,"  ПП.01.01",null,12,"Производственная практика по приготовлению и подготовке к реализации полуфабрикатов для блюд, кулинарных изделий разнообразного ассортимента"]
[null,null,null,13]
[null,null,null,14]
[null,null,null,15]
[null,null,null,16]
[null,null,null,17]
[null,null,null,18]
[null,null,null,19]
[null,null,null,20]
[null,null,null,21]
[null,null,null,22]
[null,null,null,23]
[null,null,null,24]
[null,null,null,25]
[null,null,null,26]
[null,null,null,27]
[null,null,null,28]
[null,null,null,29]
[null,null,null,30]
[null,null,null,31]
[null,null,null,32]
[null,null,null,33]
[null,null,null,34]
[null,null,null,35]
[null,null,null,36]
[null,null,null,37]
[null,null,null,38]
[null,null,null,39]
[null,null,null,40]
[null,null,null,41]
[null,null,null,42]
[null,null,null,43]
[null,null,null,44]
[null,null,null,45]
[null,null,null,46]
[null,null,null,47]
[null,null,null,48]
[null,null,null,49]
[null,null,null,50]
[null,null,null,51]
[null,null,null,52]
[null,null,null,53]
[null,null,null,54]
[null,null,null,55]
[null,null,null,56]
[null,null,null,57]
[null,null,null,58]
[null,null,null,59]
[null,null,null,60]
[null,null,null,61]
[null,null,null,62]
[null,null,null,63]
[null,null,null,64]
[null,null,null,65]
[null,null,null,66]
[null,null,null,67]
[null,null,null,68]
[null,null,null,69]
[null,null,null,70]
[null,null,null,71]
[null,null,null,72]
[null,null,null,73]
[null,null,null,74]
[null,null,null,75]
[null,null,null,76]
[null,null,null,77]
[null,null,null,78]
[null,null,null,79]
[null,null,null,80]
[null,null,null,81]
["ПК 1.2.",null,null,1,"Осуществлять обработку, подготовку овощей, грибов. рыбы, не рыбного водного сырья, мяса, домашней птицы, дичи, кролика"]
[null,"  ОП.01",null,2,"Основы микробиологии, физиологии питания, санитарии и гигиены"]
[null,"  ОП.02",null,3,"Основы товароведения продовольственных товаров"]
[null,"  ОП.03",null,4,"Техническое оснащение и организация рабочего места"]
[null,"  ОП.05",null,6,"Основы калькуляции и учета"]
[null,"  ОП.06",null,7,"Охрана труда"]
[null,"  ОП.08",null,8,"Безопасность жизнедеятельности"]
[null,"  МДК.01.01",null,9,"Организация приготовления, подготовки к реализации и хранения кулинарных полуфабрикатов"]
[null,"  МДК.01.02",null,10,"Процессы приготовления, подготовки к реализации кулинарных полуфабрикатов"]
[null,"  УП.01.01",null,11,"Учебная практика по приготовлению и подготовке к реализации полуфабрикатов для блюд, кулинарных изделий разнообразного ассортимента"]
[null,"  ПП.01.01",null,12,"Производственная практика по приготовлению и подготовке к реализации полуфабрикатов для блюд, кулинарных изделий разнообразного ассортимента"]
[null,null,null,13]
[null,null,null,14]
[null,null,null,15]
[null,null,null,16]
[null,null,null,17]
[null,null,null,18]
[null,null,null,19]
[null,null,null,20]
[null,null,null,21]
[null,null,null,22]
[null,null,null,23]
[null,null,null,24]
[null,null,null,25]
[null,null,null,26]
[null,null,null,27]
[null,null,null,28]
[null,null,null,29]
[null,null,null,30]
[null,null,null,31]
[null,null,null,32]
[null,null,null,33]
[null,null,null,34]
[null,null,null,35]
[null,null,null,36]
[null,null,null,37]
[null,null,null,38]
[null,null,null,39]
[null,null,null,40]
[null,null,null,41]
[null,null,null,42]
[null,null,null,43]
[null,null,null,44]
[null,null,null,45]
[null,null,null,46]
[null,null,null,47]
[null,null,null,48]
[null,null,null,49]
[null,null,null,50]
[null,null,null,51]
[null,null,null,52]
[null,null,null,53]
[null,null,null,54]
[null,null,null,55]
[null,null,null,56]
[null,null,null,57]
[null,null,null,58]
[null,null,null,59]
[null,null,null,60]
[null,null,null,61]
[null,null,null,62]
[null,null,null,63]
[null,null,null,64]
[null,null,null,65]
[null,null,null,66]
[null,null,null,67]
[null,null,null,68]
[null,null,null,69]
[null,null,null,70]
[null,null,null,71]
[null,null,null,72]
[null,null,null,73]
[null,null,null,74]
[null,null,null,75]
[null,null,null,76]
[null,null,null,77]
[null,null,null,78]
[null,null,null,79]
[null,null,null,80]
[null,null,null,81]
["ПК 1.3.",null,null,1,"Проводить приготовление и подготовку к реализации полуфабрикатов разнообразного ассортимента для блюд, кулинарных изделий из рыбы и не рыбного водного сырья"]
[null,"  ОП.01",null,2,"Основы микробиологии, физиологии питания, санитарии и гигиены"]
[null,"  ОП.02",null,3,"Основы товароведения продовольственных товаров"]
[null,"  ОП.03",null,4,"Техническое оснащение и организация рабочего места"]
[null,"  ОП.05",null,6,"Основы калькуляции и учета"]
[null,"  ОП.06",null,7,"Охрана труда"]
[null,"  ОП.08",null,8,"Безопасность жизнедеятельности"]
[null,"  МДК.01.01",null,9,"Организация приготовления, подготовки к реализации и хранения кулинарных полуфабрикатов"]
[null,"  МДК.01.02",null,10,"Процессы приготовления, подготовки к реализации кулинарных полуфабрикатов"]
[null,"  УП.01.01",null,11,"Учебная практика по приготовлению и подготовке к реализации полуфабрикатов для блюд, кулинарных изделий разнообразного ассортимента"]
[null,"  ПП.01.01",null,12,"Производственная практика по приготовлению и подготовке к реализации полуфабрикатов для блюд, кулинарных изделий разнообразного ассортимента"]
[null,null,null,13]
[null,null,null,14]
[null,null,null,15]
[null,null,null,16]
[null,null,null,17]
[null,null,null,18]
[null,null,null,19]
[null,null,null,20]
[null,null,null,21]
[null,null,null,22]
[null,null,null,23]
[null,null,null,24]
[null,null,null,25]
[null,null,null,26]
[null,null,null,27]
[null,null,null,28]
[null,null,null,29]
[null,null,null,30]
[null,null,null,31]
[null,null,null,32]
[null,null,null,33]
[null,null,null,34]
[null,null,null,35]
[null,null,null,36]
[null,null,null,37]
[null,null,null,38]
[null,null,null,39]
[null,null,null,40]
[null,null,null,41]
[null,null,null,42]
[null,null,null,43]
[null,null,null,44]
[null,null,null,45]
[null,null,null,46]
[null,null,null,47]
[null,null,null,48]
[null,null,null,49]
[null,null,null,50]
[null,null,null,51]
[null,null,null,52]
[null,null,null,53]
[null,null,null,54]
[null,null,null,55]
[null,null,null,56]
[null,null,null,57]
[null,null,null,58]
[null,null,null,59]
[null,null,null,60]
[null,null,null,61]
[null,null,null,62]
[null,null,null,63]
[null,null,null,64]
[null,null,null,65]
[null,null,null,66]
[null,null,null,67]
[null,null,null,68]
[null,null,null,69]
[null,null,null,70]
[null,null,null,71]
[null,null,null,72]
[null,null,null,73]
[null,null,null,74]
[null,null,null,75]
[null,null,null,76]
[null,null,null,77]
[null,null,null,78]
[null,null,null,79]
[null,null,null,80]
[null,null,null,81]
["ПК 1.4.",null,null,1,"Проводить приготовление и подготовку к реализации полуфабрикатов разнообразного ассортимента для блюд, кулинарных изделий из мяса, домашней птицы, дичи, кролика"]
[null,"  ОП.01",null,2,"Основы микробиологии, физиологии питания, санитарии и гигиены"]
[null,"  ОП.02",null,3,"Основы товароведения продовольственных товаров"]
[null,"  ОП.03",null,4,"Техническое оснащение и организация рабочего места"]
[null,"  ОП.05",null,6,"Основы калькуляции и учета"]
[null,"  ОП.06",null,7,"Охрана труда"]
[null,"  ОП.08",null,8,"Безопасность жизнедеятельности"]
[null,"  МДК.01.01",null,9,"Организация приготовления, подготовки к реализации и хранения кулинарных полуфабрикатов"]
[null,"  МДК.01.02",null,10,"Процессы приготовления, подготовки к реализации кулинарных полуфабрикатов"]
[null,"  УП.01.01",null,11,"Учебная практика по приготовлению и подготовке к реализации полуфабрикатов для блюд, кулинарных изделий разнообразного ассортимента"]
[null,"  ПП.01.01",null,12,"Производственная практика по приготовлению и подготовке к реализации полуфабрикатов для блюд, кулинарных изделий разнообразного ассортимента"]
[null,null,null,13]
[null,null,null,14]
[null,null,null,15]
[null,null,null,16]
[null,null,null,17]
[null,null,null,18]
[null,null,null,19]
[null,null,null,20]
[null,null,null,21]
[null,null,null,22]
[null,null,null,23]
[null,null,null,24]
[null,null,null,25]
[null,null,null,26]
[null,null,null,27]
[null,null,null,28]
[null,null,null,29]
[null,null,null,30]
[null,null,null,31]
[null,null,null,32]
[null,null,null,33]
[null,null,null,34]
[null,null,null,35]
[null,null,null,36]
[null,null,null,37]
[null,null,null,38]
[null,null,null,39]
[null,null,null,40]
[null,null,null,41]
[null,null,null,42]
[null,null,null,43]
[null,null,null,44]
[null,null,null,45]
[null,null,null,46]
[null,null,null,47]
[null,null,null,48]
[null,null,null,49]
[null,null,null,50]
[null,null,null,51]
[null,null,null,52]
[null,null,null,53]
[null,null,null,54]
[null,null,null,55]
[null,null,null,56]
[null,null,null,57]
[null,null,null,58]
[null,null,null,59]
[null,null,null,60]
[null,null,null,61]
[null,null,null,62]
[null,null,null,63]
[null,null,null,64]
[null,null,null,65]
[null,null,null,66]
[null,null,null,67]
[null,null,null,68]
[null,null,null,69]
[null,null,null,70]
[null,null,null,71]
[null,null,null,72]
[null,null,null,73]
[null,null,null,74]
[null,null,null,75]
[null,null,null,76]
[null,null,null,77]
[null,null,null,78]
[null,null,null,79]
[null,null,null,80]
[null,null,null,81]
["ПК 2.1.",null,null,1,"Подготавливать рабочее место, оборудование, сырье, исходные материалы для приготовления горячих блюд, кулинарных изделий, закусок разнообразного ассортимента в соответствии с инструкциями и регламентами."]
[null,"  ОП.01",null,2,"Основы микробиологии, физиологии питания, санитарии и гигиены"]
[null,"  ОП.02",null,3,"Основы товароведения продовольственных товаров"]
[null,"  ОП.03",null,4,"Техническое оснащение и организация рабочего места"]
[null,"  ОП.05",null,6,"Основы калькуляции и учета"]
[null,"  ОП.06",null,7,"Охрана труда"]
[null,"  ОП.08",null,8,"Безопасность жизнедеятельности"]
[null,"  МДК.02.01",null,9,"Организация приготовления, подготовки к реализации и хранения горячих блюд, кулинарных изделий и закусок разнообразного ассортимента"]
[null,"  МДК.02.02",null,10,"Процессы приготовления, подготовки к реализации горячих блюд, кулинарных изделий и закусок разнообразного ассортимента"]
[null,"  УП.02.01",null,11,"Учебная практика по приготовлению, оформлению и подготовке к реализации горячих блюд, кулинарных изделий, закусок разнообразного ассортимента"]
[null,"  ПП.02.01",null,12,"Производственная практика по приготовлению, оформлению и подготовке к реализации горячих блюд, кулинарных изделий, закусок разнообразного ассортимента"]
[null,null,null,13]
[null,null,null,14]
[null,null,null,15]
[null,null,null,16]
[null,null,null,17]
[null,null,null,18]
[null,null,null,19]
[null,null,null,20]
[null,null,null,21]
[null,null,null,22]
[null,null,null,23]
[null,null,null,24]
[null,null,null,25]
[null,null,null,26]
[null,null,null,27]
[null,null,null,28]
[null,null,null,29]
[null,null,null,30]
[null,null,null,31]
[null,null,null,32]
[null,null,null,33]
[null,null,null,34]
[null,null,null,35]
[null,null,null,36]
[null,null,null,37]
[null,null,null,38]
[null,null,null,39]
[null,null,null,40]
[null,null,null,41]
[null,null,null,42]
[null,null,null,43]
[null,null,null,44]
[null,null,null,45]
[null,null,null,46]
[null,null,null,47]
[null,null,null,48]
[null,null,null,49]
[null,null,null,50]
[null,null,null,51]
[null,null,null,52]
[null,null,null,53]
[null,null,null,54]
[null,null,null,55]
[null,null,null,56]
[null,null,null,57]
[null,null,null,58]
[null,null,null,59]
[null,null,null,60]
[null,null,null,61]
[null,null,null,62]
[null,null,null,63]
[null,null,null,64]
[null,null,null,65]
[null,null,null,66]
[null,null,null,67]
[null,null,null,68]
[null,null,null,69]
[null,null,null,70]
[null,null,null,71]
[null,null,null,72]
[null,null,null,73]
[null,null,null,74]
[null,null,null,75]
[null,null,null,76]
[null,null,null,77]
[null,null,null,78]
[null,null,null,79]
[null,null,null,80]
[null,null,null,81]
["ПК 2.2.",null,null,1,"Осуществлять приготовление, непродолжительное хранение бульонов, отваров разнообразного ассортимента"]
[null,"  ОП.01",null,2,"Основы микробиологии, физиологии питания, санитарии и гигиены"]
[null,"  ОП.02",null,3,"Основы товароведения продовольственных товаров"]
[null,"  ОП.03",null,4,"Техническое оснащение и организация рабочего места"]
[null,"  ОП.05",null,6,"Основы калькуляции и учета"]
[null,"  ОП.06",null,7,"Охрана труда"]
[null,"  ОП.08",null,8,"Безопасность жизнедеятельности"]
[null,"  МДК.02.01",null,9,"Организация приготовления, подготовки к реализации и хранения горячих блюд, кулинарных изделий и закусок разнообразного ассортимента"]
[null,"  МДК.02.02",null,10,"Процессы приготовления, подготовки к реализации горячих блюд, кулинарных изделий и закусок разнообразного ассортимента"]
[null,"  УП.02.01",null,11,"Учебная практика по приготовлению, оформлению и подготовке к реализации горячих блюд, кулинарных изделий, закусок разнообразного ассортимента"]
[null,"  ПП.02.01",null,12,"Производственная практика по приготовлению, оформлению и подготовке к реализации горячих блюд, кулинарных изделий, закусок разнообразного ассортимента"]
[null,null,null,13]
[null,null,null,14]
[null,null,null,15]
[null,null,null,16]
[null,null,null,17]
[null,null,null,18]
[null,null,null,19]
[null,null,null,20]
[null,null,null,21]
[null,null,null,22]
[null,null,null,23]
[null,null,null,24]
[null,null,null,25]
[null,null,null,26]
[null,null,null,27]
[null,null,null,28]
[null,null,null,29]
[null,null,null,30]
[null,null,null,31]
[null,null,null,32]
[null,null,null,33]
[null,null,null,34]
[null,null,null,35]
[null,null,null,36]
[null,null,null,37]
[null,null,null,38]
[null,null,null,39]
[null,null,null,40]
[null,null,null,41]
[null,null,null,42]
[null,null,null,43]
[null,null,null,44]
[null,null,null,45]
[null,null,null,46]
[null,null,null,47]
[null,null,null,48]
[null,null,null,49]
[null,null,null,50]
[null,null,null,51]
[null,null,null,52]
[null,null,null,53]
[null,null,null,54]
[null,null,null,55]
[null,null,null,56]
[null,null,null,57]
[null,null,null,58]
[null,null,null,59]
[null,null,null,60]
[null,null,null,61]
[null,null,null,62]
[null,null,null,63]
[null,null,null,64]
[null,null,null,65]
[null,null,null,66]
[null,null,null,67]
[null,null,null,68]
[null,null,null,69]
[null,null,null,70]
[null,null,null,71]
[null,null,null,72]
[null,null,null,73]
[null,null,null,74]
[null,null,null,75]
[null,null,null,76]
[null,null,null,77]
[null,null,null,78]
[null,null,null,79]
[null,null,null,80]
[null,null,null,81]
["ПК 2.3.",null,null,1,"Осуществлять приготовление, творческое оформление и подготовку к реализации супов разнообразного ассортимента"]
[null,"  ОП.01",null,2,"Основы микробиологии, физиологии питания, санитарии и гигиены"]
[null,"  ОП.02",null,3,"Основы товароведения продовольственных товаров"]
[null,"  ОП.03",null,4,"Техническое оснащение и организация рабочего места"]
[null,"  ОП.05",null,6,"Основы калькуляции и учета"]
[null,"  ОП.06",null,7,"Охрана труда"]
[null,"  ОП.08",null,8,"Безопасность жизнедеятельности"]
[null,"  МДК.02.01",null,9,"Организация приготовления, подготовки к реализации и хранения горячих блюд, кулинарных изделий и закусок разнообразного ассортимента"]
[null,"  МДК.02.02",null,10,"Процессы приготовления, подготовки к реализации горячих блюд, кулинарных изделий и закусок разнообразного ассортимента"]
[null,"  УП.02.01",null,11,"Учебная практика по приготовлению, оформлению и подготовке к реализации горячих блюд, кулинарных изделий, закусок разнообразного ассортимента"]
[null,"  ПП.02.01",null,12,"Производственная практика по приготовлению, оформлению и подготовке к реализации горячих блюд, кулинарных изделий, закусок разнообразного ассортимента"]
[null,null,null,13]
[null,null,null,14]
[null,null,null,15]
[null,null,null,16]
[null,null,null,17]
[null,null,null,18]
[null,null,null,19]
[null,null,null,20]
[null,null,null,21]
[null,null,null,22]
[null,null,null,23]
[null,null,null,24]
[null,null,null,25]
[null,null,null,26]
[null,null,null,27]
[null,null,null,28]
[null,null,null,29]
[null,null,null,30]
[null,null,null,31]
[null,null,null,32]
[null,null,null,33]
[null,null,null,34]
[null,null,null,35]
[null,null,null,36]
[null,null,null,37]
[null,null,null,38]
[null,null,null,39]
[null,null,null,40]
[null,null,null,41]
[null,null,null,42]
[null,null,null,43]
[null,null,null,44]
[null,null,null,45]
[null,null,null,46]
[null,null,null,47]
[null,null,null,48]
[null,null,null,49]
[null,null,null,50]
[null,null,null,51]
[null,null,null,52]
[null,null,null,53]
[null,null,null,54]
[null,null,null,55]
[null,null,null,56]
[null,null,null,57]
[null,null,null,58]
[null,null,null,59]
[null,null,null,60]
[null,null,null,61]
[null,null,null,62]
[null,null,null,63]
[null,null,null,64]
[null,null,null,65]
[null,null,null,66]
[null,null,null,67]
[null,null,null,68]
[null,null,null,69]
[null,null,null,70]
[null,null,null,71]
[null,null,null,72]
[null,null,null,73]
[null,null,null,74]
[null,null,null,75]
[null,null,null,76]
[null,null,null,77]
[null,null,null,78]
[null,null,null,79]
[null,null,null,80]
[null,null,null,81]
["ПК 2.4.",null,null,1,"Осуществлять приготовление, непродолжительное хранение горячих соусов разнообразного ассортимента"]
[null,"  ОП.01",null,2,"Основы микробиологии, физиологии питания, санитарии и гигиены"]
[null,"  ОП.02",null,3,"Основы товароведения продовольственных товаров"]
[null,"  ОП.03",null,4,"Техническое оснащение и организация рабочего места"]
[null,"  ОП.05",null,6,"Основы калькуляции и учета"]
[null,"  ОП.06",null,7,"Охрана труда"]
[null,"  ОП.08",null,8,"Безопасность жизнедеятельности"]
[null,"  МДК.02.01",null,9,"Организация приготовления, подготовки к реализации и хранения горячих блюд, кулинарных изделий и закусок разнообразного ассортимента"]
[null,"  МДК.02.02",null,10,"Процессы приготовления, подготовки к реализации горячих блюд, кулинарных изделий и закусок разнообразного ассортимента"]
[null,"  УП.02.01",null,11,"Учебная практика по приготовлению, оформлению и подготовке к реализации горячих блюд, кулинарных изделий, закусок разнообразного ассортимента"]
[null,"  ПП.02.01",null,12,"Производственная практика по приготовлению, оформлению и подготовке к реализации горячих блюд, кулинарных изделий, закусок разнообразного ассортимента"]
[null,null,null,13]
[null,null,null,14]
[null,null,null,15]
[null,null,null,16]
[null,null,null,17]
[null,null,null,18]
[null,null,null,19]
[null,null,null,20]
[null,null,null,21]
[null,null,null,22]
[null,null,null,23]
[null,null,null,24]
[null,null,null,25]
[null,null,null,26]
[null,null,null,27]
[null,null,null,28]
[null,null,null,29]
[null,null,null,30]
[null,null,null,31]
[null,null,null,32]
[null,null,null,33]
[null,null,null,34]
[null,null,null,35]
[null,null,null,36]
[null,null,null,37]
[null,null,null,38]
[null,null,null,39]
[null,null,null,40]
[null,null,null,41]
[null,null,null,42]
[null,null,null,43]
[null,null,null,44]
[null,null,null,45]
[null,null,null,46]
[null,null,null,47]
[null,null,null,48]
[null,null,null,49]
[null,null,null,50]
[null,null,null,51]
[null,null,null,52]
[null,null,null,53]
[null,null,null,54]
[null,null,null,55]
[null,null,null,56]
[null,null,null,57]
[null,null,null,58]
[null,null,null,59]
[null,null,null,60]
[null,null,null,61]
[null,null,null,62]
[null,null,null,63]
[null,null,null,64]
[null,null,null,65]
[null,null,null,66]
[null,null,null,67]
[null,null,null,68]
[null,null,null,69]
[null,null,null,70]
[null,null,null,71]
[null,null,null,72]
[null,null,null,73]
[null,null,null,74]
[null,null,null,75]
[null,null,null,76]
[null,null,null,77]
[null,null,null,78]
[null,null,null,79]
[null,null,null,80]
[null,null,null,81]
["ПК 2.5.",null,null,1,"Осуществлять приготовление, творческое оформление и подготовку к реализации горячих блюд и гарниров из овощей, грибов, круп, бобовых, макаронных изделий разнообразного ассортимента"]
[null,"  ОП.01",null,2,"Основы микробиологии, физиологии питания, санитарии и гигиены"]
[null,"  ОП.02",null,3,"Основы товароведения продовольственных товаров"]
[null,"  ОП.03",null,4,"Техническое оснащение и организация рабочего места"]
[null,"  ОП.05",null,6,"Основы калькуляции и учета"]
[null,"  ОП.06",null,7,"Охрана труда"]
[null,"  ОП.08",null,8,"Безопасность жизнедеятельности"]
[null,"  МДК.02.01",null,9,"Организация приготовления, подготовки к реализации и хранения горячих блюд, кулинарных изделий и закусок разнообразного ассортимента"]
[null,"  МДК.02.02",null,10,"Процессы приготовления, подготовки к реализации горячих блюд, кулинарных изделий и закусок разнообразного ассортимента"]
[null,"  УП.02.01",null,11,"Учебная практика по приготовлению, оформлению и подготовке к реализации горячих блюд, кулинарных изделий, закусок разнообразного ассортимента"]
[null,"  ПП.02.01",null,12,"Производственная практика по приготовлению, оформлению и подготовке к реализации горячих блюд, кулинарных изделий, закусок разнообразного ассортимента"]
[null,null,null,13]
[null,null,null,14]
[null,null,null,15]
[null,null,null,16]
[null,null,null,17]
[null,null,null,18]
[null,null,null,19]
[null,null,null,20]
[null,null,null,21]
[null,null,null,22]
[null,null,null,23]
[null,null,null,24]
[null,null,null,25]
[null,null,null,26]
[null,null,null,27]
[null,null,null,28]
[null,null,null,29]
[null,null,null,30]
[null,null,null,31]
[null,null,null,32]
[null,null,null,33]
[null,null,null,34]
[null,null,null,35]
[null,null,null,36]
[null,null,null,37]
[null,null,null,38]
[null,null,null,39]
[null,null,null,40]
[null,null,null,41]
[null,null,null,42]
[null,null,null,43]
[null,null,null,44]
[null,null,null,45]
[null,null,null,46]
[null,null,null,47]
[null,null,null,48]
[null,null,null,49]
[null,null,null,50]
[null,null,null,51]
[null,null,null,52]
[null,null,null,53]
[null,null,null,54]
[null,null,null,55]
[null,null,null,56]
[null,null,null,57]
[null,null,null,58]
[null,null,null,59]
[null,null,null,60]
[null,null,null,61]
[null,null,null,62]
[null,null,null,63]
[null,null,null,64]
[null,null,null,65]
[null,null,null,66]
[null,null,null,67]
[null,null,null,68]
[null,null,null,69]
[null,null,null,70]
[null,null,null,71]
[null,null,null,72]
[null,null,null,73]
[null,null,null,74]
[null,null,null,75]
[null,null,null,76]
[null,null,null,77]
[null,null,null,78]
[null,null,null,79]
[null,null,null,80]
[null,null,null,81]
["ПК 2.6.",null,null,1,"Осуществлять приготовление, творческое оформление и подготовку к реализации горячих блюд, кулинарных изделий, закусок из яиц, творога, сыра, муки  разнообразного ассортимента"]
[null,"  ОП.01",null,2,"Основы микробиологии, физиологии питания, санитарии и гигиены"]
[null,"  ОП.02",null,3,"Основы товароведения продовольственных товаров"]
[null,"  ОП.03",null,4,"Техническое оснащение и организация рабочего места"]
[null,"  ОП.05",null,6,"Основы калькуляции и учета"]
[null,"  ОП.06",null,7,"Охрана труда"]
[null,"  ОП.08",null,8,"Безопасность жизнедеятельности"]
[null,"  МДК.02.01",null,9,"Организация приготовления, подготовки к реализации и хранения горячих блюд, кулинарных изделий и закусок разнообразного ассортимента"]
[null,"  МДК.02.02",null,10,"Процессы приготовления, подготовки к реализации горячих блюд, кулинарных изделий и закусок разнообразного ассортимента"]
[null,"  УП.02.01",null,11,"Учебная практика по приготовлению, оформлению и подготовке к реализации горячих блюд, кулинарных изделий, закусок разнообразного ассортимента"]
[null,"  ПП.02.01",null,12,"Производственная практика по приготовлению, оформлению и подготовке к реализации горячих блюд, кулинарных изделий, закусок разнообразного ассортимента"]
["ПК 2.7.",null,null,1,"Осуществлять приготовление, творческое оформление и подготовку к реализации горячих блюд, кулинарных изделий, закусок из рыбы, не рыбного водного сырья  разнообразного ассортимента"]
[null,"  ОП.01",null,2,"Основы микробиологии, физиологии питания, санитарии и гигиены"]
[null,"  ОП.02",null,3,"Основы товароведения продовольственных товаров"]
[null,"  ОП.03",null,4,"Техническое оснащение и организация рабочего места"]
[null,"  ОП.05",null,6,"Основы калькуляции и учета"]
[null,"  ОП.06",null,7,"Охрана труда"]
[null,"  ОП.08",null,8,"Безопасность жизнедеятельности"]
[null,"  МДК.02.01",null,9,"Организация приготовления, подготовки к реализации и хранения горячих блюд, кулинарных изделий и закусок разнообразного ассортимента"]
[null,"  МДК.02.02",null,10,"Процессы приготовления, подготовки к реализации горячих блюд, кулинарных изделий и закусок разнообразного ассортимента"]
[null,"  УП.02.01",null,11,"Учебная практика по приготовлению, оформлению и подготовке к реализации горячих блюд, кулинарных изделий, закусок разнообразного ассортимента"]
[null,"  ПП.02.01",null,12,"Производственная практика по приготовлению, оформлению и подготовке к реализации горячих блюд, кулинарных изделий, закусок разнообразного ассортимента"]
[null,null,null,13]
[null,null,null,14]
[null,null,null,15]
[null,null,null,16]
[null,null,null,17]
[null,null,null,18]
[null,null,null,19]
[null,null,null,20]
[null,null,null,21]
[null,null,null,22]
[null,null,null,23]
[null,null,null,24]
[null,null,null,25]
[null,null,null,26]
[null,null,null,27]
[null,null,null,28]
[null,null,null,29]
[null,null,null,30]
[null,null,null,31]
[null,null,null,32]
[null,null,null,33]
[null,null,null,34]
[null,null,null,35]
[null,null,null,36]
[null,null,null,37]
[null,null,null,38]
[null,null,null,39]
[null,null,null,40]
[null,null,null,41]
[null,null,null,42]
[null,null,null,43]
[null,null,null,44]
[null,null,null,45]
[null,null,null,46]
[null,null,null,47]
[null,null,null,48]
[null,null,null,49]
[null,null,null,50]
[null,null,null,51]
[null,null,null,52]
[null,null,null,53]
[null,null,null,54]
[null,null,null,55]
[null,null,null,56]
[null,null,null,57]
[null,null,null,58]
[null,null,null,59]
[null,null,null,60]
[null,null,null,61]
[null,null,null,62]
[null,null,null,63]
[null,null,null,64]
[null,null,null,65]
[null,null,null,66]
[null,null,null,67]
[null,null,null,68]
[null,null,null,69]
[null,null,null,70]
[null,null,null,71]
[null,null,null,72]
[null,null,null,73]
[null,null,null,74]
[null,null,null,75]
[null,null,null,76]
[null,null,null,77]
[null,null,null,78]
[null,null,null,79]
[null,null,null,80]
[null,null,null,81]
["ПК 2.8.",null,null,1,"Осуществлять приготовление, творческое оформление и подготовку к реализации горячих блюд, кулинарных изделий, закусок из мяса, домашней птицы, дичи и кролика  разнообразного ассортимента"]
[null,"  ОП.01",null,2,"Основы микробиологии, физиологии питания, санитарии и гигиены"]
[null,"  ОП.02",null,3,"Основы товароведения продовольственных товаров"]
[null,"  ОП.03",null,4,"Техническое оснащение и организация рабочего места"]
[null,"  ОП.05",null,6,"Основы калькуляции и учета"]
[null,"  ОП.06",null,7,"Охрана труда"]
[null,"  ОП.08",null,8,"Безопасность жизнедеятельности"]
[null,"  МДК.02.01",null,9,"Организация приготовления, подготовки к реализации и хранения горячих блюд, кулинарных изделий и закусок разнообразного ассортимента"]
[null,"  МДК.02.02",null,10,"Процессы приготовления, подготовки к реализации горячих блюд, кулинарных изделий и закусок разнообразного ассортимента"]
[null,"  УП.02.01",null,11,"Учебная практика по приготовлению, оформлению и подготовке к реализации горячих блюд, кулинарных изделий, закусок разнообразного ассортимента"]
[null,"  ПП.02.01",null,12,"Производственная практика по приготовлению, оформлению и подготовке к реализации горячих блюд, кулинарных изделий, закусок разнообразного ассортимента"]
[null,null,null,13]
[null,null,null,14]
[null,null,null,15]
[null,null,null,16]
[null,null,null,17]
[null,null,null,18]
[null,null,null,19]
[null,null,null,20]
[null,null,null,21]
[null,null,null,22]
[null,null,null,23]
[null,null,null,24]
[null,null,null,25]
[null,null,null,26]
[null,null,null,27]
[null,null,null,28]
[null,null,null,29]
[null,null,null,30]
[null,null,null,31]
[null,null,null,32]
[null,null,null,33]
[null,null,null,34]
[null,null,null,35]
[null,null,null,36]
[null,null,null,37]
[null,null,null,38]
[null,null,null,39]
[null,null,null,40]
[null,null,null,41]
[null,null,null,42]
[null,null,null,43]
[null,null,null,44]
[null,null,null,45]
[null,null,null,46]
[null,null,null,47]
[null,null,null,48]
[null,null,null,49]
[null,null,null,50]
[null,null,null,51]
[null,null,null,52]
[null,null,null,53]
[null,null,null,54]
[null,null,null,55]
[null,null,null,56]
[null,null,null,57]
[null,null,null,58]
[null,null,null,59]
[null,null,null,60]
[null,null,null,61]
[null,null,null,62]
[null,null,null,63]
[null,null,null,64]
[null,null,null,65]
[null,null,null,66]
[null,null,null,67]
[null,null,null,68]
[null,null,null,69]
[null,null,null,70]
[null,null,null,71]
[null,null,null,72]
[null,null,null,73]
[null,null,null,74]
[null,null,null,75]
[null,null,null,76]
[null,null,null,77]
[null,null,null,78]
[null,null,null,79]
[null,null,null,80]
[null,null,null,81]
["ПК 3.1.",null,null,1,"Подготавливать рабочее место, оборудование, сырье, исходные материалы для приготовления холодных блюд, кулинарных изделий, закусок в соответствии с инструкциями и регламентами."]
[null,"  ОП.01",null,2,"Основы микробиологии, физиологии питания, санитарии и гигиены"]
[null,"  ОП.02",null,3,"Основы товароведения продовольственных товаров"]
[null,"  ОП.03",null,4,"Техническое оснащение и организация рабочего места"]
[null,"  ОП.05",null,6,"Основы калькуляции и учета"]
[null,"  ОП.06",null,7,"Охрана труда"]
[null,"  ОП.08",null,8,"Безопасность жизнедеятельности"]
[null,"  МДК.03.01",null,9,"Организация приготовления, подготовки к реализации и хранения холодных блюд, кулинарных изделий и закусок разнообразного ассортимента"]
[null,"  МДК.03.02",null,10,"Процессы приготовления, подготовки к реализации холодных блюд, кулинарных изделий и закусок разнообразного ассортимента"]
[null,"  УП.03.01",null,11,"Учебная практика по приготовлению, оформлению и подготовке к реализации холодных блюд, кулинарных изделий, закусок разнообразного ассортимента"]
[null,"  ПП.03.01",null,12,"Производственная практика по приготовлению, оформлению и подготовке к реализации холодных блюд, кулинарных изделий, закусок разнообразного ассортимента"]
[null,null,null,13]
[null,null,null,14]
[null,null,null,15]
[null,null,null,16]
[null,null,null,17]
[null,null,null,18]
[null,null,null,19]
[null,null,null,20]
[null,null,null,21]
[null,null,null,22]
[null,null,null,23]
[null,null,null,24]
[null,null,null,25]
[null,null,null,26]
[null,null,null,27]
[null,null,null,28]
[null,null,null,29]
[null,null,null,30]
[null,null,null,31]
[null,null,null,32]
[null,null,null,33]
[null,null,null,34]
[null,null,null,35]
[null,null,null,36]
[null,null,null,37]
[null,null,null,38]
[null,null,null,39]
[null,null,null,40]
[null,null,null,41]
[null,null,null,42]
[null,null,null,43]
[null,null,null,44]
[null,null,null,45]
[null,null,null,46]
[null,null,null,47]
[null,null,null,48]
[null,null,null,49]
[null,null,null,50]
[null,null,null,51]
[null,null,null,52]
[null,null,null,53]
[null,null,null,54]
[null,null,null,55]
[null,null,null,56]
[null,null,null,57]
[null,null,null,58]
[null,null,null,59]
[null,null,null,60]
[null,null,null,61]
[null,null,null,62]
[null,null,null,63]
[null,null,null,64]
[null,null,null,65]
[null,null,null,66]
[null,null,null,67]
[null,null,null,68]
[null,null,null,69]
[null,null,null,70]
[null,null,null,71]
[null,null,null,72]
[null,null,null,73]
[null,null,null,74]
[null,null,null,75]
[null,null,null,76]
[null,null,null,77]
[null,null,null,78]
[null,null,null,79]
[null,null,null,80]
[null,null,null,81]
["ПК 3.2.",null,null,1,"Осуществлять приготовление, непродолжительное хранение холодных соусов, заправок разнообразного ассортимента"]
[null,"  ОП.01",null,2,"Основы микробиологии, физиологии питания, санитарии и гигиены"]
[null,"  ОП.02",null,3,"Основы товароведения продовольственных товаров"]
[null,"  ОП.03",null,4,"Техническое оснащение и организация рабочего места"]
[null,"  ОП.05",null,6,"Основы калькуляции и учета"]
[null,"  ОП.06",null,7,"Охрана труда"]
[null,"  ОП.08",null,8,"Безопасность жизнедеятельности"]
[null,"  МДК.03.01",null,9,"Организация приготовления, подготовки к реализации и хранения холодных блюд, кулинарных изделий и закусок разнообразного ассортимента"]
[null,"  МДК.03.02",null,10,"Процессы приготовления, подготовки к реализации холодных блюд, кулинарных изделий и закусок разнообразного ассортимента"]
[null,"  УП.03.01",null,11,"Учебная практика по приготовлению, оформлению и подготовке к реализации холодных блюд, кулинарных изделий, закусок разнообразного ассортимента"]
[null,"  ПП.03.01",null,12,"Производственная практика по приготовлению, оформлению и подготовке к реализации холодных блюд, кулинарных изделий, закусок разнообразного ассортимента"]
[null,null,null,13]
[null,null,null,14]
[null,null,null,15]
[null,null,null,16]
[null,null,null,17]
[null,null,null,18]
[null,null,null,19]
[null,null,null,20]
[null,null,null,21]
[null,null,null,22]
[null,null,null,23]
[null,null,null,24]
[null,null,null,25]
[null,null,null,26]
[null,null,null,27]
[null,null,null,28]
[null,null,null,29]
[null,null,null,30]
[null,null,null,31]
[null,null,null,32]
[null,null,null,33]
[null,null,null,34]
[null,null,null,35]
[null,null,null,36]
[null,null,null,37]
[null,null,null,38]
[null,null,null,39]
[null,null,null,40]
[null,null,null,41]
[null,null,null,42]
[null,null,null,43]
[null,null,null,44]
[null,null,null,45]
[null,null,null,46]
[null,null,null,47]
[null,null,null,48]
[null,null,null,49]
[null,null,null,50]
[null,null,null,51]
[null,null,null,52]
[null,null,null,53]
[null,null,null,54]
[null,null,null,55]
[null,null,null,56]
[null,null,null,57]
[null,null,null,58]
[null,null,null,59]
[null,null,null,60]
[null,null,null,61]
[null,null,null,62]
[null,null,null,63]
[null,null,null,64]
[null,null,null,65]
[null,null,null,66]
[null,null,null,67]
[null,null,null,68]
[null,null,null,69]
[null,null,null,70]
[null,null,null,71]
[null,null,null,72]
[null,null,null,73]
[null,null,null,74]
[null,null,null,75]
[null,null,null,76]
[null,null,null,77]
[null,null,null,78]
[null,null,null,79]
[null,null,null,80]
[null,null,null,81]
["ПК 3.3.",null,null,1,"Осуществлять приготовление, творческое оформление и подготовку к реализации салатов разнообразного ассортимента"]
[null,"  ОП.01",null,2,"Основы микробиологии, физиологии питания, санитарии и гигиены"]
[null,"  ОП.02",null,3,"Основы товароведения продовольственных товаров"]
[null,"  ОП.03",null,4,"Техническое оснащение и организация рабочего места"]
[null,"  ОП.05",null,6,"Основы калькуляции и учета"]
[null,"  ОП.06",null,7,"Охрана труда"]
[null,"  ОП.08",null,8,"Безопасность жизнедеятельности"]
[null,"  МДК.03.01",null,9,"Организация приготовления, подготовки к реализации и хранения холодных блюд, кулинарных изделий и закусок разнообразного ассортимента"]
[null,"  МДК.03.02",null,10,"Процессы приготовления, подготовки к реализации холодных блюд, кулинарных изделий и закусок разнообразного ассортимента"]
[null,"  УП.03.01",null,11,"Учебная практика по приготовлению, оформлению и подготовке к реализации холодных блюд, кулинарных изделий, закусок разнообразного ассортимента"]
[null,"  ПП.03.01",null,12,"Производственная практика по приготовлению, оформлению и подготовке к реализации холодных блюд, кулинарных изделий, закусок разнообразного ассортимента"]
[null,null,null,13]
[null,null,null,14]
[null,null,null,15]
[null,null,null,16]
[null,null,null,17]
[null,null,null,18]
[null,null,null,19]
[null,null,null,20]
[null,null,null,21]
[null,null,null,22]
[null,null,null,23]
[null,null,null,24]
[null,null,null,25]
[null,null,null,26]
[null,null,null,27]
[null,null,null,28]
[null,null,null,29]
[null,null,null,30]
[null,null,null,31]
[null,null,null,32]
[null,null,null,33]
[null,null,null,34]
[null,null,null,35]
[null,null,null,36]
[null,null,null,37]
[null,null,null,38]
[null,null,null,39]
[null,null,null,40]
[null,null,null,41]
[null,null,null,42]
[null,null,null,43]
[null,null,null,44]
[null,null,null,45]
[null,null,null,46]
[null,null,null,47]
[null,null,null,48]
[null,null,null,49]
[null,null,null,50]
[null,null,null,51]
[null,null,null,52]
[null,null,null,53]
[null,null,null,54]
[null,null,null,55]
[null,null,null,56]
[null,null,null,57]
[null,null,null,58]
[null,null,null,59]
[null,null,null,60]
[null,null,null,61]
[null,null,null,62]
[null,null,null,63]
[null,null,null,64]
[null,null,null,65]
[null,null,null,66]
[null,null,null,67]
[null,null,null,68]
[null,null,null,69]
[null,null,null,70]
[null,null,null,71]
[null,null,null,72]
[null,null,null,73]
[null,null,null,74]
[null,null,null,75]
[null,null,null,76]
[null,null,null,77]
[null,null,null,78]
[null,null,null,79]
[null,null,null,80]
[null,null,null,81]
["ПК 3.4.",null,null,1,"Осуществлять приготовление, творческое оформление и подготовку к реализации бутербродов, канапе, холодных закусок разнообразного ассортимента"]
[null,"  ОП.01",null,2,"Основы микробиологии, физиологии питания, санитарии и гигиены"]
[null,"  ОП.02",null,3,"Основы товароведения продовольственных товаров"]
[null,"  ОП.03",null,4,"Техническое оснащение и организация рабочего места"]
[null,"  ОП.05",null,6,"Основы калькуляции и учета"]
[null,"  ОП.06",null,7,"Охрана труда"]
[null,"  ОП.08",null,8,"Безопасность жизнедеятельности"]
[null,"  МДК.03.01",null,9,"Организация приготовления, подготовки к реализации и хранения холодных блюд, кулинарных изделий и закусок разнообразного ассортимента"]
[null,"  МДК.03.02",null,10,"Процессы приготовления, подготовки к реализации холодных блюд, кулинарных изделий и закусок разнообразного ассортимента"]
[null,"  УП.03.01",null,11,"Учебная практика по приготовлению, оформлению и подготовке к реализации холодных блюд, кулинарных изделий, закусок разнообразного ассортимента"]
[null,"  ПП.03.01",null,12,"Производственная практика по приготовлению, оформлению и подготовке к реализации холодных блюд, кулинарных изделий, закусок разнообразного ассортимента"]
[null,null,null,13]
[null,null,null,14]
[null,null,null,15]
[null,null,null,16]
[null,null,null,17]
[null,null,null,18]
[null,null,null,19]
[null,null,null,20]
[null,null,null,21]
[null,null,null,22]
[null,null,null,23]
[null,null,null,24]
[null,null,null,25]
[null,null,null,26]
[null,null,null,27]
[null,null,null,28]
[null,null,null,29]
[null,null,null,30]
[null,null,null,31]
[null,null,null,32]
[null,null,null,33]
[null,null,null,34]
[null,null,null,35]
[null,null,null,36]
[null,null,null,37]
[null,null,null,38]
[null,null,null,39]
[null,null,null,40]
[null,null,null,41]
[null,null,null,42]
[null,null,null,43]
[null,null,null,44]
[null,null,null,45]
[null,null,null,46]
[null,null,null,47]
[null,null,null,48]
[null,null,null,49]
[null,null,null,50]
[null,null,null,51]
[null,null,null,52]
[null,null,null,53]
[null,null,null,54]
[null,null,null,55]
[null,null,null,56]
[null,null,null,57]
[null,null,null,58]
[null,null,null,59]
[null,null,null,60]
[null,null,null,61]
[null,null,null,62]
[null,null,null,63]
[null,null,null,64]
[null,null,null,65]
[null,null,null,66]
[null,null,null,67]
[null,null,null,68]
[null,null,null,69]
[null,null,null,70]
[null,null,null,71]
[null,null,null,72]
[null,null,null,73]
[null,null,null,74]
[null,null,null,75]
[null,null,null,76]
[null,null,null,77]
[null,null,null,78]
[null,null,null,79]
[null,null,null,80]
[null,null,null,81]
["ПК 3.5.",null,null,1,"Осуществлять приготовление, творческое оформление и подготовку к реализации холодных блюд из рыбы, не рыбного водного сырья  разнообразного ассортимента"]
[null,"  ОП.01",null,2,"Основы микробиологии, физиологии питания, санитарии и гигиены"]
[null,"  ОП.02",null,3,"Основы товароведения продовольственных товаров"]
[null,"  ОП.03",null,4,"Техническое оснащение и организация рабочего места"]
[null,"  ОП.05",null,6,"Основы калькуляции и учета"]
[null,"  ОП.06",null,7,"Охрана труда"]
[null,"  ОП.08",null,8,"Безопасность жизнедеятельности"]
[null,"  МДК.03.01",null,9,"Организация приготовления, подготовки к реализации и хранения холодных блюд, кулинарных изделий и закусок разнообразного ассортимента"]
[null,"  МДК.03.02",null,10,"Процессы приготовления, подготовки к реализации холодных блюд, кулинарных изделий и закусок разнообразного ассортимента"]
[null,"  УП.03.01",null,11,"Учебная практика по приготовлению, оформлению и подготовке к реализации холодных блюд, кулинарных изделий, закусок разнообразного ассортимента"]
[null,"  ПП.03.01",null,12,"Производственная практика по приготовлению, оформлению и подготовке к реализации холодных блюд, кулинарных изделий, закусок разнообразного ассортимента"]
[null,null,null,13]
[null,null,null,14]
[null,null,null,15]
[null,null,null,16]
[null,null,null,17]
[null,null,null,18]
[null,null,null,19]
[null,null,null,20]
[null,null,null,21]
[null,null,null,22]
[null,null,null,23]
[null,null,null,24]
[null,null,null,25]
[null,null,null,26]
[null,null,null,27]
[null,null,null,28]
[null,null,null,29]
[null,null,null,30]
[null,null,null,31]
[null,null,null,32]
[null,null,null,33]
[null,null,null,34]
[null,null,null,35]
[null,null,null,36]
[null,null,null,37]
[null,null,null,38]
[null,null,null,39]
[null,null,null,40]
[null,null,null,41]
[null,null,null,42]
[null,null,null,43]
[null,null,null,44]
[null,null,null,45]
[null,null,null,46]
[null,null,null,47]
[null,null,null,48]
[null,null,null,49]
[null,null,null,50]
[null,null,null,51]
[null,null,null,52]
[null,null,null,53]
[null,null,null,54]
[null,null,null,55]
[null,null,null,56]
[null,null,null,57]
[null,null,null,58]
[null,null,null,59]
[null,null,null,60]
[null,null,null,61]
[null,null,null,62]
[null,null,null,63]
[null,null,null,64]
[null,null,null,65]
[null,null,null,66]
[null,null,null,67]
[null,null,null,68]
[null,null,null,69]
[null,null,null,70]
[null,null,null,71]
[null,null,null,72]
[null,null,null,73]
[null,null,null,74]
[null,null,null,75]
[null,null,null,76]
[null,null,null,77]
[null,null,null,78]
[null,null,null,79]
[null,null,null,80]
[null,null,null,81]
["ПК 3.6.",null,null,1,"Осуществлять приготовление, творческое оформление и подготовку к реализации холодных блюд из мяса, домашней птицы, дичи  разнообразного ассортимента"]
[null,"  ОП.01",null,2,"Основы микробиологии, физиологии питания, санитарии и гигиены"]
[null,"  ОП.02",null,3,"Основы товароведения продовольственных товаров"]
[null,"  ОП.03",null,4,"Техническое оснащение и организация рабочего места"]
[null,"  ОП.05",null,6,"Основы калькуляции и учета"]
[null,"  ОП.06",null,7,"Охрана труда"]
[null,"  ОП.08",null,8,"Безопасность жизнедеятельности"]
[null,"  МДК.03.01",null,9,"Организация приготовления, подготовки к реализации и хранения холодных блюд, кулинарных изделий и закусок разнообразного ассортимента"]
[null,"  МДК.03.02",null,10,"Процессы приготовления, подготовки к реализации холодных блюд, кулинарных изделий и закусок разнообразного ассортимента"]
[null,"  УП.03.01",null,11,"Учебная практика по приготовлению, оформлению и подготовке к реализации холодных блюд, кулинарных изделий, закусок разнообразного ассортимента"]
[null,"  ПП.03.01",null,12,"Производственная практика по приготовлению, оформлению и подготовке к реализации холодных блюд, кулинарных изделий, закусок разнообразного ассортимента"]
["ПК 4.1.",null,null,1,"Подготавливать рабочее место, оборудование, сырье, исходные материалы для приготовления холодных и горячих сладких блюд, десертов, напитков разнообразного ассортимента в соответствии с инструкциями и регламентами."]
[null,"  ОП.01",null,2,"Основы микробиологии, физиологии питания, санитарии и гигиены"]
[null,"  ОП.02",null,3,"Основы товароведения продовольственных товаров"]
[null,"  ОП.03",null,4,"Техническое оснащение и организация рабочего места"]
[null,"  ОП.05",null,6,"Основы калькуляции и учета"]
[null,"  ОП.06",null,7,"Охрана труда"]
[null,"  ОП.08",null,8,"Безопасность жизнедеятельности"]
[null,"  МДК.04.01",null,9,"Организация процессов приготовления, подготовки к реализации и хранения холодных и горячих десертов, напитков сложного ассортимента"]
[null,"  МДК.04.02",null,10,"Процессы приготовления и подготовки к реализации холодных и горячих сладких блюд, десертов разнообразного ассортимента"]
[null,"  УП.04.01",null,11,"Учебная практика по приготовлению, оформлению и подготовке к реализации холодных и горячих сладких блюд, десертов, напитков разнообразного ассортимента"]
[null,"  ПП.04.01",null,12,"Производственная практика по приготовлению, оформлению и подготовке к реализации холодных и горячих сладких блюд, десертов, напитков разнообразного ассортимента"]
["ПК 4.2.",null,null,1,"Осуществлять приготовление, творческое оформление и подготовку к реализации холодных сладких блюд, десертов  разнообразного ассортимента"]
[null,"  ОП.01",null,2,"Основы микробиологии, физиологии питания, санитарии и гигиены"]
[null,"  ОП.02",null,3,"Основы товароведения продовольственных товаров"]
[null,"  ОП.03",null,4,"Техническое оснащение и организация рабочего места"]
[null,"  ОП.05",null,6,"Основы калькуляции и учета"]
[null,"  ОП.06",null,7,"Охрана труда"]
[null,"  ОП.08",null,8,"Безопасность жизнедеятельности"]
[null,"  МДК.04.01",null,9,"Организация процессов приготовления, подготовки к реализации и хранения холодных и горячих десертов, напитков сложного ассортимента"]
[null,"  МДК.04.02",null,10,"Процессы приготовления и подготовки к реализации холодных и горячих сладких блюд, десертов разнообразного ассортимента"]
[null,"  УП.04.01",null,11,"Учебная практика по приготовлению, оформлению и подготовке к реализации холодных и горячих сладких блюд, десертов, напитков разнообразного ассортимента"]
[null,"  ПП.04.01",null,12,"Производственная практика по приготовлению, оформлению и подготовке к реализации холодных и горячих сладких блюд, десертов, напитков разнообразного ассортимента"]
["ПК 4.3.",null,null,1,"Осуществлять приготовление, творческое оформление и подготовку к реализации горячих сладких блюд, десертов  разнообразного ассортимента"]
[null,"  ОП.01",null,2,"Основы микробиологии, физиологии питания, санитарии и гигиены"]
[null,"  ОП.02",null,3,"Основы товароведения продовольственных товаров"]
[null,"  ОП.03",null,4,"Техническое оснащение и организация рабочего места"]
[null,"  ОП.05",null,6,"Основы калькуляции и учета"]
[null,"  ОП.06",null,7,"Охрана труда"]
[null,"  ОП.08",null,8,"Безопасность жизнедеятельности"]
[null,"  МДК.04.01",null,9,"Организация процессов приготовления, подготовки к реализации и хранения холодных и горячих десертов, напитков сложного ассортимента"]
[null,"  МДК.04.02",null,10,"Процессы приготовления и подготовки к реализации холодных и горячих сладких блюд, десертов разнообразного ассортимента"]
[null,"  УП.04.01",null,11,"Учебная практика по приготовлению, оформлению и подготовке к реализации холодных и горячих сладких блюд, десертов, напитков разнообразного ассортимента"]
[null,"  ПП.04.01",null,12,"Производственная практика по приготовлению, оформлению и подготовке к реализации холодных и горячих сладких блюд, десертов, напитков разнообразного ассортимента"]
["ПК 4.4.",null,null,1,"Осуществлять приготовление, творческое оформление и подготовку к реализации холодных напитков  разнообразного ассортимента"]
[null,"  ОП.01",null,2,"Основы микробиологии, физиологии питания, санитарии и гигиены"]
[null,"  ОП.02",null,3,"Основы товароведения продовольственных товаров"]
[null,"  ОП.03",null,4,"Техническое оснащение и организация рабочего места"]
[null,"  ОП.05",null,6,"Основы калькуляции и учета"]
[null,"  ОП.06",null,7,"Охрана труда"]
[null,"  ОП.08",null,8,"Безопасность жизнедеятельности"]
[null,"  МДК.04.01",null,9,"Организация процессов приготовления, подготовки к реализации и хранения холодных и горячих десертов, напитков сложного ассортимента"]
[null,"  МДК.04.02",null,10,"Процессы приготовления и подготовки к реализации холодных и горячих сладких блюд, десертов разнообразного ассортимента"]
[null,"  УП.04.01",null,11,"Учебная практика по приготовлению, оформлению и подготовке к реализации холодных и горячих сладких блюд, десертов, напитков разнообразного ассортимента"]
[null,"  ПП.04.01",null,12,"Производственная практика по приготовлению, оформлению и подготовке к реализации холодных и горячих сладких блюд, десертов, напитков разнообразного ассортимента"]
["ПК 4.5.",null,null,1,"Осуществлять приготовление, творческое оформление и подготовку к реализации горячих напитков  разнообразного ассортимента"]
[null,"  ОП.01",null,2,"Основы микробиологии, физиологии питания, санитарии и гигиены"]
[null,"  ОП.02",null,3,"Основы товароведения продовольственных товаров"]
[null,"  ОП.03",null,4,"Техническое оснащение и организация рабочего места"]
[null,"  ОП.05",null,6,"Основы калькуляции и учета"]
[null,"  ОП.06",null,7,"Охрана труда"]
[null,"  ОП.08",null,8,"Безопасность жизнедеятельности"]
[null,"  МДК.04.01",null,9,"Организация процессов приготовления, подготовки к реализации и хранения холодных и горячих десертов, напитков сложного ассортимента"]
[null,"  МДК.04.02",null,10,"Процессы приготовления и подготовки к реализации холодных и горячих сладких блюд, десертов разнообразного ассортимента"]
[null,"  УП.04.01",null,11,"Учебная практика по приготовлению, оформлению и подготовке к реализации холодных и горячих сладких блюд, десертов, напитков разнообразного ассортимента"]
[null,"  ПП.04.01",null,12,"Производственная практика по приготовлению, оформлению и подготовке к реализации холодных и горячих сладких блюд, десертов, напитков разнообразного ассортимента"]
["ПК 5.1.",null,null,1,"Подготавливать рабочее место кондитера, оборудование, инвентарь, кондитерское сырье, исходные материалы к работе в соответствии с инструкциями и регламентами."]
[null,"  ОП.01",null,2,"Основы микробиологии, физиологии питания, санитарии и гигиены"]
[null,"  ОП.02",null,3,"Основы товароведения продовольственных товаров"]
[null,"  ОП.03",null,4,"Техническое оснащение и организация рабочего места"]
[null,"  ОП.05",null,6,"Основы калькуляции и учета"]
[null,"  ОП.06",null,7,"Охрана труда"]
[null,"  ОП.08",null,8,"Безопасность жизнедеятельности"]
[null,"  МДК.05.01",null,9,"Организация приготовления, оформления и подготовки к реализации хлебобулочных, мучных кондитерских изделий"]
[null,"  МДК.05.02",null,10,"Процессы приготовления, оформления и подготовки к реализации хлебобулочных, мучных кондитерских изделий"]
[null,"  УП.05.01",null,11,"Учебная практика по приготовлению, оформлению и подготовке к реализации хлебобулочных, мучных кондитерских изделий разнообразного ассортимента"]
[null,"  ПП.05.01",null,12,"Производственная практика по приготовлению, оформлению и подготовке к реализации хлебобулочных, мучных кондитерских изделий разнообразного ассортимента"]
["ПК 5.2.",null,null,1,"Осуществлять приготовление и подготовку к использованию отделочных полуфабрикатов для хлебобулочных, мучных кондитерских изделий"]
[null,"  ОП.01",null,2,"Основы микробиологии, физиологии питания, санитарии и гигиены"]
[null,"  ОП.02",null,3,"Основы товароведения продовольственных товаров"]
[null,"  ОП.03",null,4,"Техническое оснащение и организация рабочего места"]
[null,"  ОП.05",null,6,"Основы калькуляции и учета"]
[null,"  ОП.06",null,7,"Охрана труда"]
[null,"  ОП.08",null,8,"Безопасность жизнедеятельности"]
[null,"  МДК.05.01",null,9,"Организация приготовления, оформления и подготовки к реализации хлебобулочных, мучных кондитерских изделий"]
[null,"  МДК.05.02",null,10,"Процессы приготовления, оформления и подготовки к реализации хлебобулочных, мучных кондитерских изделий"]
[null,"  УП.05.01",null,11,"Учебная практика по приготовлению, оформлению и подготовке к реализации хлебобулочных, мучных кондитерских изделий разнообразного ассортимента"]
[null,"  ПП.05.01",null,12,"Производственная практика по приготовлению, оформлению и подготовке к реализации хлебобулочных, мучных кондитерских изделий разнообразного ассортимента"]
["ПК 5.3.",null,null,1,"Осуществлять изготовление, творческое оформление, подготовку к реализации хлебобулочных изделий и хлеба разнообразного ассортимента"]
[null,"  ОП.01",null,2,"Основы микробиологии, физиологии питания, санитарии и гигиены"]
[null,"  ОП.02",null,3,"Основы товароведения продовольственных товаров"]
[null,"  ОП.03",null,4,"Техническое оснащение и организация рабочего места"]
[null,"  ОП.05",null,6,"Основы калькуляции и учета"]
[null,"  ОП.06",null,7,"Охрана труда"]
[null,"  ОП.08",null,8,"Безопасность жизнедеятельности"]
[null,"  МДК.05.01",null,9,"Организация приготовления, оформления и подготовки к реализации хлебобулочных, мучных кондитерских изделий"]
[null,"  МДК.05.02",null,10,"Процессы приготовления, оформления и подготовки к реализации хлебобулочных, мучных кондитерских изделий"]
[null,"  УП.05.01",null,11,"Учебная практика по приготовлению, оформлению и подготовке к реализации хлебобулочных, мучных кондитерских изделий разнообразного ассортимента"]
[null,"  ПП.05.01",null,12,"Производственная практика по приготовлению, оформлению и подготовке к реализации хлебобулочных, мучных кондитерских изделий разнообразного ассортимента"]
["ПК 5.4.",null,null,1,"Осуществлять изготовление, творческое оформление, подготовку к реализации мучных кондитерских изделий разнообразного ассортимента"]
[null,"  ОП.01",null,2,"Основы микробиологии, физиологии питания, санитарии и гигиены"]
[null,"  ОП.02",null,3,"Основы товароведения продовольственных товаров"]
[null,"  ОП.03",null,4,"Техническое оснащение и организация рабочего места"]
[null,"  ОП.05",null,6,"Основы калькуляции и учета"]
[null,"  ОП.06",null,7,"Охрана труда"]
[null,"  ОП.08",null,8,"Безопасность жизнедеятельности"]
[null,"  МДК.05.01",null,9,"Организация приготовления, оформления и подготовки к реализации хлебобулочных, мучных кондитерских изделий"]
[null,"  МДК.05.02",null,10,"Процессы приготовления, оформления и подготовки к реализации хлебобулочных, мучных кондитерских изделий"]
[null,"  УП.05.01",null,11,"Учебная практика по приготовлению, оформлению и подготовке к реализации хлебобулочных, мучных кондитерских изделий разнообразного ассортимента"]
[null,"  ПП.05.01",null,12,"Производственная практика по приготовлению, оформлению и подготовке к реализации хлебобулочных, мучных кондитерских изделий разнообразного ассортимента"]
["ПК 5.5.",null,null,1,"Осуществлять изготовление, творческое оформление, подготовку к реализации пирожных и тортов разнообразного ассортимента"]
[null,"  ОП.01",null,2,"Основы микробиологии, физиологии питания, санитарии и гигиены"]
[null,"  ОП.02",null,3,"Основы товароведения продовольственных товаров"]
[null,"  ОП.03",null,4,"Техническое оснащение и организация рабочего места"]
[null,"  ОП.05",null,6,"Основы калькуляции и учета"]
[null,"  ОП.06",null,7,"Охрана труда"]
[null,"  ОП.08",null,8,"Безопасность жизнедеятельности"]
[null,"  МДК.05.01",null,9,"Организация приготовления, оформления и подготовки к реализации хлебобулочных, мучных кондитерских изделий"]
[null,"  МДК.05.02",null,10,"Процессы приготовления, оформления и подготовки к реализации хлебобулочных, мучных кондитерских изделий"]
[null,"  УП.05.01",null,11,"Учебная практика по приготовлению, оформлению и подготовке к реализации хлебобулочных, мучных кондитерских изделий разнообразного ассортимента"]
[null,"  ПП.05.01",null,12,"Производственная практика по приготовлению, оформлению и подготовке к реализации хлебобулочных, мучных кондитерских изделий разнообразного ассортимента"]
["ПК 6.1.",null,null,1,"Соблюдать правила эксплуатации контрольно-кассовой техники и выполнять расчетные операции с покупателями"]
[null,"  ОП.03",null,2,"Техническое оснащение и организация рабочего места"]
[null,"  ОП.06",null,4,"Охрана труда"]
[null,"  ОП.08",null,5,"Безопасность жизнедеятельности"]
[null,"  МДК.06.01",null,6,"Эксплуатация контрольно-кассовой техники"]
[null,"  УП.06.01",null,7,"Учебная практика по эксплуатации контрольно-кассовой техники"]
[null,"  ПП.06.01",null,8,"Производственная практика по работе на контрольно-кассовой технике, расчетам с покупателями"]
["ПК 6.2.",null,null,1,"Проверять платежеспособность государственных денежных знаков"]
[null,"  ОП.03",null,2,"Техническое оснащение и организация рабочего места"]
[null,"  ОП.06",null,4,"Охрана труда"]
[null,"  ОП.08",null,5,"Безопасность жизнедеятельности"]
[null,"  МДК.06.01",null,6,"Эксплуатация контрольно-кассовой техники"]
[null,"  УП.06.01",null,7,"Учебная практика по эксплуатации контрольно-кассовой техники"]
[null,"  ПП.06.01",null,8,"Производственная практика по работе на контрольно-кассовой технике, расчетам с покупателями"]
["ПК 6.3.",null,null,1,"Проверять качество и количество реализуемых полуфабрикатов, кулинарных и кондитерских изделий правильность цен на них"]
[null,"  ОП.01",null,2,"Основы микробиологии, физиологии питания, санитарии и гигиены"]
[null,"  ОП.02",null,3,"Основы товароведения продовольственных товаров"]
[null,"  ОП.03",null,4,"Техническое оснащение и организация рабочего места"]
[null,"  ОП.06",null,6,"Охрана труда"]
[null,"  ОП.08",null,7,"Безопасность жизнедеятельности"]
[null,"  МДК.06.01",null,8,"Эксплуатация контрольно-кассовой техники"]
[null,"  УП.06.01",null,9,"Учебная практика по эксплуатации контрольно-кассовой техники"]
[null,"  ПП.06.01",null,10,"Производственная практика по работе на контрольно-кассовой технике, расчетам с покупателями"]
["ПК 6.4.",null,null,1,"Оформлять документы по кассовым операциям"]
[null,"  ОП.03",null,2,"Техническое оснащение и организация рабочего места"]
[null,"  ОП.06",null,4,"Охрана труда"]
[null,"  ОП.08",null,5,"Безопасность жизнедеятельности"]
[null,"  МДК.06.01",null,6,"Эксплуатация контрольно-кассовой техники"]
[null,"  УП.06.01",null,7,"Учебная практика по эксплуатации контрольно-кассовой техники"]
[null,"  ПП.06.01",null,8,"Производственная практика по работе на контрольно-кассовой технике, расчетам с покупателями"]
["ДПК 1.5",null,null,1,"Осуществлять приготовление полуфабрикатов для блюд, кулинарных изделий для детей дошкольного, школьного возраста"]
[null,"  ОП.01",null,2,"Основы микробиологии, физиологии питания, санитарии и гигиены"]
[null,"  ОП.02",null,3,"Основы товароведения продовольственных товаров"]
[null,"  ОП.03",null,4,"Техническое оснащение и организация рабочего места"]
[null,"  ОП.05",null,6,"Основы калькуляции и учета"]
[null,"  ОП.06",null,7,"Охрана труда"]
[null,"  ОП.08",null,8,"Безопасность жизнедеятельности"]
[null,"  МДК.01.02",null,9,"Процессы приготовления, подготовки к реализации кулинарных полуфабрикатов"]
[null,"  УП.01.01",null,10,"Учебная практика по приготовлению и подготовке к реализации полуфабрикатов для блюд, кулинарных изделий разнообразного ассортимента"]
["ДПК 1.6.",null,null,1,"Осуществлять приготовление полуфабрикатов для блюд, кулинарных изделий с учетом региональных особенностей, в т.ч. из дикорастущего сырья  "]
[null,"  ОП.01",null,2,"Основы микробиологии, физиологии питания, санитарии и гигиены"]
[null,"  ОП.02",null,3,"Основы товароведения продовольственных товаров"]
[null,"  ОП.03",null,4,"Техническое оснащение и организация рабочего места"]
[null,"  ОП.05",null,6,"Основы калькуляции и учета"]
[null,"  ОП.06",null,7,"Охрана труда"]
[null,"  ОП.08",null,8,"Безопасность жизнедеятельности"]
[null,"  МДК.01.02",null,9,"Процессы приготовления, подготовки к реализации кулинарных полуфабрикатов"]
[null,"  УП.01.01",null,10,"Учебная практика по приготовлению и подготовке к реализации полуфабрикатов для блюд, кулинарных изделий разнообразного ассортимента"]
["ДПК 2.9.",null,null,1,"Осуществлять приготовление горячих блюд, кулинарных изделий для детей дошкольного, школьного возраста  "]
[null,"  ОП.01",null,2,"Основы микробиологии, физиологии питания, санитарии и гигиены"]
[null,"  ОП.02",null,3,"Основы товароведения продовольственных товаров"]
[null,"  ОП.03",null,4,"Техническое оснащение и организация рабочего места"]
[null,"  ОП.05",null,6,"Основы калькуляции и учета"]
[null,"  ОП.06",null,7,"Охрана труда"]
[null,"  ОП.08",null,8,"Безопасность жизнедеятельности"]
[null,"  МДК.02.02",null,9,"Процессы приготовления, подготовки к реализации горячих блюд, кулинарных изделий и закусок разнообразного ассортимента"]
[null,"  УП.02.01",null,10,"Учебная практика по приготовлению, оформлению и подготовке к реализации горячих блюд, кулинарных изделий, закусок разнообразного ассортимента"]
[null,"  ПП.02.01",null,11,"Производственная практика по приготовлению, оформлению и подготовке к реализации горячих блюд, кулинарных изделий, закусок разнообразного ассортимента"]
["ДПК 2.10.",null,null,1,"Осуществлять приготовление горячих блюд, кулинарных изделий с учетом региональных особенностей, в т.ч. из дикорастущего сырья  "]
[null,"  ОП.01",null,2,"Основы микробиологии, физиологии питания, санитарии и гигиены"]
[null,"  ОП.02",null,3,"Основы товароведения продовольственных товаров"]
[null,"  ОП.03",null,4,"Техническое оснащение и организация рабочего места"]
[null,"  ОП.05",null,6,"Основы калькуляции и учета"]
[null,"  ОП.06",null,7,"Охрана труда"]
[null,"  ОП.08",null,8,"Безопасность жизнедеятельности"]
[null,"  МДК.02.02",null,9,"Процессы приготовления, подготовки к реализации горячих блюд, кулинарных изделий и закусок разнообразного ассортимента"]
[null,"  УП.02.01",null,10,"Учебная практика по приготовлению, оформлению и подготовке к реализации горячих блюд, кулинарных изделий, закусок разнообразного ассортимента"]
[null,"  ПП.02.01",null,11,"Производственная практика по приготовлению, оформлению и подготовке к реализации горячих блюд, кулинарных изделий, закусок разнообразного ассортимента"]
["ДПК 3.7.",null,null,1,"Осуществлять приготовление холодных блюд, кулинарных изделий для детей дошкольного, школьного возраста  "]
[null,"  ОП.01",null,2,"Основы микробиологии, физиологии питания, санитарии и гигиены"]
[null,"  ОП.02",null,3,"Основы товароведения продовольственных товаров"]
[null,"  ОП.03",null,4,"Техническое оснащение и организация рабочего места"]
[null,"  ОП.05",null,6,"Основы калькуляции и учета"]
[null,"  ОП.06",null,7,"Охрана труда"]
[null,"  ОП.08",null,8,"Безопасность жизнедеятельности"]
[null,"  МДК.03.02",null,9,"Процессы приготовления, подготовки к реализации холодных блюд, кулинарных изделий и закусок разнообразного ассортимента"]
[null,"  УП.03.01",null,10,"Учебная практика по приготовлению, оформлению и подготовке к реализации холодных блюд, кулинарных изделий, закусок разнообразного ассортимента"]
[null,"  ПП.03.01",null,11,"Производственная практика по приготовлению, оформлению и подготовке к реализации холодных блюд, кулинарных изделий, закусок разнообразного ассортимента"]
["ДПК 3.8.",null,null,1,"Осуществлять приготовление холодных блюд, кулинарных изделий с учетом региональных особенностей, в т.ч. из дикорастущего сырья  "]
[null,"  ОП.01",null,2,"Основы микробиологии, физиологии питания, санитарии и гигиены"]
[null,"  ОП.02",null,3,"Основы товароведения продовольственных товаров"]
[null,"  ОП.03",null,4,"Техническое оснащение и организация рабочего места"]
[null,"  ОП.05",null,6,"Основы калькуляции и учета"]
[null,"  ОП.06",null,7,"Охрана труда"]
[null,"  ОП.08",null,8,"Безопасность жизнедеятельности"]
[null,"  МДК.03.02",null,9,"Процессы приготовления, подготовки к реализации холодных блюд, кулинарных изделий и закусок разнообразного ассортимента"]
[null,"  УП.03.01",null,10,"Учебная практика по приготовлению, оформлению и подготовке к реализации холодных блюд, кулинарных изделий, закусок разнообразного ассортимента"]
[null,"  ПП.03.01",null,11,"Производственная практика по приготовлению, оформлению и подготовке к реализации холодных блюд, кулинарных изделий, закусок разнообразного ассортимента"]
["ДПК 4.6.",null,null,1,"Осуществлять приготовление горячих сладких блюд, десертов, напитков для детей дошкольного, школьного возраста  "]
[null,"  ОП.01",null,2,"Основы микробиологии, физиологии питания, санитарии и гигиены"]
[null,"  ОП.02",null,3,"Основы товароведения продовольственных товаров"]
[null,"  ОП.03",null,4,"Техническое оснащение и организация рабочего места"]
[null,"  ОП.05",null,6,"Основы калькуляции и учета"]
[null,"  ОП.06",null,7,"Охрана труда"]
[null,"  ОП.08",null,8,"Безопасность жизнедеятельности"]
[null,"  МДК.04.02",null,9,"Процессы приготовления и подготовки к реализации холодных и горячих сладких блюд, десертов разнообразного ассортимента"]
[null,"  УП.04.01",null,10,"Учебная практика по приготовлению, оформлению и подготовке к реализации холодных и горячих сладких блюд, десертов, напитков разнообразного ассортимента"]
[null,"  ПП.04.01",null,11,"Производственная практика по приготовлению, оформлению и подготовке к реализации холодных и горячих сладких блюд, десертов, напитков разнообразного ассортимента"]
["ДПК 4.7.",null,null,1,"Осуществлять приготовление горячих сладких блюд, десертов, напитков с учетом региональных особенностей, в т.ч. из дикорастущего сырья  "]
[null,"  ОП.01",null,2,"Основы микробиологии, физиологии питания, санитарии и гигиены"]
[null,"  ОП.02",null,3,"Основы товароведения продовольственных товаров"]
[null,"  ОП.03",null,4,"Техническое оснащение и организация рабочего места"]
[null,"  ОП.05",null,6,"Основы калькуляции и учета"]
[null,"  ОП.06",null,7,"Охрана труда"]
[null,"  ОП.08",null,8,"Безопасность жизнедеятельности"]
[null,"  МДК.04.02",null,9,"Процессы приготовления и подготовки к реализации холодных и горячих сладких блюд, десертов разнообразного ассортимента"]
[null,"  УП.04.01",null,10,"Учебная практика по приготовлению, оформлению и подготовке к реализации холодных и горячих сладких блюд, десертов, напитков разнообразного ассортимента"]
[null,"  ПП.04.01",null,11,"Производственная практика по приготовлению, оформлению и подготовке к реализации холодных и горячих сладких блюд, десертов, напитков разнообразного ассортимента"]
["ДПК 5.6.",null,null,1,"Осуществлять приготовление хлебобулочных, мучных кондитерских изделий для детей дошкольного, школьного возраста  "]
[null,"  ОП.01",null,2,"Основы микробиологии, физиологии питания, санитарии и гигиены"]
[null,"  ОП.02",null,3,"Основы товароведения продовольственных товаров"]
[null,"  ОП.03",null,4,"Техническое оснащение и организация рабочего места"]
[null,"  ОП.05",null,6,"Основы калькуляции и учета"]
[null,"  ОП.06",null,7,"Охрана труда"]
[null,"  ОП.08",null,8,"Безопасность жизнедеятельности"]
[null,"  МДК.05.02",null,9,"Процессы приготовления, оформления и подготовки к реализации хлебобулочных, мучных кондитерских изделий"]
[null,"  УП.05.01",null,10,"Учебная практика по приготовлению, оформлению и подготовке к реализации хлебобулочных, мучных кондитерских изделий разнообразного ассортимента"]
[null,"  ПП.05.01",null,11,"Производственная практика по приготовлению, оформлению и подготовке к реализации хлебобулочных, мучных кондитерских изделий разнообразного ассортимента"]
["ДПК 5.7.",null,null,1,"Осуществлять приготовление хлебобулочных, мучных кондитерских изделий с учетом региональных особенностей, в т.ч. из дикорастущего сырья  "]
[null,"  ОП.01",null,2,"Основы микробиологии, физиологии питания, санитарии и гигиены"]
[null,"  ОП.02",null,3,"Основы товароведения продовольственных товаров"]
[null,"  ОП.03",null,4,"Техническое оснащение и организация рабочего места"]
[null,"  ОП.05",null,6,"Основы калькуляции и учета"]
[null,"  ОП.06",null,7,"Охрана труда"]
[null,"  ОП.08",null,8,"Безопасность жизнедеятельности"]
[null,"  МДК.05.02",null,9,"Процессы приготовления, оформления и подготовки к реализации хлебобулочных, мучных кондитерских изделий"]
[null,"  УП.05.01",null,10,"Учебная практика по приготовлению, оформлению и подготовке к реализации хлебобулочных, мучных кондитерских изделий разнообразного ассортимента"]
[null,"  ПП.05.01",null,11,"Производственная практика по приготовлению, оформлению и подготовке к реализации хлебобулочных, мучных кондитерских изделий разнообразного ассортимента"]
[null,null,null,12]
[null,null,null,13]
[null,null,null,14]
[null,null,null,15]
[null,null,null,16]
[null,null,null,17]
[null,null,null,18]
[null,null,null,19]
[null,null,null,20]
[null,null,null,21]
[null,null,null,22]
[null,null,null,23]
[null,null,null,24]
[null,null,null,25]
[null,null,null,26]
[null,null,null,27]
[null,null,null,28]
[null,null,null,29]
[null,null,null,30]
[null,null,null,31]
[null,null,null,32]
[null,null,null,33]
[null,null,null,34]
[null,null,null,35]
[null,null,null,36]
[null,null,null,37]
[null,null,null,38]
[null,null,null,39]
[null,null,null,40]
[null,null,null,41]
[null,null,null,42]
[null,null,null,43]
[null,null,null,44]
[null,null,null,45]
[null,null,null,46]
[null,null,null,47]
[null,null,null,48]
[null,null,null,49]
[null,null,null,50]
[null,null,null,51]
[null,null,null,52]
[null,null,null,53]
[null,null,null,54]
[null,null,null,55]
[null,null,null,56]
[null,null,null,57]
[null,null,null,58]
[null,null,null,59]
[null,null,null,60]
[null,null,null,61]
[null,null,null,62]
[null,null,null,63]
[null,null,null,64]
[null,null,null,65]
[null,null,null,66]
[null,null,null,67]
[null,null,null,68]
[null,null,null,69]
[null,null,null,70]
[null,null,null,71]
[null,null,null,72]
[null,null,null,73]
[null,null,null,74]
[null,null,null,75]
[null,null,null,76]
[null,null,null,77]
[null,null,null,78]
[null,null,null,79]
[null,null,null,80]
[null,null,null,81]

{"sheet":"Компетенции(2)","index":5,"n_rows":523,"n_cols":17,"rows_kept":523,"cut":false,"hidden":false,"merged":[[0,2,0,4],[1,2,8,2],[1,4,8,4],[9,2,16,2],[9,4,16,4],[17,2,24,2],[17,4,24,4],[25,2,32,2],[25,4,32,4],[33,2,40,2],[33,4,40,4],[41,2,48,2],[41,4,48,4],[49,2,56,2],[49,4,56,4],[57,2,64,2],[57,4,64,4],[65,2,72,2],[65,4,72,4],[73,2,80,2],[73,4,80,4],[81,2,81,4],[82,2,89,2],[82,4,89,4],[90,2,97,2],[90,4,97,4],[98,2,105,2],[98,4,105,4],[106,2,113,2],[106,4,113,4],[114,2,114,4],[115,2,122,2],[115,4,122,4],[123,2,130,2],[123,4,130,4],[131,2,138,2],[131,4,138,4],[139,2,146,2],[139,4,146,4],[147,2,154,2],[147,4,154,4],[155,2,155,4],[156,2,162,2],[156,4,162,4],[163,2,170,2],[163,4,170,4],[171,2,178,2],[171,4,178,4],[179,2,185,2],[179,4,185,4],[186,2,189,2],[186,4,189,4],[190,2,196,2],[190,4,196,4],[197,2,203,2],[197,4,203,4],[204,2,211,2],[204,4,211,4],[212,2,218,2],[212,4,218,4],[219,2,226,2],[219,4,226,4],[227,2,234,2],[227,4,234,4],[235,2,242,2],[235,4,242,4],[243,2,250,2],[243,4,250,4],[251,2,251,4],[252,2,259,2],[252,4,259,4],[260,2,260,4],[261,2,268,2],[261,4,268,4],[269,2,276,2],[269,4,276,4],[277,2,284,2],[277,4,284,4],[285,2,292,2],[285,4,292,4],[293,2,300,2],[293,4,300,4],[301,2,301,4],[302,2,309,2],[302,4,309,4],[310,2,317,2],[310,4,317,4],[318,2,325,2],[318,4,325,4],[326,2,333,2],[326,4,333,4],[334,2,341,2],[334,4,341,4],[342,2,342,4],[343,2,350,2],[343,4,350,4],[351,2,358,2],[351,4,358,4],[359,2,366,2],[359,4,366,4],[367,2,374,2],[367,4,374,4],[375,2,382,2],[375,4,382,4],[383,2,383,4],[384,2,391,2],[384,4,391,4],[392,2,399,2],[392,4,399,4],[400,2,407,2],[400,4,407,4],[408,2,415,2],[408,4,415,4],[416,2,423,2],[416,4,423,4],[424,2,424,4],[425,2,432,2],[425,4,432,4],[433,2,440,2],[433,4,440,4],[441,2,448,2],[441,4,448,4],[449,2,456,2],[449,4,456,4],[499,4,506,4],[457,2,464,2],[457,4,464,4],[465,2,465,4],[466,2,473,2],[466,4,473,4],[474,2,481,2],[474,4,481,4],[507,2,514,2],[507,4,514,4],[515,2,522,2],[515,4,522,4],[482,2,489,2],[482,4,489,4],[490,2,497,2],[490,4,497,4],[498,2,498,4],[499,2,506,2]]}
[]
["0",1,"ОДБ",null,"Базовые дисциплины"]
[null,2]
[null,3]
[null,4]
[null,5]
[null,6]
[null,7]
[null,8]
["0",1,"ОДБ.01","3","Русский язык"]
[null,2]
[null,3]
[null,4]
[null,5]
[null,6]
[null,7]
[null,8]
["1",1,"ОДБ.02","3","Литература"]
[null,2]
[null,3]
[null,4]
[null,5]
[null,6]
[null,7]
[null,8]
["2",1,"ОДБ.03","3","Иностранный язык"]
[null,2]
[null,3]
[null,4]
[null,5]
[null,6]
[null,7]
[null,8]
["3",1,"ОДБ.04","3","Математика"]
[null,2]
[null,3]
[null,4]
[null,5]
[null,6]
[null,7]
[null,8]
["4",1,"ОДБ.05","3","История"]
[null,2]
[null,3]
[null,4]
[null,5]
[null,6]
[null,7]
[null,8]
["5",1,"ОДБ.06","3","Основы безопасности жизнедеятельности"]
[null,2]
[null,3]
[null,4]
[null,5]
[null,6]
[null,7]
[null,8]
["6",1,"ОДБ.07","3","Физика"]
[null,2]
[null,3]
[null,4]
[null,5]
[null,6]
[null,7]
[null,8]
["7",1,"ОДБ.08","3","Астрономия"]
[null,2]
[null,3]
[null,4]
[null,5]
[null,6]
[null,7]
[null,8]
["8",1,"ОДБ.09","3","Физическая культура"]
[null,2]
[null,3]
[null,4]
[null,5]
[null,6]
[null,7]
[null,8]
[]
["1",1,"ОДП",null,"Профильные дисциплины"]
[null,2]
[null,3]
[null,4]
[null,5]
[null,6]
[null,7]
[null,8]
["9",1,"ОДП.01","4","Информатика"]
[null,2]
[null,3]
[null,4]
[null,5]
[null,6]
[null,7]
[null,8]
["10",1,"ОДП.02","4","Химия"]
[null,2]
[null,3]
[null,4]
[null,5]
[null,6]
[null,7]
[null,8]
["11",1,"ОДП.03","4","Биология"]
[null,2]
[null,3]
[null,4]
[null,5]
[null,6]
[null,7]
[null,8]
[]
["2",1,"ПОО",null,"Предлагаемые ОО"]
[null,2]
[null,3]
[null,4]
[null,5]
[null,6]
[null,7]
[null,8]
["12",1,"ПОО.01","44","География / Природа родного края"]
[null,2]
[null,3]
[null,4]
[null,5]
[null,6]
[null,7]
[null,8]
["13",1,"ПОО.02","44","Экология / Экологические основы природопользования"]
[null,2]
[null,3]
[null,4]
[null,5]
[null,6]
[null,7]
[null,8]
["14",1,"ПОО.03","44","Обществознание / История родного края"]
[null,2]
[null,3]
[null,4]
[null,5]
[null,6]
[null,7]
[null,8]
["15",1,"ПОО.04","44","Индивидуальный проект / Основы проектной деятельности"]
[null,2]
[null,3]
[null,4]
[null,5]
[null,6]
[null,7]
[null,8]
[]
["3",1,"ОПЦ",null,"Общепрофессиональный цикл","ОК 01.","ОК 02.","ОК 03.","ОК 04.","ОК 05.","ОК 06.","ОК 07.","ОК 08.","ОК 09.","ОК 10.","ОК 11.","ПК 1.1."]
[null,2,null,null,null,"ПК 1.2.","ПК 1.3.","ПК 1.4.","ПК 2.1.","ПК 2.2.","ПК 2.3.","ПК 2.4.","ПК 2.5.","ПК 2.6.","ПК 2.7.","ПК 2.8.","ПК 3.1."]
[null,3,null,null,null,"ПК 3.2.","ПК 3.3.","ПК 3.4.","ПК 3.5.","ПК 3.6.","ПК 4.1.","ПК 4.2.","ПК 4.3.","ПК 4.4.","ПК 4.5.","ПК 5.1.","ПК 5.2."]
[null,4,null,null,null,"ПК 5.3.","ПК 5.4.","ПК 5.5."]
[null,6]
[null,7]
[null,8]
["16",1,"ОП.01","9","Основы микробиологии, физиологии питания, санитарии и гигиены","ОК 01.","ОК 02.","ОК 03.","ОК 04.","ОК 05.","ОК 06.","ОК 07.","ОК 09.","ОК 10.","ПК 1.1.","ПК 1.2.","ПК 1.3."]
[null,2,null,null,null,"ПК 1.4.","ПК 2.1.","ПК 2.2.","ПК 2.3.","ПК 2.4.","ПК 2.5.","ПК 2.6.","ПК 2.7.","ПК 2.8.","ПК 3.1.","ПК 3.2.","ПК 3.3."]
[null,3,null,null,null,"ПК 3.4.","ПК 3.5.","ПК 3.6.","ПК 4.1.","ПК 4.2.","ПК 4.3.","ПК 4.4.","ПК 4.5.","ПК 5.1.","ПК 5.2.","ПК 5.3.","ПК 5.4."]
[null,4,null,null,null,"ПК 5.5."]
[null,5]
[null,6]
[null,7]
[null,8]
["17",1,"ОП.02","9","Основы товароведения продовольственных товаров","ОК 01.","ОК 02.","ОК 03.","ОК 04.","ОК 05.","ОК 06.","ОК 07.","ОК 09.","ОК 10.","ПК 1.1.","ПК 1.2.","ПК 1.3."]
[null,2,null,null,null,"ПК 1.4.","ПК 2.1.","ПК 2.2.","ПК 2.3.","ПК 2.4.","ПК 2.5.","ПК 2.6.","ПК 2.7.","ПК 2.8.","ПК 3.1.","ПК 3.2.","ПК 3.3."]
[null,3,null,null,null,"ПК 3.4.","ПК 3.5.","ПК 3.6.","ПК 4.1.","ПК 4.2.","ПК 4.3.","ПК 4.4.","ПК 4.5.","ПК 5.1.","ПК 5.2.","ПК 5.3.","ПК 5.4."]
[null,4,null,null,null,"ПК 5.5."]
[null,5]
[null,6]
[null,7]
[null,8]
["18",1,"ОП.03","9","Техническое оснащение и организация рабочего места","ОК 01.","ОК 02.","ОК 03.","ОК 04.","ОК 05.","ОК 06.","ОК 07.","ОК 09.","ОК 10.","ПК 1.1.","ПК 1.2.","ПК 1.3."]
[null,2,null,null,null,"ПК 1.4.","ПК 2.1.","ПК 2.2.","ПК 2.3.","ПК 2.4.","ПК 2.5.","ПК 2.6.","ПК 2.7.","ПК 2.8.","ПК 3.1.","ПК 3.2.","ПК 3.3."]
[null,3,null,null,null,"ПК 3.4.","ПК 3.5.","ПК 3.6.","ПК 4.1.","ПК 4.2.","ПК 4.3.","ПК 4.4.","ПК 4.5.","ПК 5.1.","ПК 5.2.","ПК 5.3.","ПК 5.4."]
[null,4,null,null,null,"ПК 5.5."]
[null,6]
[null,7]
[null,8]
["19",1,"ОП.04","9","Экономические и правовые основы профессиональной деятельности","ОК 02.","ОК 04.","ОК 09.","ОК 10.","ОК 11."]
[null,6]
[null,7]
[null,8]
["20",1,"ОП.05","9","Основы калькуляции и учета","ОК 01.","ОК 02.","ОК 03.","ОК 04.","ОК 05.","ОК 09.","ОК 10.","ПК 1.1.","ПК 1.2.","ПК 1.3.","ПК 1.4.","ПК 2.1."]
[null,2,null,null,null,"ПК 2.2.","ПК 2.3.","ПК 2.4.","ПК 2.5.","ПК 2.6.","ПК 2.7.","ПК 2.8.","ПК 3.1.","ПК 3.2.","ПК 3.3.","ПК 3.4.","ПК 3.5."]
[null,3,null,null,null,"ПК 3.6.","ПК 4.1.","ПК 4.2.","ПК 4.3.","ПК 4.4.","ПК 4.5.","ПК 5.1.","ПК 5.2.","ПК 5.3.","ПК 5.4.","ПК 5.5."]
[null,5]
[null,6]
[null,7]
[null,8]
["21",1,"ОП.06","9","Охрана труда","ОК 01.","ОК 02.","ОК 03.","ОК 04.","ОК 05.","ОК 06.","ОК 07.","ОК 09.","ОК 10.","ОК 11.","ПК 1.1.","ПК 1.2."]
[null,2,null,null,null,"ПК 1.3.","ПК 1.4.","ПК 2.1.","ПК 2.2.","ПК 2.3.","ПК 2.4.","ПК 2.5.","ПК 2.6.","ПК 2.7.","ПК 2.8.","ПК 3.1.","ПК 3.2."]
[null,3,null,null,null,"ПК 3.3.","ПК 3.4.","ПК 3.5.","ПК 3.6.","ПК 4.1.","ПК 4.2.","ПК 4.3.","ПК 4.4.","ПК 4.5.","ПК 5.1.","ПК 5.2.","ПК 5.3."]
[null,4,null,null,null,"ПК 5.4.","ПК 5.5."]
[null,6]
[null,7]
[null,8]
["22",1,"ОП.07","9","Иностранный язык в профессиональной деятельности","ОК 01.","ОК 02.","ОК 03.","ОК 04.","ОК 05.","ОК 09.","ОК 10."]
[null,2]
[null,3]
[null,4]
[null,5]
[null,6]
[null,7]
[null,8]
["23",1,"ОП.08","9","Безопасность жизнедеятельности","ОК 01.","ОК 02.","ОК 03.","ОК 04.","ОК 05.","ОК 06.","ОК 07.","ОК 08.","ОК 09.","ОК 10.","ОК 11.","ПК 1.1."]
[null,2,null,null,null,"ПК 1.2.","ПК 1.3.","ПК 1.4.","ПК 2.1.","ПК 2.2.","ПК 2.3.","ПК 2.4.","ПК 2.5.","ПК 2.6.","ПК 2.7.","ПК 2.8.","ПК 3.1."]
[null,3,null,null,null,"ПК 3.2.","ПК 3.3.","ПК 3.4.","ПК 3.5.","ПК 3.6.","ПК 4.1.","ПК 4.2.","ПК 4.3.","ПК 4.4.","ПК 4.5.","ПК 5.1.","ПК 5.2."]
[null,4,null,null,null,"ПК 5.3.","ПК 5.4.","ПК 5.5."]
[null,6]
[null,7]
[null,8]
["24",1,"ОП.09","9","Физическая культура","ОК 08"]
[null,2]
[null,3]
[null,4]
[null,5]
[null,6]
[null,7]
[null,8]
["25",1,"ОП.10","9","Русский язык и культура речи","ОК 05.","ОК 10."]
[null,2]
[null,3]
[null,4]
[null,5]
[null,6]
[null,7]
[null,8]
["26",1,"ОП.11","9","Основы эффективного поведения на рынке труда","ОК 03.","ОК 05."]
[null,2]
[null,3]
[null,4]
[null,5]
[null,6]
[null,7]
[null,8]
["27",1,"ОП.12","9","Основы предпринимательской деятельности","ОК 01.","ОК 02.","ОК 04.","ОК 09.","ОК 11."]
[null,2]
[null,3]
[null,4]
[null,5]
[null,6]
[null,7]
[null,8]
[]
["4",1,"ПЦ",null,"Профессиональный цикл","ОК 01.","ОК 04.","ОК 07.","ПК 1.1.","ПК 1.2.","ПК 1.3.","ПК 1.4.","ПК 2.1.","ПК 2.2.","ПК 2.3.","ПК 2.4.","ПК 2.5."]
[null,2,null,null,null,"ПК 2.6.","ПК 2.7.","ПК 2.8.","ПК 3.1.","ПК 3.2.","ПК 3.3.","ПК 3.4.","ПК 3.5.","ПК 3.6.","ПК 4.1.","ПК 4.2.","ПК 4.3."]
[null,3,null,null,null,"ПК 4.4.","ПК 4.5.","ПК 5.1.","ПК 5.2.","ПК 5.3.","ПК 5.4.","ПК 5.5.","ПК 6.1.","ПК 6.2.","ПК 6.3.","ПК 6.4.","ДПК 1.5"]
[null,4,null,null,null,"ДПК 1.6.","ДПК 2.9.","ДПК 2.10.","ДПК 3.7.","ДПК 3.8.","ДПК 4.6.","ДПК 4.7.","ДПК 5.6.","ДПК 5.7."]
[null,5]
[null,6]
[null,7]
[null,8]
[]
["5",1,"ПМ.01",null,"Приготовление и подготовка к реализации полуфабрикатов для блюд, кулинарных изделий разнообразного ассортимента","ОК 01.","ОК 04.","ОК 07.","ПК 1.1.","ПК 1.2.","ПК 1.3.","ПК 1.4.","ДПК 1.5","ДПК 1.6."]
[null,2]
[null,3]
[null,4]
[null,5]
[null,6]
[null,7]
[null,8]
["28",1,"МДК.01.01","3001","Организация приготовления, подготовки к реализации и хранения кулинарных полуфабрикатов","ОК 01.","ОК 04.","ОК 07.","ПК 1.1.","ПК 1.2.","ПК 1.3.","ПК 1.4."]
[null,2]
[null,3]
[null,4]
[null,5]
[null,6]
[null,7]
[null,8]
["29",1,"МДК.01.02","3001","Процессы приготовления, подготовки к реализации кулинарных полуфабрикатов","ОК 01.","ОК 04.","ОК 07.","ПК 1.1.","ПК 1.2.","ПК 1.3.","ПК 1.4.","ДПК 1.5","ДПК 1.6."]
[null,2]
[null,3]
[null,4]
[null,5]
[null,6]
[null,7]
[null,8]
["30",1,"УП.01.01","3001","Учебная практика по приготовлению и подготовке к реализации полуфабрикатов для блюд, кулинарных изделий разнообразного ассортимента","ОК 01.","ОК 04.","ОК 07.","ПК 1.1.","ПК 1.2.","ПК 1.3.","ПК 1.4.","ДПК 1.5","ДПК 1.6."]
[null,2]
[null,3]
[null,4]
[null,5]
[null,6]
[null,7]
[null,8]
["31",1,"ПП.01.01","3001","Производственная практика по приготовлению и подготовке к реализации полуфабрикатов для блюд, кулинарных изделий разнообразного ассортимента","ОК 01.","ОК 04.","ОК 07.","ПК 1.1.","ПК 1.2.","ПК 1.3.","ПК 1.4."]
[null,2]
[null,3]
[null,4]
[null,5]
[null,6]
[null,7]
[null,8]
[]
["6",1,"ПМ.02",null,"Приготовление, оформление и подготовка к реализации горячих блюд, кулинарных изделий, закусок разнообразного ассортимента","ОК 01.","ОК 04.","ОК 07.","ПК 2.1.","ПК 2.2.","ПК 2.3.","ПК 2.4.","ПК 2.5.","ПК 2.6.","ПК 2.7.","ПК 2.8.","ДПК 2.9."]
[null,2,null,null,null,"ДПК 2.10."]
[null,3]
[null,4]
[null,5]
[null,6]
[null,7]
[null,8]
["32",1,"МДК.02.01","3002","Организация приготовления, подготовки к реализации и хранения горячих блюд, кулинарных изделий и закусок разнообразного ассортимента","ОК 01.","ОК 04.","ОК 07.","ПК 2.1.","ПК 2.2.","ПК 2.3.","ПК 2.4.","ПК 2.5.","ПК 2.6.","ПК 2.7.","ПК 2.8."]
[null,2]
[null,3]
[null,4]
[null,5]
[null,6]
[null,7]
[null,8]
["33",1,"МДК.02.02","3002","Процессы приготовления, подготовки к реализации горячих блюд, кулинарных изделий и закусок разнообразного ассортимента","ОК 01.","ОК 04.","ОК 07.","ПК 2.1.","ПК 2.2.","ПК 2.3.","ПК 2.4.","ПК 2.5.","ПК 2.6.","ПК 2.7.","ПК 2.8.","ДПК 2.9."]
[null,2,null,null,null,"ДПК 2.10."]
[null,3]
[null,4]
[null,5]
[null,6]
[null,7]
[null,8]
["34",1,"УП.02.01","3002","Учебная практика по приготовлению, оформлению и подготовке к реализации горячих блюд, кулинарных изделий, закусок разнообразного ассортимента","ОК 01.","ОК 04.","ОК 07.","ПК 2.1.","ПК 2.2.","ПК 2.3.","ПК 2.4.","ПК 2.5.","ПК 2.6.","ПК 2.7.","ПК 2.8.","ДПК 2.9."]
[null,2,null,null,null,"ДПК 2.10."]
[null,3]
[null,4]
[null,5]
[null,6]
[null,7]
[null,8]
["35",1,"ПП.02.01","3002","Производственная практика по приготовлению, оформлению и подготовке к реализации горячих блюд, кулинарных изделий, закусок разнообразного ассортимента","ОК 01.","ОК 04.","ОК 07.","ПК 2.1.","ПК 2.2.","ПК 2.3.","ПК 2.4.","ПК 2.5.","ПК 2.6.","ПК 2.7.","ПК 2.8.","ДПК 2.9."]
[null,2,null,null,null,"ДПК 2.10."]
[null,3]
[null,4]
[null,5]
[null,6]
[null,7]
[null,8]
[]
["7",1,"ПМ.03",null,"Приготовление, оформление и подготовка к реализации холодных блюд, кулинарных изделий, закусок разнообразного ассортимента","ОК 01.","ОК 04.","ОК 07.","ПК 3.1.","ПК 3.2.","ПК 3.3.","ПК 3.4.","ПК 3.5.","ПК 3.6.","ДПК 3.7.","ДПК 3.8."]
[null,2]
[null,3]
[null,4]
[null,5]
[null,6]
[null,7]
[null,8]
["36",1,"МДК.03.01","3003","Организация приготовления, подготовки к реализации и хранения холодных блюд, кулинарных изделий и закусок разнообразного ассортимента","ОК 01.","ОК 04.","ОК 07.","ПК 3.1.","ПК 3.2.","ПК 3.3.","ПК 3.4.","ПК 3.5.","ПК 3.6."]
[null,2]
[null,3]
[null,4]
[null,5]
[null,6]
[null,7]
[null,8]
["37",1,"МДК.03.02","3003","Процессы приготовления, подготовки к реализации холодных блюд, кулинарных изделий и закусок разнообразного ассортимента","ОК 01.","ОК 04.","ОК 07.","ПК 3.1.","ПК 3.2.","ПК 3.3.","ПК 3.4.","ПК 3.5.","ПК 3.6.","ДПК 3.7.","ДПК 3.8."]
[null,2]
[null,3]
[null,4]
[null,5]
[null,6]
[null,7]
[null,8]
["38",1,"УП.03.01","3003","Учебная практика по приготовлению, оформлению и подготовке к реализации холодных блюд, кулинарных изделий, закусок разнообразного ассортимента","ОК 01.","ОК 04.","ОК 07.","ПК 3.1.","ПК 3.2.","ПК 3.3.","ПК 3.4.","ПК 3.5.","ПК 3.6.","ДПК 3.7.","ДПК 3.8."]
[null,2]
[null,3]
[null,4]
[null,5]
[null,6]
[null,7]
[null,8]
["39",1,"ПП.03.01","3003","Производственная практика по приготовлению, оформлению и подготовке к реализации холодных блюд, кулинарных изделий, закусок разнообразного ассортимента","ОК 01.","ОК 04.","ОК 07.","ПК 3.1.","ПК 3.2.","ПК 3.3.","ПК 3.4.","ПК 3.5.","ПК 3.6.","ДПК 3.7.","ДПК 3.8."]
[null,2]
[null,3]
[null,4]
[null,5]
[null,6]
[null,7]
[null,8]
[]
["8",1,"ПМ.04",null,"Приготовление, оформление и подготовка к реализации холодных и горячих сладких блюд, десертов, напитков разнообразного ассортимента","ОК 01.","ОК 04.","ОК 07.","ПК 4.1.","ПК 4.2.","ПК 4.3.","ПК 4.4.","ПК 4.5.","ДПК 4.6.","ДПК 4.7."]
[null,2]
[null,3]
[null,4]
[null,5]
[null,6]
[null,7]
[null,8]
["40",1,"МДК.04.01","3004","Организация процессов приготовления, подготовки к реализации и хранения холодных и горячих десертов, напитков сложного ассортимента","ОК 01.","ОК 04.","ОК 07.","ПК 4.1.","ПК 4.2.","ПК 4.3.","ПК 4.4.","ПК 4.5."]
[null,2]
[null,3]
[null,4]
[null,5]
[null,6]
[null,7]
[null,8]
["41",1,"МДК.04.02","3004","Процессы приготовления и подготовки к реализации холодных и горячих сладких блюд, десертов разнообразного ассортимента","ОК 01.","ОК 04.","ОК 07.","ПК 4.1.","ПК 4.2.","ПК 4.3.","ПК 4.4.","ПК 4.5.","ДПК 4.6.","ДПК 4.7."]
[null,2]
[null,3]
[null,4]
[null,5]
[null,6]
[null,7]
[null,8]
["42",1,"УП.04.01","3004","Учебная практика по приготовлению, оформлению и подготовке к реализации холодных и горячих сладких блюд, десертов, напитков разнообразного ассортимента","ОК 01.","ОК 04.","ОК 07.","ПК 4.1.","ПК 4.2.","ПК 4.3.","ПК 4.4.","ПК 4.5.","ДПК 4.6.","ДПК 4.7."]
[null,2]
[null,3]
[null,4]
[null,5]
[null,6]
[null,7]
[null,8]
["43",1,"ПП.04.01","3004","Производственная практика по приготовлению, оформлению и подготовке к реализации холодных и горячих сладких блюд, десертов, напитков разнообразного ассортимента","ОК 01.","ОК 04.","ОК 07.","ПК 4.1.","ПК 4.2.","ПК 4.3.","ПК 4.4.","ПК 4.5.","ДПК 4.6.","ДПК 4.7."]
[null,2]
[null,3]
[null,4]
[null,5]
[null,6]
[null,7]
[null,8]
[]
["9",1,"ПМ.05",null,"Приготовление, оформление и подготовка к реализации хлебобулочных, мучных кондитерских изделий разнообразного ассортимента","ОК 01.","ОК 04.","ОК 07.","ПК 5.1.","ПК 5.2.","ПК 5.3.","ПК 5.4.","ПК 5.5.","ДПК 5.6.","ДПК 5.7."]
[null,2]
[null,3]
[null,4]
[null,5]
[null,6]
[null,7]
[null,8]
["44",1,"МДК.05.01","3005","Организация приготовления, оформления и подготовки к реализации хлебобулочных, мучных кондитерских изделий","ОК 01.","ОК 04.","ОК 07.","ПК 5.1.","ПК 5.2.","ПК 5.3.","ПК 5.4.","ПК 5.5."]
[null,2]
[null,3]
[null,4]
[null,5]
[null,6]
[null,7]
[null,8]
["45",1,"МДК.05.02","3005","Процессы приготовления, оформления и подготовки к реализации хлебобулочных, мучных кондитерских изделий","ОК 01.","ОК 04.","ОК 07.","ПК 5.1.","ПК 5.2.","ПК 5.3.","ПК 5.4.","ПК 5.5.","ДПК 5.6.","ДПК 5.7."]
[null,2]
[null,3]
[null,4]
[null,5]
[null,6]
[null,7]
[null,8]
["46",1,"УП.05.01","3005","Учебная практика по приготовлению, оформлению и подготовке к реализации хлебобулочных, мучных кондитерских изделий разнообразного ассортимента","ОК 01.","ОК 04.","ОК 07.","ПК 5.1.","ПК 5.2.","ПК 5.3.","ПК 5.4.","ПК 5.5.","ДПК 5.6.","ДПК 5.7."]
[null,2]
[null,3]
[null,4]
[null,5]
[null,6]
[null,7]
[null,8]
["47",1,"ПП.05.01","3005","Производственная практика по приготовлению, оформлению и подготовке к реализации хлебобулочных, мучных кондитерских изделий разнообразного ассортимента","ОК 01.","ОК 04.","ОК 07.","ПК 5.1.","ПК 5.2.","ПК 5.3.","ПК 5.4.","ПК 5.5.","ДПК 5.6.","ДПК 5.7."]
[null,2]
[null,3]
[null,4]
[null,5]
[null,6]
[null,7]
[null,8]
[]
["10",1,"ПМ.06",null,"Работа на контрольно-кассовой технике расчеты  с покупателями","ОК 01.","ОК 04.","ПК 6.1.","ПК 6.2.","ПК 6.3.","ПК 6.4."]
[null,2]
[null,3]
[null,4]
[null,5]
[null,6]
[null,7]
[null,8]
["48",1,"МДК.06.01","3006","Эксплуатация контрольно-кассовой техники","ОК 01.","ОК 04.","ПК 6.1.","ПК 6.2.","ПК 6.3.","ПК 6.4."]
[null,2]
[null,3]
[null,4]
[null,5]
[null,6]
[null,7]
[null,8]
["49",1,"УП.06.01","3006","Учебная практика по эксплуатации контрольно-кассовой техники","ОК 01.","ОК 04.","ПК 6.1.","ПК 6.2.","ПК 6.3.","ПК 6.4."]
[null,2]
[null,3]
[null,4]
[null,5]
[null,6]
[null,7]
[null,8]
["50",1,"ПП.06.01","3006","Производственная практика по работе на контрольно-кассовой технике, расчетам с покупателями","ОК 01.","ОК 04.","ПК 6.1.","ПК 6.2.","ПК 6.3.","ПК 6.4."]
[null,2]
[null,3]
[null,4]
[null,5]
[null,6]
[null,7]
[null,8]
[]
["11",1,null,null,"Государственная итоговая аттестация"]
[null,2]
[null,3]
[null,4]
[null,5]
[null,6]
[null,7]
[null,8]
["51",1,null,"11","Защита выпускной квалификационной работы"]
[null,2]
[null,3]
[null,4]
[null,5]
[null,6]
[null,7]
[null,8]
["52",1,null,"11","Проведение государственных экзаменов"]
[null,2]
[null,3]
[null,4]
[null,5]
[null,6]
[null,7]
[null,8]

{"sheet":"Кабинеты","index":6,"n_rows":14,"n_cols":2,"rows_kept":14,"cut":false,"hidden":false,"merged":[]}
["№","Наименование"]
["1","Кабинеты: социально-экономических дисциплин"]
["2","иностранного языка "]
["3","микробиологии санитарии и гигиены"]
["4","безопасности жизнедеятельности и охраны труда"]
["5","Лаборатории:  товароведения продовольственных товаров"]
["6","Технического оснащения и организации рабочего места"]
["7","Мастерские: учебная кухня ресторана с зонами для приготовления холодных, горячих блюд, кулинарных изделий,сладких блюд, десертов и напитков"]
["8","Учебный кондитерский цех"]
["9","Спортивный комплекс: спортивный зал"]
["10","открытый стадион широкого профиля с элементами полосы препятствий"]
["11","стрелковый тир"]
["12","Залы: библиотека, читальный зал с выходом в сеть интернет"]
["13","Актовый зал"]

{"sheet":"Пояснения","index":7,"n_rows":9,"n_cols":2,"rows_kept":9,"cut":false,"hidden":false,"merged":[[7,1,7,3],[8,1,8,3],[0,1,0,3],[1,1,1,3],[2,1,2,3],[3,1,3,3],[4,1,4,3],[5,1,5,3],[6,1,6,3]]}
[null,"Пояснения"]
[null,"Настоящий учебный план государственного профессионального образовательного учреждения \"Тяжинский агропромышленный техникум\" ГПОУ ТАПТ разработан на основе Федерального государственного образовательного стандарта среднего профессионального образования утвержденного приказом Министерства образования и науки Российской Федерации № 1569 от 9 декабря 2016 года, зарегистрирован Министерством юстиции (рег. № 44898 от 22 декабря 2016 года) по прорфессии 43.01.09 \"Повар, кондитер\".рекомендаций по получению среднего общего образования  с учетом требований федеральных государственных образовательных стандартов и получаемой профессии или специальности среднего профессионального образования (письмо Департамента государственной политики в сфере подготовки рабочих кадров и ДПО от 17.03.2015 г №06-259)"]
[null,"Нормативный срок освоения основной профессиональной образовательной программы среднего профессионального образования 43.01.09 \"Повар, кондитер\" на базе основного общего образования составляет 3 года 10 месяцев.  Объем обязательной  нагрузки при очной форме обучения составляет 36 часов в неделю.   Предусматривается шестидневная учебная неделя при прохождении учебной и производственной практики и пятидневная при изучении теоретического материала. Продолжительность учебных занятий составляет 90 минут (2 академических часа) разделенных 5 минутным перерывом. Продолжительность учебной и производственной практики 6 академических часов."]
[null,"В плане учебного процесса отражаются следующие формы контроля знаний студентов: (З) зачеты, (ДЗ) дифференцированный зачет, (Э) экзамен, эказмен квалификационный (ЭК),последний проходит в форме демонстрационного экзамена. Промежуточная аттестация в форме зачета или дифференцированного зачета проводится за счет времени отведенного на освоение соответствующих модулей, междисциплинарных кусов и дисциплин. Количество экзаменов в каждом учебном году для аттестации студентов очной формы не превышает 8, а количество зачетов и дифференцированных зачетов - 10 (в данное количество не входят зачеты и дифференцированные зачеты по физкультуре). Каждый семестр обучения в техникуме заканчивается промежуточной аттестацией.   На промежуточную аттестацию в виде экзаменационной сессии предусматривается по ООП предусмотрено 4 недели.  Экзаменационные сессии проводятся рассредоточенно и концентрированно, во 1-4 семестрах.  По дисциплине физическая культура  проводится промежуточная аттестация в каждом из семестров на протяжении которых изучается дисциплина. По всем МДК предусмотрены экзамены, в рамках модуля комплексные.  По профессиональным модулям проводят экзамен квалификационный, в т.ч. по ПМ 1-4 и ПМ 5-6 комплексный .   По производственной практике комплексный дифференцированный зачет и учебной практике комплексный зачет в рамках профессиональных модулей"]
[null,"Формирование вариативной части ОПОП  Вариативная часть распределена между дисциплинами общепрофессионального цикла и междисциплинарными курсами в объеме 898 часов , следующим образом:  Дополнительно введенные новые дисциплины  Русский язык и культура речи - 32 часа; Основы предпринимательской деятельности - 32 часа.  Основы эффективного поведения на рынке труда – 32 часа. Основы эффективного поведения на рынке труда ориентированы на успешную адаптацию выпускников в условиях рынка труда, а также развитию ОК 03. Планировать и реализовывать собственное профессиональное и личностное различе.  На развитие этой компетенции и ОК 11. Планировать предпринимательскую деятельность в профессиональной сфере направлена дисциплина Основы предпринимательской деятельности. Для развития коммуникативных умений и ОК 05. Осуществлять устную и письменную коммуникацию на государственном языке с учетом особенностей социального и культурного контекста, а также ОК 10. Пользоваться профессиональной документацией на государственом и иностранном языке направлена дисциплина Русский язык и культура речи. Сцелью расширения и углубления знаний и умений долбавлены часы в инвариантную часть: Техническое оснащение и организация рабочего места - 36 часов, Основы мирокобиологии, физиологии питания, санитарии и гигиены - 10 часов, Основы товароведения продовольственных товаров - 10 часов, Основы калькуляции и учета - 14 часов. С целью расширения основных видов деятельности в части формирования компетенций по приготовлению для детей дошкольного и школьного возраста, а также использованию региональных особенностей и сырья в приготовлении пищи в профессиональные модули добавлено ПМ 01 - 85 часов в т.ч. 72 ч практики, ПМ0 2 - 184 часов, в т.ч. 108 часов практики, ПМ 03 - 107 часов, в т.ч. 72 часа практика, в ПМ 04 - 104 часа в .т.ч. 72 часа практик, в ПМ 05   - 118 часов, в т.ч. 72 часа практики. Для формировиния дополнительного вида деятельности Работа на контрольно-кассовой технике и расчеты с покупателями введен дополнительный модуль ПМ 6 в объеме 134 часа  в т.ч. практика 72 часа. 36 часов выделено на освоение физической культуры."]
[null,"Учебная и производственная практика реализуются концентрированно в т.чю на ьазе учреждений и организаций социальных партнеров."]
[null,"Самостоятельная работа в рамках ООП по общепрофессиональным дисциплинам выделено по 4 часа на дисциплины объемом до 36 часов,  6 часов на дисциплины большим объемом, в сумме 58 часа. На профессиональные модули в части освоения МДК объемом до 40 часов - 4 часа,  40 - 100 часов - 8 часов, 100 - 150 часов - 12 часов,  150 - 200 часов 16 часов, свыше 200 часов - 20 часов итого 88 часов. общий объем времени на самостоятельную работу 148 часов. 30 часов выделено на индивидуальный проект в рамках химии."]
[null,"Государственная итоговая аттестация проводится в форме защиты выпускной квалификационной работы в виде демонстрационного экзамена"]
[null,"Согласовано"]

{"sheet":"ЦМК","index":8,"n_rows":1,"n_cols":3,"rows_kept":1,"cut":false,"hidden":false,"merged":[]}
[null,"Код"," Наименование ЦК"]

{"sheet":"Start","index":9,"n_rows":0,"n_cols":0,"rows_kept":0,"cut":false,"hidden":true,"merged":[]}